Workbook

Sheet 版本页
A4: 智能物流BG调度系统和西门子PLC通信协议标准化文档
A7: 修订日期 | B7: 版本号 | C7: 标志 | D7: 概要说明 | E7: 编写人 | F7: 审核人
A8: 2015-06-05 | B8: V1.0 | C8: 新建 | E8: 张博 | F8: 刘少鹏、张磊
A9: 2018-09-22 | B9: V1.1 | C9: 修改 | D9: 设备光电开关位置和条码上报格式修改 | E9: 刘云吉 | F9: 刘少鹏、张磊、王琦
A10: 2020-05-19 | B10: V1.2 | C10: 修改 | D10: 增加移动设备上位机停车等安全协议；增加智能运维及3D系统通讯协议 | E10: 边智 | F10: 刘少鹏、张磊、王琦
A14: 修订标志说明：
A15: 新建――文档首次编写
A16: 追加――文档以追加新内容为主要目的进行了重新编写
A17: 修改――文档以修改错误内容为主要目的进行了重新编写

Sheet 协议概述
A1: [SIASUN/ILBG/SS]C-DS-CEIP-2018
A2: 协议概述
A3: 调度系统PC与西门子PLC的数据交换在PLC中完成，PLC中设两个数据区DB1和DB2。DB1作为上位机(调度系统PC,以下简称PC)的写数据区；DB2作为下位机(PLC)的写数据区。
A4: （1）DB1中的数据分为以下几种类型： 第一类,为每个需要上位机下达任务的设备规定1个定长的数据段，写入设备指令； 第二类，为每个触摸屏控制区域分配1个定长的数据段作为通用数据段，写入设备指令(主要用于触摸屏申请任务和设备故障后自动更改路径的处理)。
A5: （2）DB2中数据分为以下几种类型： 第一类,为每个需要上报状态的设备规定1个定长的数据段，写入设备（或任务）的状态； 第二类,写入上位机需要的检测开关、电机转动、故障状态等位信息； 第三类,写入叠盘机叠盘完成信号以及叠盘数量信息； 第四类,分别为每个条码扫描器规定1个定长的数据段，写入条码信息； 第五类,分别为每个现场控制触摸屏规定1个定长的数据段，写入现场控制触摸屏的申请信号。
A6: (3)各种信号在DB区中所占数据段长度定义如下： 堆垛机：PC→PLC定长为20个字节（byte），PLC→PC为20个字节（byte）； 输送机：PC→PLC定长为10个字节（byte）,特殊三任务为12个字节，PLC→PC为10个字节（byte）； 光电开关状态信息：PLC→PC定长为1个字节（byte），各占1位（bit）； 穿梭车：PC→PLC定长为16个字节（byte），PLC→PC为16个字节（byte）； 条码扫描器信息： PLC→PC为10+n个字节（byte）（n表示条码字符长度）； 现场控制触摸屏：PC→PLC定长为8个字节（byte），PLC→PC为8+n个字节（byte）。(n表示条码字符长度) 上位机给下位机发送设备动作指令时，在一条消息没有正确发送前，后续消息不能发送。正确发送的标志是PLC报告读取数据正确或报告设备已经执行发送的任务号。（下位机申请重发和申请变更除外）

Sheet 原料库WCS流程
A1: 路径编号 | B1: 路径名称 | C1: 起点 | D1: 终点 | E1: 路径类型
A2: 1 | B2: 恒温12565-12566空电池盒出库的空母托叠盘 | C2: 12565 | D2: 12566 | E2: 1
A3: 2 | B3: 恒温12568-12566空电池盒出库的空母托叠盘 | C3: 12568 | D3: 12566 | E3: 1
A4: 3 | B4: 恒温12566-12565拆空母托给电池片合托 | C4: 12566 | D4: 12565 | E4: 2
A5: 4 | B5: 恒温12564-12580电池片合托入库 | C5: 12564 | D5: 12580 | E5: 1
A6: 5 | B6: 恒温12566-12568拆空母托给电池片合托 | C6: 12566 | D6: 12568 | E6: 2
A7: 6 | B7: 恒温12566-12580母托垛入库 | C7: 12566 | D7: 12580 | E7: 1
A8: 7 | B8: 恒温12567-12580电池片合托入库 | C8: 12567 | D8: 12580 | E8: 1
A9: 8 | B9: 恒温电池片入库12580-12584 | C9: 12580 | D9: 12584 | E9: 1
A10: 9 | B10: 恒温供给电池片空母托垛出库18201-12554-12566 | C10: 18201 | D10: 12566 | E10: 2
A11: 10 | B11: 恒温供给电池片空母托垛出库18202-12554-12566 | C11: 18202 | D11: 12566 | E11: 2
A12: 11 | B12: 恒温供给电池片空母托垛出库18203-12554-12566 | C12: 18203 | D12: 12566 | E12: 2
A13: 12 | B13: 恒温供给电池片空母托垛出库18204-12554-12566 | C13: 18204 | D13: 12566 | E13: 2
A14: 13 | B14: 恒温供给电池片空母托垛出库18205-12554-12566 | C14: 18205 | D14: 12566 | E14: 2
A15: 14 | B15: 恒温供给电池片空母托垛出库18206-12554-12566 | C15: 18206 | D15: 12566 | E15: 2
A16: 15 | B16: 恒温供给电池片空母托垛出库18207-12554-12566 | C16: 18207 | D16: 12566 | E16: 2
A17: 16 | B17: 恒温供给电池片空母托垛出库18208-12554-12566 | C17: 18208 | D17: 12566 | E17: 2
A18: 17 | B18: 恒温供给电池片空母托垛出库18209-12554-12566 | C18: 18209 | D18: 12566 | E18: 2
A19: 18 | B19: 恒温供给电池片空母托垛出库18210-12554-12566 | C19: 18210 | D19: 12566 | E19: 2
A20: 19 | B20: 恒温供给电池片空母托垛出库18211-12554-12566 | C20: 18211 | D20: 12566 | E20: 2
A21: 20 | B21: 恒温供给电池片空母托垛出库18212-12554-12566 | C21: 18212 | D21: 12566 | E21: 2
A22: 21 | B22: 恒温供给电池片空母托垛出库18213-12554-12566 | C22: 18213 | D22: 12566 | E22: 2
A23: 22 | B23: 恒温供给电池片空母托垛出库18214-12554-12566 | C23: 18214 | D23: 12566 | E23: 2
A24: 23 | B24: 恒温电池片入库12584-18201 | C24: 12584 | D24: 18201 | E24: 1
A25: 24 | B25: 恒温电池片入库12584-18202 | C25: 12584 | D25: 18202 | E25: 1
A26: 25 | B26: 恒温电池片入库12584-18203 | C26: 12584 | D26: 18203 | E26: 1
A27: 26 | B27: 恒温电池片入库12584-18204 | C27: 12584 | D27: 18204 | E27: 1
A28: 27 | B28: 恒温电池片入库12584-18205 | C28: 12584 | D28: 18205 | E28: 1
A29: 28 | B29: 恒温电池片入库12584-18206 | C29: 12584 | D29: 18206 | E29: 1
A30: 29 | B30: 恒温电池片入库12584-18207 | C30: 12584 | D30: 18207 | E30: 1
A31: 30 | B31: 恒温电池片入库12584-18208 | C31: 12584 | D31: 18208 | E31: 1
A32: 31 | B32: 恒温电池片入库12584-18209 | C32: 12584 | D32: 18209 | E32: 1
A33: 32 | B33: 恒温电池片入库12584-18210 | C33: 12584 | D33: 18210 | E33: 1
A34: 33 | B34: 恒温电池片入库12584-18211 | C34: 12584 | D34: 18211 | E34: 1
A35: 34 | B35: 恒温电池片入库12584-18212 | C35: 12584 | D35: 18212 | E35: 1
A36: 35 | B36: 恒温电池片入库12584-18213 | C36: 12584 | D36: 18213 | E36: 1
A37: 36 | B37: 恒温电池片入库12584-18214 | C37: 12584 | D37: 18214 | E37: 1
A38: 37 | B38: 恒温入库12551-18201 | C38: 12551 | D38: 18201 | E38: 1
A39: 38 | B39: 恒温入库12551-18202 | C39: 12551 | D39: 18202 | E39: 1
A40: 39 | B40: 恒温入库12551-18203 | C40: 12551 | D40: 18203 | E40: 1
A41: 40 | B41: 恒温入库12551-18204 | C41: 12551 | D41: 18204 | E41: 1
A42: 41 | B42: 恒温入库12551-18205 | C42: 12551 | D42: 18205 | E42: 1
A43: 42 | B43: 恒温入库12551-18206 | C43: 12551 | D43: 18206 | E43: 1
A44: 43 | B44: 恒温入库12551-18207 | C44: 12551 | D44: 18207 | E44: 1
A45: 44 | B45: 恒温入库12551-18208 | C45: 12551 | D45: 18208 | E45: 1
A46: 45 | B46: 恒温入库12551-18209 | C46: 12551 | D46: 18209 | E46: 1
A47: 46 | B47: 恒温入库12551-18210 | C47: 12551 | D47: 18210 | E47: 1
A48: 47 | B48: 恒温入库12551-18211 | C48: 12551 | D48: 18211 | E48: 1
A49: 48 | B49: 恒温入库12551-18212 | C49: 12551 | D49: 18212 | E49: 1
A50: 49 | B50: 恒温入库12551-18213 | C50: 12551 | D50: 18213 | E50: 1
A51: 50 | B51: 恒温入库12551-18214 | C51: 12551 | D51: 18214 | E51: 1
A52: 51 | B52: 恒温库前拣选出库18201-12550 | C52: 18201 | D52: 12550 | E52: 2
A53: 52 | B53: 恒温库前拣选出库18202-12550 | C53: 18202 | D53: 12550 | E53: 2
A54: 53 | B54: 恒温库前拣选出库18203-12550 | C54: 18203 | D54: 12550 | E54: 2
A55: 54 | B55: 恒温库前拣选出库18204-12550 | C55: 18204 | D55: 12550 | E55: 2
A56: 55 | B56: 恒温库前拣选出库18205-12550 | C56: 18205 | D56: 12550 | E56: 2
A57: 56 | B57: 恒温库前拣选出库18206-12550 | C57: 18206 | D57: 12550 | E57: 2
A58: 57 | B58: 恒温库前拣选出库18207-12550 | C58: 18207 | D58: 12550 | E58: 2
A59: 58 | B59: 恒温库前拣选出库18208-12550 | C59: 18208 | D59: 12550 | E59: 2
A60: 59 | B60: 恒温库前拣选出库18209-12550 | C60: 18209 | D60: 12550 | E60: 2
A61: 60 | B61: 恒温库前拣选出库18210-12550 | C61: 18210 | D61: 12550 | E61: 2
A62: 61 | B62: 恒温库前拣选出库18211-12550 | C62: 18211 | D62: 12550 | E62: 2
A63: 62 | B63: 恒温库前拣选出库18212-12550 | C63: 18212 | D63: 12550 | E63: 2
A64: 63 | B64: 恒温库前拣选出库18213-12550 | C64: 18213 | D64: 12550 | E64: 2
A65: 64 | B65: 恒温库前拣选出库18214-12550 | C65: 18214 | D65: 12550 | E65: 2
A66: 65 | B66: 恒温入库12312-18201 | C66: 12312 | D66: 18201 | E66: 1
A67: 66 | B67: 恒温入库12312-18202 | C67: 12312 | D67: 18202 | E67: 1
A68: 67 | B68: 恒温入库12312-18203 | C68: 12312 | D68: 18203 | E68: 1
A69: 68 | B69: 恒温入库12312-18204 | C69: 12312 | D69: 18204 | E69: 1
A70: 69 | B70: 恒温入库12312-18205 | C70: 12312 | D70: 18205 | E70: 1
A71: 70 | B71: 恒温入库12312-18206 | C71: 12312 | D71: 18206 | E71: 1
A72: 71 | B72: 恒温入库12312-18207 | C72: 12312 | D72: 18207 | E72: 1
A73: 72 | B73: 恒温入库12312-18208 | C73: 12312 | D73: 18208 | E73: 1
A74: 73 | B74: 恒温入库12312-18209 | C74: 12312 | D74: 18209 | E74: 1
A75: 74 | B75: 恒温入库12312-18210 | C75: 12312 | D75: 18210 | E75: 1
A76: 75 | B76: 恒温入库12312-18211 | C76: 12312 | D76: 18211 | E76: 1
A77: 76 | B77: 恒温入库12312-18212 | C77: 12312 | D77: 18212 | E77: 1
A78: 77 | B78: 恒温入库12312-18213 | C78: 12312 | D78: 18213 | E78: 1
A79: 78 | B79: 恒温入库12312-18214 | C79: 12312 | D79: 18214 | E79: 1
A80: 79 | B80: 恒温入库12305-18201 | C80: 12305 | D80: 18201 | E80: 1
A81: 80 | B81: 恒温入库12305-18202 | C81: 12305 | D81: 18202 | E81: 1
A82: 81 | B82: 恒温入库12305-18203 | C82: 12305 | D82: 18203 | E82: 1
A83: 82 | B83: 恒温入库12305-18204 | C83: 12305 | D83: 18204 | E83: 1
A84: 83 | B84: 恒温入库12305-18205 | C84: 12305 | D84: 18205 | E84: 1
A85: 84 | B85: 恒温入库12305-18206 | C85: 12305 | D85: 18206 | E85: 1
A86: 85 | B86: 恒温入库12305-18207 | C86: 12305 | D86: 18207 | E86: 1
A87: 86 | B87: 恒温入库12305-18208 | C87: 12305 | D87: 18208 | E87: 1
A88: 87 | B88: 恒温入库12305-18209 | C88: 12305 | D88: 18209 | E88: 1
A89: 88 | B89: 恒温入库12305-18210 | C89: 12305 | D89: 18210 | E89: 1
A90: 89 | B90: 恒温入库12305-18211 | C90: 12305 | D90: 18211 | E90: 1
A91: 90 | B91: 恒温入库12305-18212 | C91: 12305 | D91: 18212 | E91: 1
A92: 91 | B92: 恒温入库12305-18213 | C92: 12305 | D92: 18213 | E92: 1
A93: 92 | B93: 恒温入库12305-18214 | C93: 12305 | D93: 18214 | E93: 1
A94: 93 | B94: 恒温入库口退货空母托垛入库12316-18201 | C94: 12316 | D94: 18201 | E94: 1
A95: 94 | B95: 恒温入库口退货空母托垛入库12316-18202 | C95: 12316 | D95: 18202 | E95: 1
A96: 95 | B96: 恒温入库口退货空母托垛入库12316-18203 | C96: 12316 | D96: 18203 | E96: 1
A97: 96 | B97: 恒温入库口退货空母托垛入库12316-18204 | C97: 12316 | D97: 18204 | E97: 1
A98: 97 | B98: 恒温入库口退货空母托垛入库12316-18205 | C98: 12316 | D98: 18205 | E98: 1
A99: 98 | B99: 恒温入库口退货空母托垛入库12316-18206 | C99: 12316 | D99: 18206 | E99: 1
A100: 99 | B100: 恒温入库口退货空母托垛入库12316-18207 | C100: 12316 | D100: 18207 | E100: 1
A101: 100 | B101: 恒温入库口退货空母托垛入库12316-18208 | C101: 12316 | D101: 18208 | E101: 1
A102: 101 | B102: 恒温入库口退货空母托垛入库12316-18209 | C102: 12316 | D102: 18209 | E102: 1
A103: 102 | B103: 恒温入库口退货空母托垛入库12316-18210 | C103: 12316 | D103: 18210 | E103: 1
A104: 103 | B104: 恒温入库口退货空母托垛入库12316-18211 | C104: 12316 | D104: 18211 | E104: 1
A105: 104 | B105: 恒温入库口退货空母托垛入库12316-18212 | C105: 12316 | D105: 18212 | E105: 1
A106: 105 | B106: 恒温入库口退货空母托垛入库12316-18213 | C106: 12316 | D106: 18213 | E106: 1
A107: 106 | B107: 恒温入库口退货空母托垛入库12316-18214 | C107: 12316 | D107: 18214 | E107: 1
A108: 107 | B108: 恒温入库12289-18201 | C108: 12289 | D108: 18201 | E108: 1
A109: 108 | B109: 恒温入库12289-18202 | C109: 12289 | D109: 18202 | E109: 1
A110: 109 | B110: 恒温入库12289-18203 | C110: 12289 | D110: 18203 | E110: 1
A111: 110 | B111: 恒温入库12289-18204 | C111: 12289 | D111: 18204 | E111: 1
A112: 111 | B112: 恒温入库12289-18205 | C112: 12289 | D112: 18205 | E112: 1
A113: 112 | B113: 恒温入库12289-18206 | C113: 12289 | D113: 18206 | E113: 1
A114: 113 | B114: 恒温入库12289-18207 | C114: 12289 | D114: 18207 | E114: 1
A115: 114 | B115: 恒温入库12289-18208 | C115: 12289 | D115: 18208 | E115: 1
A116: 115 | B116: 恒温入库12289-18209 | C116: 12289 | D116: 18209 | E116: 1
A117: 116 | B117: 恒温入库12289-18210 | C117: 12289 | D117: 18210 | E117: 1
A118: 117 | B118: 恒温入库12289-18211 | C118: 12289 | D118: 18211 | E118: 1
A119: 118 | B119: 恒温入库12289-18212 | C119: 12289 | D119: 18212 | E119: 1
A120: 119 | B120: 恒温入库12289-18213 | C120: 12289 | D120: 18213 | E120: 1
A121: 120 | B121: 恒温入库12289-18214 | C121: 12289 | D121: 18214 | E121: 1
A122: 121 | B122: 恒温入库12296-18201 | C122: 12296 | D122: 18201 | E122: 1
A123: 122 | B123: 恒温入库12296-18202 | C123: 12296 | D123: 18202 | E123: 1
A124: 123 | B124: 恒温入库12296-18203 | C124: 12296 | D124: 18203 | E124: 1
A125: 124 | B125: 恒温入库12296-18204 | C125: 12296 | D125: 18204 | E125: 1
A126: 125 | B126: 恒温入库12296-18205 | C126: 12296 | D126: 18205 | E126: 1
A127: 126 | B127: 恒温入库12296-18206 | C127: 12296 | D127: 18206 | E127: 1
A128: 127 | B128: 恒温入库12296-18207 | C128: 12296 | D128: 18207 | E128: 1
A129: 128 | B129: 恒温入库12296-18208 | C129: 12296 | D129: 18208 | E129: 1
A130: 129 | B130: 恒温入库12296-18209 | C130: 12296 | D130: 18209 | E130: 1
A131: 130 | B131: 恒温入库12296-18210 | C131: 12296 | D131: 18210 | E131: 1
A132: 131 | B132: 恒温入库12296-18211 | C132: 12296 | D132: 18211 | E132: 1
A133: 132 | B133: 恒温入库12296-18212 | C133: 12296 | D133: 18212 | E133: 1
A134: 133 | B134: 恒温入库12296-18213 | C134: 12296 | D134: 18213 | E134: 1
A135: 134 | B135: 恒温入库12296-18214 | C135: 12296 | D135: 18214 | E135: 1
A136: 135 | B136: 恒温入库口退货空母托垛入库12299-18201 | C136: 12300 | D136: 18201 | E136: 1
A137: 136 | B137: 恒温入库口退货空母托垛入库12299-18202 | C137: 12300 | D137: 18202 | E137: 1
A138: 137 | B138: 恒温入库口退货空母托垛入库12299-18203 | C138: 12300 | D138: 18203 | E138: 1
A139: 138 | B139: 恒温入库口退货空母托垛入库12299-18204 | C139: 12300 | D139: 18204 | E139: 1
A140: 139 | B140: 恒温入库口退货空母托垛入库12299-18205 | C140: 12300 | D140: 18205 | E140: 1
A141: 140 | B141: 恒温入库口退货空母托垛入库12299-18206 | C141: 12300 | D141: 18206 | E141: 1
A142: 141 | B142: 恒温入库口退货空母托垛入库12299-18207 | C142: 12300 | D142: 18207 | E142: 1
A143: 142 | B143: 恒温入库口退货空母托垛入库12299-18208 | C143: 12300 | D143: 18208 | E143: 1
A144: 143 | B144: 恒温入库口退货空母托垛入库12299-18209 | C144: 12300 | D144: 18209 | E144: 1
A145: 144 | B145: 恒温入库口退货空母托垛入库12299-18210 | C145: 12300 | D145: 18210 | E145: 1
A146: 145 | B146: 恒温入库口退货空母托垛入库12299-18211 | C146: 12300 | D146: 18211 | E146: 1
A147: 146 | B147: 恒温入库口退货空母托垛入库12299-18212 | C147: 12300 | D147: 18212 | E147: 1
A148: 147 | B148: 恒温入库口退货空母托垛入库12299-18213 | C148: 12300 | D148: 18213 | E148: 1
A149: 148 | B149: 恒温入库口退货空母托垛入库12299-18214 | C149: 12300 | D149: 18214 | E149: 1
A150: 149 | B150: 恒温入库12273-18201 | C150: 12273 | D150: 18201 | E150: 1
A151: 150 | B151: 恒温入库12273-18202 | C151: 12273 | D151: 18202 | E151: 1
A152: 151 | B152: 恒温入库12273-18203 | C152: 12273 | D152: 18203 | E152: 1
A153: 152 | B153: 恒温入库12273-18204 | C153: 12273 | D153: 18204 | E153: 1
A154: 153 | B154: 恒温入库12273-18205 | C154: 12273 | D154: 18205 | E154: 1
A155: 154 | B155: 恒温入库12273-18206 | C155: 12273 | D155: 18206 | E155: 1
A156: 155 | B156: 恒温入库12273-18207 | C156: 12273 | D156: 18207 | E156: 1
A157: 156 | B157: 恒温入库12273-18208 | C157: 12273 | D157: 18208 | E157: 1
A158: 157 | B158: 恒温入库12273-18209 | C158: 12273 | D158: 18209 | E158: 1
A159: 158 | B159: 恒温入库12273-18210 | C159: 12273 | D159: 18210 | E159: 1
A160: 159 | B160: 恒温入库12273-18211 | C160: 12273 | D160: 18211 | E160: 1
A161: 160 | B161: 恒温入库12273-18212 | C161: 12273 | D161: 18212 | E161: 1
A162: 161 | B162: 恒温入库12273-18213 | C162: 12273 | D162: 18213 | E162: 1
A163: 162 | B163: 恒温入库12273-18214 | C163: 12273 | D163: 18214 | E163: 1
A164: 163 | B164: 恒温入库12280-18201 | C164: 12280 | D164: 18201 | E164: 1
A165: 164 | B165: 恒温入库12280-18202 | C165: 12280 | D165: 18202 | E165: 1
A166: 165 | B166: 恒温入库12280-18203 | C166: 12280 | D166: 18203 | E166: 1
A167: 166 | B167: 恒温入库12280-18204 | C167: 12280 | D167: 18204 | E167: 1
A168: 167 | B168: 恒温入库12280-18205 | C168: 12280 | D168: 18205 | E168: 1
A169: 168 | B169: 恒温入库12280-18206 | C169: 12280 | D169: 18206 | E169: 1
A170: 169 | B170: 恒温入库12280-18207 | C170: 12280 | D170: 18207 | E170: 1
A171: 170 | B171: 恒温入库12280-18208 | C171: 12280 | D171: 18208 | E171: 1
A172: 171 | B172: 恒温入库12280-18209 | C172: 12280 | D172: 18209 | E172: 1
A173: 172 | B173: 恒温入库12280-18210 | C173: 12280 | D173: 18210 | E173: 1
A174: 173 | B174: 恒温入库12280-18211 | C174: 12280 | D174: 18211 | E174: 1
A175: 174 | B175: 恒温入库12280-18212 | C175: 12280 | D175: 18212 | E175: 1
A176: 175 | B176: 恒温入库12280-18213 | C176: 12280 | D176: 18213 | E176: 1
A177: 176 | B177: 恒温入库12280-18214 | C177: 12280 | D177: 18214 | E177: 1
A178: 177 | B178: 恒温入库口退货空母托垛入库12284-18201 | C178: 12284 | D178: 18201 | E178: 1
A179: 178 | B179: 恒温入库口退货空母托垛入库12284-18202 | C179: 12284 | D179: 18202 | E179: 1
A180: 179 | B180: 恒温入库口退货空母托垛入库12284-18203 | C180: 12284 | D180: 18203 | E180: 1
A181: 180 | B181: 恒温入库口退货空母托垛入库12284-18204 | C181: 12284 | D181: 18204 | E181: 1
A182: 181 | B182: 恒温入库口退货空母托垛入库12284-18205 | C182: 12284 | D182: 18205 | E182: 1
A183: 182 | B183: 恒温入库口退货空母托垛入库12284-18206 | C183: 12284 | D183: 18206 | E183: 1
A184: 183 | B184: 恒温入库口退货空母托垛入库12284-18207 | C184: 12284 | D184: 18207 | E184: 1
A185: 184 | B185: 恒温入库口退货空母托垛入库12284-18208 | C185: 12284 | D185: 18208 | E185: 1
A186: 185 | B186: 恒温入库口退货空母托垛入库12284-18209 | C186: 12284 | D186: 18209 | E186: 1
A187: 186 | B187: 恒温入库口退货空母托垛入库12284-18210 | C187: 12284 | D187: 18210 | E187: 1
A188: 187 | B188: 恒温入库口退货空母托垛入库12284-18211 | C188: 12284 | D188: 18211 | E188: 1
A189: 188 | B189: 恒温入库口退货空母托垛入库12284-18212 | C189: 12284 | D189: 18212 | E189: 1
A190: 189 | B190: 恒温入库口退货空母托垛入库12284-18213 | C190: 12284 | D190: 18213 | E190: 1
A191: 190 | B191: 恒温入库口退货空母托垛入库12284-18214 | C191: 12284 | D191: 18214 | E191: 1
A192: 191 | B192: 恒温入库12257-18201 | C192: 12257 | D192: 18201 | E192: 1
A193: 192 | B193: 恒温入库12257-18202 | C193: 12257 | D193: 18202 | E193: 1
A194: 193 | B194: 恒温入库12257-18203 | C194: 12257 | D194: 18203 | E194: 1
A195: 194 | B195: 恒温入库12257-18204 | C195: 12257 | D195: 18204 | E195: 1
A196: 195 | B196: 恒温入库12257-18205 | C196: 12257 | D196: 18205 | E196: 1
A197: 196 | B197: 恒温入库12257-18206 | C197: 12257 | D197: 18206 | E197: 1
A198: 197 | B198: 恒温入库12257-18207 | C198: 12257 | D198: 18207 | E198: 1
A199: 198 | B199: 恒温入库12257-18208 | C199: 12257 | D199: 18208 | E199: 1
A200: 199 | B200: 恒温入库12257-18209 | C200: 12257 | D200: 18209 | E200: 1
... 2137 more rows

Sheet 堆垛机数据区说明
A1: 设备类型 | B1: 字节索引 | C1: 代表意义 | D1: 取值 | E1: 值含义 | F1: 备注
A2: 堆垛机下行消息:PC->PLC | B2: 堆垛机按照货叉个数分成： 单叉堆垛机、双叉堆垛机和三叉堆垛机。
A3: 单叉堆垛机DB1：共20字节 | B3: 0 | C3: 读/写标志位 | D3: 0 | E3: 上位机对堆垛机报告运行应答 | F3: 收到堆垛机运行状态回复0
D4: 1 | E4: 上位机写入标记 | F4: 每次写入新命令为1
D5: 2 | E5: 上位机对下位机上报完成的应答 | F5: 收到堆垛机完成应答2
D6: 4 | E6: 上位机手动清除设备故障 | F6: 手动复位报警,(WCS发4之前先发0)
B7: 1 | C7: 设备指令 | D7: 1 | E7: 召回 | F7: 堆垛机升降和水平方向上都回到原点，发送指令时不用带着坐标，只发命令
D8: 2 | E8: 将取 | F8: 堆垛机货叉停在取货位置，不出叉
D9: 3 | E9: 将送 | F9: 堆垛机货叉停在送货位置，不出叉
D10: 4 | E10: 取货 | F10: 堆垛机伸叉取货
D11: 5 | E11: 送货 | F11: 堆垛机伸叉送货
D12: 6 | E12: 取送货
D13: 7 | E13: 运动 | F13: 给电气发送目标位置，排、列、层
D14: 9 | E14: 灭火 | F14: 打开消火栓灭火
B15: 2 | C15: 设备指令号 | D15: 1～30000 | E15: 设备命令唯一标准 | F15: 1～30000
B16: 3
B17: 4 | C17: 取货位列(X)坐标 | F17: 沿轨道方向，单侧出入巷道，入库站台或输送线坐标是1，远处递增；双侧出入，堆垛机条码小的一侧是1；大小货兼容货位按小货位发送列地址
B18: 5 | C18: 取货位层(Y)坐标 | F18: 沿高度方向，最下层货架坐标是1，向上递增
B19: 6 | C19: 取货位排(Z)坐标 | F19: 面向直道堆垛机控制柜触摸屏，左侧为1，右侧为2。1表示左侧出叉，2表示右侧出叉。（如为“U”形轨道或者道岔结构，则在堆垛机零点处，面向控制柜触摸屏，从左至右依次为1排，2排，3排，4排）。
B20: 7 | C20: 送货位列(X)坐标 | F20: 沿轨道方向，单侧出入巷道，入库站台或输送线坐标是1，远处递增；双侧出入，堆垛机条码小的一侧是1；大小货兼容货位按小货位发送列地址
B21: 8 | C21: 送货位层(Y)坐标 | F21: 沿高度方向，最下层货架坐标是1，向上递增
B22: 9 | C22: 送货位排(Z)坐标 | F22: 面向直道堆垛机控制柜触摸屏，左侧为1，右侧为2。1表示左侧出叉，2表示右侧出叉。（如为“U”形轨道或者道岔结构，则在堆垛机零点处，面向控制柜触摸屏，从左至右依次为1排，2排，3排，4排）。
B23: 10 | C23: 大小货位 | D23: 0、1、2 | E23: 大小货兼容货位按小货位发送列地址，默认值0，小货位写1，大货位时写2
B24: 11～18 | C24: 备用 | F24: 备用
B25: 19 | C25: 联机停车 | D25: 0 | E25: 紧急停车 | F25: 该字节单独下达，不随任务下达
D26: 1 | E26: 取消紧急停车
A28: 双叉堆垛机DB1：共20字节 | B28: 0 | C28: 读/写标志位 | D28: 0 | E28: 上位机对堆垛机报告运行应答 | F28: 收到堆垛机运行状态回复0
D29: 1 | E29: 上位机写入标记 | F29: 每次写入新命令为1
D30: 2 | E30: 上位机对下位机上报完成的应答 | F30: 收到堆垛机完成应答2
D31: 4 | E31: 上位机手动清除设备故障 | F31: 手动复位报警,(WCS发4之前先发0)
B32: 1 | C32: 设备指令 | D32: 1 | E32: 召回 | F32: 堆垛机升降和水平方向上都回到原点
D33: 2 | E33: 将取 | F33: 堆垛机货叉停在取货位置，不出叉
D34: 3 | E34: 将送 | F34: 堆垛机货叉停在送货位置，不出叉
D35: 4 | E35: 取货 | F35: 堆垛机伸叉取货
D36: 5 | E36: 送货 | F36: 堆垛机伸叉送货
D37: 6 | E37: 取送货 | F37: 取送货连续动作
D38: 9 | E38: 灭火 | F38: 打开消火栓灭火
B39: 2 | C39: 设备指令号 | D39: 1～30000 | E39: 设备命令唯一标准 | F39: 1～30000
B40: 3
B41: 4 | C41: 取货位列(X)坐标 | F41: 近叉所在列坐标值，即堆垛机取/送货时，近叉所在列坐标值（堆垛机定位以近叉为基准）。当只有远叉取货时，该值为实际列坐标值减1。堆垛机在取/送货输送机处的近叉货位定义为1列，远叉取/送货位定义为2列，货架起始列定义为3列
B42: 5 | C42: 取货位层(Y)坐标 | F42: 沿高度方向，最下层货架坐标是1，向上递增
B43: 6 | C43: 取货位排(Z1)坐标 | F43: 面向直道堆垛机控制柜触摸屏，近叉坐标：左侧为1，右侧为2。1表示左侧出叉，2表示右侧出叉，0表示货叉不动。
B44: 7 | C44: 取货位排(Z2)坐标 | F44: 面向直道堆垛机控制柜触摸屏，远叉坐标：左侧为1，右侧为2。1表示左侧出叉，2表示右侧出叉，0表示货叉不动。
B45: 8 | C45: 送货位列(X)坐标 | F45: 近叉所在列坐标值，即堆垛机取/送货时，近叉所在列坐标值（堆垛机定位以近叉为基准）。当只有远叉取货时，该值为实际列坐标值减1。堆垛机在取/送货输送机处的近叉货位定义为1列，远叉取/送货位定义为2列，货架起始列定义为3列
B46: 9 | C46: 送货位层(Y)坐标 | F46: 沿高度方向，最下层货架坐标是1，向上递增
B47: 10 | C47: 送货位排(Z1)坐标 | F47: 面向直道堆垛机控制柜触摸屏，近叉坐标：左侧为1，右侧为2。1表示左侧出叉，2表示右侧出叉，0表示货叉不动。
B48: 11 | C48: 送货位排(Z2)坐标 | F48: 面向直道堆垛机控制柜触摸屏，远叉坐标：左侧为1，右侧为2。1表示左侧出叉，2表示右侧出叉，0表示货叉不动。
B49: 12 | C49: 大小货位 | D49: 0、1、2 | E49: 大小货兼容货位按小货位发送列地址，默认值0，小货位写1，大货位时写2
B50: 13～18 | C50: 备用 | F50: 备用
B51: 19 | C51: 联机停车 | D51: 0 | E51: 紧急停车 | F51: 该字节单独下达，不随任务下达
D52: 1 | E52: 取消紧急停车
A54: 三叉堆垛机DB1：共20字节 | B54: 0 | C54: 读/写标志位 | D54: 0 | E54: 上位机对堆垛机报告运行应答 | F54: 收到堆垛机运行状态回复0
D55: 1 | E55: 上位机写入标记 | F55: 每次写入新命令为1
D56: 2 | E56: 上位机对下位机上报完成的应答 | F56: 收到堆垛机完成应答2
D57: 4 | E57: 上位机手动清除设备故障 | F57: 手动复位报警,(WCS发4之前先发0)
B58: 1 | C58: 设备指令 | D58: 1 | E58: 召回 | F58: 堆垛机升降和水平方向上都回到原点
D59: 2 | E59: 将取 | F59: 堆垛机货叉停在取货位置，不出叉
D60: 3 | E60: 将送 | F60: 堆垛机货叉停在送货位置，不出叉
D61: 4 | E61: 取货 | F61: 堆垛机伸叉取货
D62: 5 | E62: 送货 | F62: 堆垛机伸叉送货
D63: 6 | E63: 取送货 | F63: 取送货连续动作
D64: 7 | E64: 摄像头旋转 | F64: 堆垛机车载摄像头旋转
D65: 8 | E65: 摄像头测温 | F65: 堆垛机车载摄像头测温
D66: 9 | E66: 灭火 | F66: 打开消火栓灭火
B67: 2 | C67: 设备指令号 | D67: 1～30000 | E67: 设备命令唯一标志 | F67: 1～30000
B68: 3
B69: 4 | C69: 取货位列(X)坐标 | F69: 近叉所在列坐标值，即堆垛机取/送货时，近叉所在列坐标值（堆垛机定位以近叉为基准）。当只有远叉取货时，该值为实际列坐标值减2，中叉取货减1。堆垛机在取/送货输送机处的近叉货位定义为1列，中叉取/送货位定义为2列,远叉取/送货位定义为3列，货架起始列定义为4列
B70: 5 | C70: 取货位层(Y)坐标 | F70: 沿高度方向，最下层货架坐标是1，向上递增
B71: 6 | C71: 取货位排(Z1)坐标 | F71: 面向直道堆垛机控制柜触摸屏，近叉坐标：左侧为1，右侧为2。1表示左侧出叉，2表示右侧出叉，0表示货叉不动。
B72: 7 | C72: 取货位排(Z2)坐标 | F72: 面向直道堆垛机控制柜触摸屏，中叉坐标：左侧为1，右侧为2。1表示左侧出叉，2表示右侧出叉，0表示货叉不动。
B73: 8 | C73: 取货位排(Z3)坐标 | F73: 面向直道堆垛机控制柜触摸屏，远叉坐标：左侧为1，右侧为2。1表示左侧出叉，2表示右侧出叉，0表示货叉不动。
B74: 9 | C74: 送货位列(X)坐标 | F74: 近叉所在列坐标值，即堆垛机取/送货时，近叉所在列坐标值（堆垛机定位以近叉为基准）。当只有远叉取货时，该值为实际列坐标值减2，中叉取货减1。堆垛机在取/送货输送机处的近叉货位定义为1列，中叉取/送货位定义为2列,远叉取/送货位定义为3列，货架起始列定义为4列
B75: 10 | C75: 送货位层(Y)坐标 | F75: 沿高度方向，最下层货架坐标是1，向上递增
B76: 11 | C76: 送货位排(Z1)坐标 | F76: 面向直道堆垛机控制柜触摸屏，近叉坐标：左侧为1，右侧为2。1表示左侧出叉，2表示右侧出叉，0表示货叉不动。
B77: 12 | C77: 送货位排(Z2)坐标 | F77: 面向直道堆垛机控制柜触摸屏，中叉坐标：左侧为1，右侧为2。1表示左侧出叉，2表示右侧出叉，0表示货叉不动。
B78: 13 | C78: 送货位排(Z3)坐标 | F78: 面向直道堆垛机控制柜触摸屏，远叉坐标：左侧为1，右侧为2。1表示左侧出叉，2表示右侧出叉，0表示货叉不动。
B79: 14～18 | C79: 备用 | F79: 备用
B80: 19 | C80: 联机停车 | D80: 0 | E80: 紧急停车 | F80: 该字节单独下达，不随任务下达
D81: 1 | E81: 取消紧急停车
A83: 堆垛机上行消息:PLC->PC
A84: 堆垛机DB2：共20个字节 | B84: 0 | C84: 读/写标志位 | D84: 1 | E84: 写入数据 | F84: 电气更新状态时候，写入1
D85: 2 | E85: 读出数据正确
B86: 1 | C86: 设备状态 | D86: 0 | E86: 设备空闲
D87: 1 | E87: 任务执行
D88: 2 | E88: 任务完成
D89: other | E89: 设备故障 | F89: 具体参见故障代码
B90: 2 | C90: 任务号 | D90: 1～30000 | E90: 设备命令唯一标志 | F90: 即上位机下达任务时的任务号
B91: 3
B92: 4 | C92: 当前X测距值/坐标 | E92: 条码绝对值（mm）或者坐标（1,2） | F92: 沿轨道方向，数值>0;数值等于0时候，调度认为设备离线。
B93: 5
B94: 6
B95: 7
B96: 8 | C96: 当前Y测距值/坐标 | E96: 条码绝对值（mm）或者坐标（1,2） | F96: 沿高度方向，数值>0;数值等于0时候，调度认为设备离线。
B97: 9
B98: 10
B99: 11
B100: 12 | C100: Z坐标 | E100: 堆垛机所在巷道号 | F100: 只对道岔堆垛机有效，表示堆垛机所在的巷道（1,2,3.）；非道岔堆垛机默认都是0.
B104: 13 | C104: 堆垛机开关状态 | F104: 堆垛机设备用字节分别表示不同开关，如下：目前使用13位,14做扩展备用 13.0 叉1载货开关； 13.1 叉2载货开关； 13.2 叉3载货开关； 13.3 叉1中位开关； 13.4 叉2中位开关； 13.5 叉3中位开关； 13.6 联机停车状态（该位为0表示目前为联机停车状态；该位为1表示目前为取消联机停车状态） 13.7安全门申请进入，=1时安全门关闭可以下任务，=0时安全门打开
B105: 14
B106: 15 | C106: 货叉的状态 | D106: 0-8 | F106: 0:中位 1:向左第1伸位伸出 2:左第2伸位伸出 3:向左伸出到位 4:左回收 5:向右第1伸位伸出 6:右第2伸位伸出 7:向右伸出到位 8:右回收
B107: 16-19 | C107: 预留
A109: 堆垛机智能运维及3D上行消息:PLC->PC | B109: 堆垛机按照货叉个数分成： 单叉堆垛机、双叉堆垛机和三叉堆垛机。
A110: 堆垛机DB50：共200个字节 | B110: 0～1 | C110: 当前状态代码 | F110: 同当前DB2中设备状态字节
B111: 2～5 | C111: 行走运行里程（m） | E111: 设备从第一次上电起行走运行的总里程 | F111: 4个字节float型以米为单位表示当前行走运行里程的小于1千米部分
B112: 6～9 | C112: 行走运行里程（km） | F112: 4个字节float型以千米为单位表示当前行走运行里程的千米部分
B113: 10～13 | C113: 行走运行时间（s） | E113: 设备从第一次上电起行走运行的总时间 | F113: 4个字节float型以秒为单位表示当前行走运行时间的小于1小时部分
B114: 14～17 | C114: 行走运行时间（h） | F114: 4个字节float型以小时为单位表示当前行走运行时间的小时部分
B115: 18～21 | C115: 升降运行里程（m） | E115: 设备从第一次上电起升降运行的总里程 | F115: 4个字节float型以米为单位表示当前升降里程的小于1千米部分
B116: 22～25 | C116: 升降运行里程（km） | F116: 4个字节float型以千米为单位表示当前升降里程的千米部分
B117: 26～29 | C117: 升降运行时间（s） | E117: 设备从第一次上电起升降运行的总时间 | F117: 4个字节float型以秒为单位表示当前升降运行时间的小于1小时部分
B118: 30～33 | C118: 升降运行时间（h） | F118: 4个字节float型以小时为单位表示当前升降运行时间的小时部分
B119: 34～37 | C119: 货叉1运行时间（s） | E119: 设备从第一次上电起货叉1运行的总时间 | F119: 4个字节float型以秒为单位表示当前货叉1运行时间的小于1小时部分
B120: 38～41 | C120: 货叉1运行时间（h） | F120: 4个字节float型以小时为单位表示当前货叉1运行时间的小时部分
B121: 42～45 | C121: 货叉2运行时间（s） | E121: 设备从第一次上电起货叉2运行的总时间 | F121: 4个字节float型以秒为单位表示当前货叉2运行时间的小于1小时部分
B122: 46～49 | C122: 货叉2运行时间（h） | F122: 4个字节float型以小时为单位表示当前货叉2运行时间的小时部分
B123: 50～53 | C123: 货叉3运行时间（s） | E123: 设备从第一次上电起货叉3运行的总时间 | F123: 4个字节float型以秒为单位表示当前货叉3运行时间的小于1小时部分
B124: 54～57 | C124: 货叉3运行时间（h） | F124: 4个字节float型以小时为单位表示当前货叉3运行时间的小时部分
B125: 58～61 | C125: 机械原因报警时间（s） | E125: 设备从第一次上电起由于机械原因产生的报警总时长 | F125: 4个字节float型以秒为单位表示当前机械原因报警时间的小于1小时部分
B126: 62～65 | C126: 机械原因报警时间（h） | F126: 4个字节float型以小时为单位表示当前机械原因报警时间的小时部分
B127: 66～69 | C127: 电气原因报警时间（s） | E127: 设备从第一次上电起由于电气原因产生的报警总时长 | F127: 4个字节float型以秒为单位表示当前电气原因报警时间的小于1小时部分
B128: 70～73 | C128: 电气原因报警时间（h） | F128: 4个字节float型以小时为单位表示当前电气原因报警时间的小时部分
B129: 74～77 | C129: 其他原因报警时间（s） | E129: 设备从第一次上电起由于其他原因产生的报警总时长 | F129: 4个字节float型以秒为单位表示当前其他原因报警时间的小于1小时部分
B130: 78～81 | C130: 其他原因报警时间（h） | F130: 4个字节float型以小时为单位表示当前其他原因报警时间的小时部分
B131: 82～85 | C131: 机械原因故障时间（s） | E131: 设备从第一次上电起由于机械原因产生的故障总时长 | F131: 4个字节float型以秒为单位表示当前机械原因故障时间的小于1小时部分
B132: 86～89 | C132: 机械原因故障时间（h） | F132: 4个字节float型以小时为单位表示当前机械原因故障时间的小时部分
B133: 90～93 | C133: 电气原因故障时间（s） | E133: 设备从第一次上电起由于电气原因产生的故障总时长 | F133: 4个字节float型以秒为单位表示当前电气原因故障时间的小于1小时部分
B134: 94～97 | C134: 电气原因故障时间（h） | F134: 4个字节float型以小时为单位表示当前电气原因故障时间的小时部分
B135: 98～101 | C135: 其他原因故障时间（s） | E135: 设备从第一次上电起由于其他原因产生的故障总时长 | F135: 4个字节float型以秒为单位表示当前其他原因故障时间的小于1小时部分
B136: 102～105 | C136: 其他原因故障时间（h） | F136: 4个字节float型以小时为单位表示当前其他原因故障时间的小时部分
B137: 106～109 | C137: 执行任务时间（s） | E137: 设备从第一次上电起执行任务的总时长（单指上位机任务，不含半自动状态时的任务） | F137: 4个字节float型以秒为单位表示当前执行任务时间的小于1小时部分
B138: 110～113 | C138: 执行任务时间（h） | F138: 4个字节float型以小时为单位表示当前执行任务时间的小时部分
B139: 114～117 | C139: 设备检修时间（s） | E139: 暂定为设备从第一次上电起手动和半自动运行的时间 | F139: 4个字节float型以秒为单位表示当前设备检修时间的小于1小时部分
B140: 118～121 | C140: 设备检修时间（h） | F140: 4个字节float型以小时为单位表示当前设备检修时间的小时部分
B141: 122～125 | C141: 待机时间（s） | E141: 设备从第一次上电起既没有执行任务也没有进入手动和半自动状态，还没有故障及报警的时间总合 | F141: 4个字节float型以秒为单位表示当前待机时间的小于1小时部分
B142: 126～129 | C142: 待机时间（h） | F142: 4个字节float型以小时为单位表示当前待机时间的小时部分
B143: 130～133 | C143: 机械原因报警次数 | E143: 设备从第一次上电起由于机械原因产生的报警总次数
B144: 134～137 | C144: 电气原因报警次数 | E144: 设备从第一次上电起由于电气原因产生的报警总次数
B145: 138～141 | C145: 其它原因报警次数 | E145: 设备从第一次上电起由于其他原因产生的报警总次数
B146: 142～145 | C146: 机械原因故障次数 | E146: 设备从第一次上电起由于机械原因产生的故障总次数
B147: 146～149 | C147: 电气原因故障数 | E147: 设备从第一次上电起由于电气原因产生的故障总次数
B148: 150～153 | C148: 其它原因故障次数 | E148: 设备从第一次上电起由于其他原因产生的故障总次数
B149: 154～157 | C149: 执行任务次数 | E149: 设备从第一次上电起执行取送完整任务的次数（单指上位机任务，不含半自动状态时的任务）
B150: 158～161 | C150: 货叉1运行次数 | E150: 设备从第一次上电起1货叉运行的完整次数（一次伸叉+收叉记为一次运行）
B151: 162～165 | C151: 货叉2运行次数 | E151: 设备从第一次上电起2货叉运行的完整次数（一次伸叉+收叉记为一次运行）
B152: 166～169 | C152: 货叉3运行次数 | E152: 设备从第一次上电起3货叉运行的完整次数（一次伸叉+收叉记为一次运行）
B153: 170～173 | C153: 行走加速度
B154: 174～177 | C154: 行走速度
B155: 178～181 | C155: 提升加速度
B156: 182～185 | C156: 提升速度
B157: 186 | C157: 叉运行方向 | D157: 1 | E157: 中位
D158: 2 | E158: 左伸出
D159: 3 | E159: 右伸出
B160: 187 | C160: 塔灯开关状态位 | F160: 187.0 红灯位，187.1 绿灯位，187.2 黄灯位，187.3 蜂鸣位（true为灯亮或蜂鸣）
B161: 188～199 | C161: 备用
A163: 注释：双申堆垛机按照单叉堆垛机协议执行

Sheet 原料常温库堆垛机
A1: 原料常温库堆垛机
B3: 设备DB1长度 | C3: 20
B4: 设备DB2长度 | C4: 20
B5: 设备DB1起始位 | C5: 0
B6: 设备DB2起始位 | C6: 0
B7: 设备光电位 | C7: 13
B8: 光电位1 | C8: 0 | D8: 光电内容1 | E8: 货物检测
B9: 光电位2 | C9: 1 | D9: 光电内容2
B10: 光电位2 | C10: 2 | D10: 光电内容3
B11: 光电位2 | C11: 3 | D11: 光电内容4
B12: 光电位2 | C12: 4 | D12: 光电内容5
B13: 光电位2 | C13: 5 | D13: 光电内容6
B14: 光电位2 | C14: 6 | D14: 光电内容7
B15: 光电位2 | C15: 7 | D15: 光电内容8
B16: 设备起始设备号 | C16: 11101
B17: 注意：常温库堆垛机电控柜朝南和库后12401-12462之间设备公用一个主站PLC
B18: 设备编号 | C18: ="DB1起止地址（"&$C$3&"个字节）" -> DB1起止地址（20个字节） | E18: ="DB2起止地址（"&$C$4&"个字节）" -> DB2起止地址（20个字节） | G18: 备注 | H18: 三维和智能运维DB50地址
C19: 起始 | D19: 终止 | E19: 起始 | F19: 终止 | G19: 光电信号
B20: =$C$16 -> 11101 | C20: ="DB1.DBB"&($C$5+(ROW()-20)*$C$3) -> DB1.DBB0 | D20: ="DB1.DBB"&(C$5+(ROW()-19)*C$3-1) -> DB1.DBB19 | E20: ="DB2.DBB"&($C$6+(ROW()-20)*$C$4) -> DB2.DBB0 | F20: ="DB2.DBB"&(C$5+(ROW()-19)*C$3-1) -> DB2.DBB19 | G20: =IF($E$8<>"","DBB "&($C$5+(ROW()-20)*$C$3+$C$7)&"."&$C$8&" - "&$E$8,"")&IF($E$9<>"",CHAR(10)&"DBB "&($C$5+(ROW()-20)*$C$3+$C$7)&"."&$C$9&" - "&$E$9,"")&IF($E$10<>"",CHAR(10)&"DBB "&($C$5+(ROW()-20)*$C$3+$C$7)&"."&$C$10&" - "&$E$10,"")&IF($E$11<>"",CHAR(10)&"DBB "&($C$5+(ROW()-20)*$C$3+$C$7)&"."&$C$11&" - "&$E$11,"")&IF($E$12<>"",CHAR(10)&"DBB "&($C$5+(ROW()-20)*$C$3+$C$7)&"."&$C$12&" - "&$E$12,"")&IF($E$13<>"",CHAR(10)&"DBB "&($C$5+(ROW()-20)*$C$3+$C$7)&"."&$C$13&" - "&$E$13,"")&IF($E$14<>"",CHAR(10)&"DBB "&($C$5+(ROW()-20)*$C$3+$C$7)&"."&$C$14&" - "&$E$14,"")&IF($E$15<>"",CHAR(10)&"DBB "&($C$5+(ROW()-20)*$C$3+$C$7)&"."&$C$15&" - "&$E$15,"") -> DBB 13.0 - 货物检测 | H20: 0
B21: =B20+1 -> 11102 | C21: DB1.DBB0 | D21: DB1.DBB19 | E21: DB2.DBB0 | F21: DB2.DBB19 | G21: DBB 13.0 - 货物检测 | H21: 200
B22: =B21+1 -> 11103 | C22: DB1.DBB0 | D22: DB1.DBB19 | E22: DB2.DBB0 | F22: DB2.DBB19 | G22: DBB 13.0 - 货物检测 | H22: 400
B23: 11104 | C23: DB1.DBB0 | D23: DB1.DBB19 | E23: DB2.DBB0 | F23: DB2.DBB19 | G23: DBB 13.0 - 货物检测 | H23: 600
B24: 11105 | C24: DB1.DBB0 | D24: DB1.DBB19 | E24: DB2.DBB0 | F24: DB2.DBB19 | G24: DBB 13.0 - 货物检测 | H24: 800
B25: 11106 | C25: DB1.DBB0 | D25: DB1.DBB19 | E25: DB2.DBB0 | F25: DB2.DBB19 | G25: DBB 13.0 - 货物检测 | H25: 1000
B26: 11107 | C26: DB1.DBB0 | D26: DB1.DBB19 | E26: DB2.DBB0 | F26: DB2.DBB19 | G26: DBB 13.0 - 货物检测 | H26: 1200
B27: 11108 | C27: DB1.DBB0 | D27: DB1.DBB19 | E27: DB2.DBB0 | F27: DB2.DBB19 | G27: DBB 13.0 - 货物检测 | H27: 1400
B28: 11109 | C28: DB1.DBB0 | D28: DB1.DBB19 | E28: DB2.DBB0 | F28: DB2.DBB19 | G28: DBB 13.0 - 货物检测 | H28: 1600
B29: 11110 | C29: DB1.DBB0 | D29: DB1.DBB19 | E29: DB2.DBB0 | F29: DB2.DBB19 | G29: DBB 13.0 - 货物检测 | H29: 1800
B30: 11111 | C30: DB1.DBB0 | D30: DB1.DBB19 | E30: DB2.DBB0 | F30: DB2.DBB19 | G30: DBB 13.0 - 货物检测 | H30: 2000
B31: 11112 | C31: DB1.DBB0 | D31: DB1.DBB19 | E31: DB2.DBB0 | F31: DB2.DBB19 | G31: DBB 13.0 - 货物检测 | H31: 2200
B32: 11113 | C32: DB1.DBB0 | D32: DB1.DBB19 | E32: DB2.DBB0 | F32: DB2.DBB19 | G32: DBB 13.0 - 货物检测 | H32: 2400
B33: 11114 | C33: DB1.DBB0 | D33: DB1.DBB19 | E33: DB2.DBB0 | F33: DB2.DBB19 | G33: DBB 13.0 - 货物检测 | H33: 2600
B34: 11115 | C34: DB1.DBB0 | D34: DB1.DBB19 | E34: DB2.DBB0 | F34: DB2.DBB19 | G34: DBB 13.0 - 货物检测 | H34: 2800
B35: 11116 | C35: DB1.DBB0 | D35: DB1.DBB19 | E35: DB2.DBB0 | F35: DB2.DBB19 | G35: DBB 13.0 - 货物检测 | H35: 3000
B36: 11117 | C36: DB1.DBB0 | D36: DB1.DBB19 | E36: DB2.DBB0 | F36: DB2.DBB19 | G36: DBB 13.0 - 货物检测 | H36: 3200
B37: 11118 | C37: DB1.DBB0 | D37: DB1.DBB19 | E37: DB2.DBB0 | F37: DB2.DBB19 | G37: DBB 13.0 - 货物检测 | H37: 3400
B38: 11119 | C38: DB1.DBB0 | D38: DB1.DBB19 | E38: DB2.DBB0 | F38: DB2.DBB19 | G38: DBB 13.0 - 货物检测 | H38: 3600
B39: 11120 | C39: DB1.DBB0 | D39: DB1.DBB19 | E39: DB2.DBB0 | F39: DB2.DBB19 | G39: DBB 13.0 - 货物检测 | H39: 3800
B40: 11121 | C40: DB1.DBB0 | D40: DB1.DBB19 | E40: DB2.DBB0 | F40: DB2.DBB19 | G40: DBB 13.0 - 货物检测 | H40: 4000

Sheet 原料恒温库堆垛机
A1: 原料恒温库堆垛机
B3: 设备DB1长度 | C3: 20
B4: 设备DB2长度 | C4: 20
B5: 设备DB1起始位 | C5: 0
B6: 设备DB2起始位 | C6: 0
B7: 设备光电位 | C7: 13
B8: 光电位1 | C8: 0 | D8: 光电内容1 | E8: 货物检测
B9: 光电位2 | C9: 1 | D9: 光电内容2
B10: 光电位2 | C10: 2 | D10: 光电内容3
B11: 光电位2 | C11: 3 | D11: 光电内容4
B12: 光电位2 | C12: 4 | D12: 光电内容5
B13: 光电位2 | C13: 5 | D13: 光电内容6
B14: 光电位2 | C14: 6 | D14: 光电内容7
B15: 光电位2 | C15: 7 | D15: 光电内容8
B16: 设备起始设备号 | C16: 11201
B17: 注意：恒温库堆垛机和12234右侧设备公用一个主站PLC | H17: 三维和智能运维DB50地址
B18: 设备编号 | C18: ="DB1起止地址（"&$C$3&"个字节）" -> DB1起止地址（20个字节） | E18: ="DB2起止地址（"&$C$4&"个字节）" -> DB2起止地址（20个字节） | G18: 备注
C19: 起始 | D19: 终止 | E19: 起始 | F19: 终止 | G19: 光电信号
B20: =$C$16 -> 11201 | C20: ="DB1.DBB"&($C$5+(ROW()-20)*$C$3) -> DB1.DBB0 | D20: ="DB1.DBB"&(C$5+(ROW()-19)*C$3-1) -> DB1.DBB19 | E20: ="DB2.DBB"&($C$6+(ROW()-20)*$C$4) -> DB2.DBB0 | F20: ="DB2.DBB"&(C$5+(ROW()-19)*C$3-1) -> DB2.DBB19 | G20: =IF($E$8<>"","DBB "&($C$5+(ROW()-20)*$C$3+$C$7)&"."&$C$8&" - "&$E$8,"")&IF($E$9<>"",CHAR(10)&"DBB "&($C$5+(ROW()-20)*$C$3+$C$7)&"."&$C$9&" - "&$E$9,"")&IF($E$10<>"",CHAR(10)&"DBB "&($C$5+(ROW()-20)*$C$3+$C$7)&"."&$C$10&" - "&$E$10,"")&IF($E$11<>"",CHAR(10)&"DBB "&($C$5+(ROW()-20)*$C$3+$C$7)&"."&$C$11&" - "&$E$11,"")&IF($E$12<>"",CHAR(10)&"DBB "&($C$5+(ROW()-20)*$C$3+$C$7)&"."&$C$12&" - "&$E$12,"")&IF($E$13<>"",CHAR(10)&"DBB "&($C$5+(ROW()-20)*$C$3+$C$7)&"."&$C$13&" - "&$E$13,"")&IF($E$14<>"",CHAR(10)&"DBB "&($C$5+(ROW()-20)*$C$3+$C$7)&"."&$C$14&" - "&$E$14,"")&IF($E$15<>"",CHAR(10)&"DBB "&($C$5+(ROW()-20)*$C$3+$C$7)&"."&$C$15&" - "&$E$15,"") -> DBB 13.0 - 货物检测 | H20: 0
B21: =B20+1 -> 11202 | C21: DB1.DBB0 | D21: DB1.DBB19 | E21: DB2.DBB0 | F21: DB2.DBB19 | G21: DBB 13.0 - 货物检测 | H21: 200
B22: =B21+1 -> 11203 | C22: DB1.DBB0 | D22: DB1.DBB19 | E22: DB2.DBB0 | F22: DB2.DBB19 | G22: DBB 13.0 - 货物检测 | H22: 400
B23: 11204 | C23: DB1.DBB0 | D23: DB1.DBB19 | E23: DB2.DBB0 | F23: DB2.DBB19 | G23: DBB 13.0 - 货物检测 | H23: 600
B24: 11205 | C24: DB1.DBB0 | D24: DB1.DBB19 | E24: DB2.DBB0 | F24: DB2.DBB19 | G24: DBB 13.0 - 货物检测 | H24: 800
B25: 11206 | C25: DB1.DBB0 | D25: DB1.DBB19 | E25: DB2.DBB0 | F25: DB2.DBB19 | G25: DBB 13.0 - 货物检测 | H25: 1000
B26: 11207 | C26: DB1.DBB0 | D26: DB1.DBB19 | E26: DB2.DBB0 | F26: DB2.DBB19 | G26: DBB 13.0 - 货物检测 | H26: 1200
B27: 11208 | C27: DB1.DBB0 | D27: DB1.DBB19 | E27: DB2.DBB0 | F27: DB2.DBB19 | G27: DBB 13.0 - 货物检测 | H27: 1400
B28: 11209 | C28: DB1.DBB0 | D28: DB1.DBB19 | E28: DB2.DBB0 | F28: DB2.DBB19 | G28: DBB 13.0 - 货物检测 | H28: 1600
B29: 11210 | C29: DB1.DBB0 | D29: DB1.DBB19 | E29: DB2.DBB0 | F29: DB2.DBB19 | G29: DBB 13.0 - 货物检测 | H29: 1800
B30: 11211 | C30: DB1.DBB0 | D30: DB1.DBB19 | E30: DB2.DBB0 | F30: DB2.DBB19 | G30: DBB 13.0 - 货物检测 | H30: 2000
B31: 11212 | C31: DB1.DBB0 | D31: DB1.DBB19 | E31: DB2.DBB0 | F31: DB2.DBB19 | G31: DBB 13.0 - 货物检测 | H31: 2200
B32: 11213 | C32: DB1.DBB0 | D32: DB1.DBB19 | E32: DB2.DBB0 | F32: DB2.DBB19 | G32: DBB 13.0 - 货物检测 | H32: 2400
B33: 11214 | C33: DB1.DBB0 | D33: DB1.DBB19 | E33: DB2.DBB0 | F33: DB2.DBB19 | G33: DBB 13.0 - 货物检测 | H33: 2600

Sheet 穿梭车（提升机）数据区
A1: 设备类型 | B1: 字节索引 | C1: 代表意义 | D1: 取值 | E1: 值含义 | F1: 备注
A2: 穿梭车下行消息 PC->PLC | B2: 穿梭车按照货位个数分成 单货位穿梭车、双工位双叉、双工位单叉
A3: 单工位穿梭车DB1：共10字节 | B3: 0 | C3: 读/写标志位 | D3: 0 | E3: 穿梭车运行应答 | F3: 穿梭车报告运行状态回复0
D4: 1 | E4: 上位机写入标记 | F4: 每次写入新命令为1
D5: 2 | E5: 上位机对下位机上报状态的应答 | F5: 穿梭车报告完成状态为回复2
D6: 4 | E6: 上位机手动清除设备故障 | F6: 手动复位报警,(WCS发4之前先发0)
B7: 1 | C7: 设备指令 | D7: 2 | E7: 取货 | F7: 到指定位置取货
D8: 3 | E8: 送货 | F8: 到指定位置送货
D9: 7 | E9: 运动 | F9: 穿梭车运动到指定位置
B10: 2 | C10: 任务号 | D10: 1～30000 | E10: 任务唯一标示 | F10: 范围:1～30000。
B11: 3
B12: 4 | C12: 目标输送机号 | F12: 穿梭车停靠位置，由于现场设备编号可能超出两个字节的范围，因此把设备编号改为4字节存储。
B13: 5
B14: 6
B15: 7
B16: 8～9 | C16: 备用
A18: 多工位穿梭车DB1：共16字节 类似双申堆垛机 | B18: 0 | C18: 读/写标志位 | D18: 0 | E18: 穿梭车运行应答 | F18: 穿梭车报告运行状态回复0
D19: 1 | E19: 上位机写入标记 | F19: 每次写入新命令为1
D20: 2 | E20: 上位机对下位机上报状态的应答 | F20: 穿梭车报告完成状态为回复2
D21: 4 | E21: 上位机手动清除设备故障 | F21: 手动复位报警,(WCS发4之前先发0)
B22: 1 | C22: 设备指令 | D22: 2 | E22: 取货 | F22: 到指定位置取货
D23: 3 | E23: 送货 | F23: 到指定位置送货
D24: 7 | E24: 运动 | F24: 穿梭车运动到指定位置
B25: 2 | C25: 任务号 | D25: 1～30000 | E25: 任务唯一标示 | F25: 范围:1～30000
B26: 3
B27: 4 | C27: 目标输送机号 | F27: 穿梭车停靠位置，由于现场设备编号可能超出两个字节的范围，因此把设备编号改为4字节存储。
B28: 5
B29: 6
B30: 7
B31: 8 | C31: 取货个数标记 | D31: 1,2,3 | F31: 取货/放货的个数。穿梭车自动判断左右，调度软件负责记录货物位置和取送货顺序逻辑。
B32: 9～14 | C32: 备用 | F32: 备用
B33: 15 | C33: 联机停车 | D33: 0 | E33: 紧急停车 | F33: 该字节单独下达，不随任务下达
D34: 1 | E34: 取消紧急停车
A36: 双工位穿梭车DB1：共16字节 两个货叉能同时取货，同时送货；也能单独取货，单独送货 | B36: 0 | C36: 读/写标志位 | D36: 0 | E36: 穿梭车运行应答 | F36: 穿梭车报告运行状态回复0
D37: 1 | E37: 上位机写入标记 | F37: 每次写入新命令为1
D38: 2 | E38: 上位机对下位机上报状态的应答 | F38: 穿梭车报告完成状态为回复2
D39: 4 | E39: 上位机手动清除设备故障 | F39: 手动复位报警,(WCS发4之前先发0)
B40: 1 | C40: 设备指令 | D40: 2 | E40: 取货 | F40: 到指定位置取货
D41: 3 | E41: 送货 | F41: 到指定位置送货
D42: 7 | E42: 运动 | F42: 穿梭车运动到指定位置
B43: 2 | C43: 任务号 | D43: 1～30000 | E43: 任务唯一标示 | F43: 范围:1～30000
B44: 3
B45: 4 | C45: 目标位置 | F45: 穿梭车停靠位置，由于现场设备编号可能超出两个字节的范围，因此把设备编号改为4字节存储。
B46: 5
B47: 6
B48: 7
B49: 8 | C49: 叉编码 | F49: 1叉或者2叉，3为双叉
B50: 9～14 | C50: 备用 | F50: 备用
B51: 15 | C51: 联机停车 | D51: 0 | E51: 紧急停车 | F51: 该字节单独下达，不随任务下达
D52: 1 | E52: 取消紧急停车
A53: 注释：1叉，2叉定义类似堆垛机，面对穿梭车控制柜，距离近的是1叉，距离远的是2叉；
A54: Z1、Z2 取值，面对穿梭车控制柜，左侧1，右侧2；0表示不出叉；
A56: 环型穿梭车DB1：共12字节 | B56: 0 | C56: 读/写标志位 | D56: 0 | E56: 穿梭车运行应答 | F56: 穿梭车报告运行状态回复0
D57: 1 | E57: 上位机写入标记 | F57: 每次写入新命令为1
D58: 2 | E58: 上位机对下位机上报状态的应答 | F58: 穿梭车报告完成状态为回复2
D59: 4 | E59: 上位机手动清除设备故障 | F59: 手动复位报警,(WCS发4之前先发0)
B60: 1 | C60: 设备指令 | D60: 2 | E60: 取货 | F60: 到指定位置取货
D61: 3 | E61: 送货 | F61: 到指定位置送货
D62: 7 | E62: 运动 | F62: 穿梭车运动到指定位置
D63: 8 | E63: 取送货
B64: 2 | C64: 任务号 | D64: 1～30000 | E64: 任务唯一标示 | F64: 范围:1～30000。
B65: 3
B66: 4 | C66: 取货输送机号 | E66: 环型穿梭车取货/运动时所在输送机的编号，单独送货时值为0
B67: 5
B68: 6
B69: 7
B70: 8～11 | C70: 送货输送机号 | E70: 环型穿梭车送货时所在输送机的编号，单独取货时值为0
A73: 穿梭车上行消息 PLC-> PC
A74: 穿梭车DB2：共12个字节 | B74: 0 | C74: 读/写标志位 | D74: 1 | E74: 写入数据
D75: 2 | E75: 读出数据正确
B76: 1 | C76: 设备状态 | D76: 0 | E76: 设备空闲
D77: 1 | E77: 任务执行
D78: 2 | E78: 任务完成
D79: other | E79: 设备故障 | F79: 具体参见故障代码
B80: 2 | C80: 任务号 | D80: 1～30000 | E80: 任务唯一标示 | F80: 即上位机下达任务时的任务号
B81: 3
B82: 4 | C82: 当前X测距值/坐标 | E82: 条码绝对值（mm）或者坐标（1,2） | F82: 沿轨道方向，数值>0;数值等于0时候，调度认为设备离线。
B83: 5
B84: 6
B85: 7
B86: 8 | C86: 穿梭车开关状态 | F86: 穿梭车设备用字节分别表示不同开关，如下： .0 叉1载货开关； .1 叉2载货开关； .2 叉3载货开关； .3 叉1中位开关； .4 叉2中位开关； .5 叉3中位开关；
B87: 9
B88: 10 | C88: 穿梭车输送线状态 | D88: 0,1,2 | F88: 0不动 1正转 2反转
B89: 11 | C89: 预留
A98: 穿梭车智能运维及3D上行消息:PLC->PC | B98: 堆垛机按照货叉个数分成： 单叉堆垛机、双叉堆垛机和三叉堆垛机。
A99: 穿梭车DB50：共170个字节 | B99: 0～1 | C99: 当前状态代码 | F99: 同当前DB2中设备状态字节
B100: 2～5 | C100: 行走运行里程（m） | E100: 设备从第一次上电起行走运行的总里程 | F100: 4个字节float型以米为单位表示当前行走运行里程的小于1千米部分
B101: 6～9 | C101: 行走运行里程（km） | F101: 4个字节float型以千米为单位表示当前行走运行里程的千米部分
B102: 10～13 | C102: 行走运行时间（s） | E102: 设备从第一次上电起行走运行的总时间 | F102: 4个字节float型以秒为单位表示当前行走运行时间的小于1小时部分
B103: 14～17 | C103: 行走运行时间（h） | F103: 4个字节float型以小时为单位表示当前行走运行时间的小时部分
B104: 18～21 | C104: 输送机1运行时间（s） | E104: 设备从第一次上电起输送机1运行的总时间 | F104: 4个字节float型以秒为单位表示当前货叉1运行时间的小于1小时部分
B105: 22～25 | C105: 输送机1运行时间（h） | F105: 4个字节float型以小时为单位表示当前货叉1运行时间的小时部分
B106: 26～29 | C106: 输送机2运行时间（s） | E106: 设备从第一次上电起输送机2运行的总时间 | F106: 4个字节float型以秒为单位表示当前货叉2运行时间的小于1小时部分
B107: 30～33 | C107: 输送机2运行时间（h） | F107: 4个字节float型以小时为单位表示当前货叉2运行时间的小时部分
B108: 34～37 | C108: 输送机3运行时间（s） | E108: 设备从第一次上电起输送机3运行的总时间 | F108: 4个字节float型以秒为单位表示当前货叉3运行时间的小于1小时部分
B109: 38～41 | C109: 输送机3运行时间（h） | F109: 4个字节float型以小时为单位表示当前货叉3运行时间的小时部分
B110: 42～45 | C110: 机械原因报警时间（s） | E110: 设备从第一次上电起由于机械原因产生的报警总时长 | F110: 4个字节float型以秒为单位表示当前机械原因报警时间的小于1小时部分
B111: 46～49 | C111: 机械原因报警时间（h） | F111: 4个字节float型以小时为单位表示当前机械原因报警时间的小时部分
B112: 50～53 | C112: 电气原因报警时间（s） | E112: 设备从第一次上电起由于电气原因产生的报警总时长 | F112: 4个字节float型以秒为单位表示当前电气原因报警时间的小于1小时部分
B113: 54～57 | C113: 电气原因报警时间（h） | F113: 4个字节float型以小时为单位表示当前电气原因报警时间的小时部分
B114: 58～61 | C114: 其他原因报警时间（s） | E114: 设备从第一次上电起由于其他原因产生的报警总时长 | F114: 4个字节float型以秒为单位表示当前其他原因报警时间的小于1小时部分
B115: 62～65 | C115: 其他原因报警时间（h） | F115: 4个字节float型以小时为单位表示当前其他原因报警时间的小时部分
B116: 66～69 | C116: 机械原因故障时间（s） | E116: 设备从第一次上电起由于机械原因产生的故障总时长 | F116: 4个字节float型以秒为单位表示当前机械原因故障时间的小于1小时部分
B117: 70～73 | C117: 机械原因故障时间（h） | F117: 4个字节float型以小时为单位表示当前机械原因故障时间的小时部分
B118: 74～77 | C118: 电气原因故障时间（s） | E118: 设备从第一次上电起由于电气原因产生的故障总时长 | F118: 4个字节float型以秒为单位表示当前电气原因故障时间的小于1小时部分
B119: 78～81 | C119: 电气原因故障时间（h） | F119: 4个字节float型以小时为单位表示当前电气原因故障时间的小时部分
B120: 82～85 | C120: 其他原因故障时间（s） | E120: 设备从第一次上电起由于其他原因产生的故障总时长 | F120: 4个字节float型以秒为单位表示当前其他原因故障时间的小于1小时部分
B121: 86～89 | C121: 其他原因故障时间（h） | F121: 4个字节float型以小时为单位表示当前其他原因故障时间的小时部分
B122: 90～93 | C122: 执行任务时间（s） | E122: 设备从第一次上电起执行任务的总时长（单指上位机任务，不含半自动状态时的任务） | F122: 4个字节float型以秒为单位表示当前执行任务时间的小于1小时部分
B123: 94～97 | C123: 执行任务时间（h） | F123: 4个字节float型以小时为单位表示当前执行任务时间的小时部分
B124: 98～101 | C124: 设备检修时间（s） | E124: 暂定为设备从第一次上电起手动和半自动运行的时间 | F124: 4个字节float型以秒为单位表示当前设备检修时间的小于1小时部分
B125: 102～105 | C125: 设备检修时间（h） | F125: 4个字节float型以小时为单位表示当前设备检修时间的小时部分
B126: 106～109 | C126: 待机时间（s） | E126: 设备从第一次上电起既没有执行任务也没有进入手动和半自动状态，还没有故障及报警的时间总合 | F126: 4个字节float型以秒为单位表示当前待机时间的小于1小时部分
B127: 110～113 | C127: 待机时间（h） | F127: 4个字节float型以小时为单位表示当前待机时间的小时部分
B128: 114～117 | C128: 机械原因报警次数 | E128: 设备从第一次上电起由于机械原因产生的报警总次数
B129: 118～121 | C129: 电气原因报警次数 | E129: 设备从第一次上电起由于电气原因产生的报警总次数
B130: 122～125 | C130: 其它原因报警次数 | E130: 设备从第一次上电起由于其他原因产生的报警总次数
B131: 126～129 | C131: 机械原因故障次数 | E131: 设备从第一次上电起由于机械原因产生的故障总次数
B132: 130～133 | C132: 电气原因故障数 | E132: 设备从第一次上电起由于电气原因产生的故障总次数
B133: 134～137 | C133: 其它原因故障次数 | E133: 设备从第一次上电起由于其他原因产生的故障总次数
B134: 138～141 | C134: 执行任务次数 | E134: 设备从第一次上电起执行完整任务的次数（单指上位机任务，不含半自动状态时的任务）
B135: 142～145 | C135: 行走加速度
B136: 146～149 | C136: 行走速度
B137: 150 | C137: 塔灯开关状态位 | F137: 150.0 红灯位，150.1 绿灯位，150.2 黄灯位，150.3 蜂鸣位
B138: 151-169 | C138: 备用
A140: 注释：多叉穿梭车，PLC只负责上报调度下达的任务号，多个货物关联任务处理有调度软件负责；

Sheet 输送线类数据区说明
A1: 设备类型 | B1: 字节索引 | C1: 代表意义 | D1: 取值 | E1: 值含义 | F1: 备注
A2: 输送线下行消息PC->PLC | B2: 输送线类设备包括：输送机、提升机、叠盘机、拆盘机
A3: 输送机DB1：共10字节（部分20字节） | B3: 0 | C3: 读/写标志位 | D3: 1 | E3: 写入数据 | F3: 虚拟站台只用到该读/写标志位字节，即上位机对下位机上报完成的应答，其它字节备用。
D4: 2 | E4: 读出数据正确 | F4: 上位机对下位机上报状态的应答或是用于清除设备故障
B5: 1 | C5: 设备指令 | D5: 1 | E5: 电机正转 | F5: （任务起点设备与目标设备相同，即本输送机移载）
D6: 2 | E6: 电机反转
D7: 3 | E7: 伸手扫脚墩码
D8: 6 | E8: 送出 | F8: 任务起点设备与目标设备不同，即从当前输送机输送至目标输送机
B13: 2 | C13: 任务号 | D13: 1～30000 | F13: 范围:1～30000
B14: 3
B15: 4 | C15: 目标输送线设备号 | F15: 命令是正转或者反转时候，值为0代表单一设备控制，无目标设备编号。 命令是送出的时候，表示目标设备编号，由于现场设备编号可能超出两个字节的范围，因此把设备编号改为4字节存储。
B16: 5
B17: 6
B18: 7
B19: 8 | C19: 电池类型
B20: 9 | C20: 空
A24: 双任务输送机或者双任务顶升站台DB1：共10字节 | B24: 0 | C24: 读/写标志位 | D24: 1 | E24: 写入数据 | F24: 虚拟站台只用到该读/写标志位字节，即上位机对下位机上报完成的应答，其它字节备用。
D25: 2 | E25: 读出数据正确 | F25: 上位机对下位机上报状态的应答或是用于清除设备故障
B26: 1 | C26: 设备指令 | D26: 1 | E26: 电机正转 | F26: （任务起点设备与目标设备相同，即本输送机移载）
D27: 2 | E27: 电机反转
D28: 6 | E28: 送出 | F28: 任务起点设备与目标设备不同，即从当前输送机输送至目标输送机
B29: 2 | C29: 任务号1 | D29: 1～30000 | F29: 范围:1～30000，对应堆垛机货叉2位置任务号（近货架）
B30: 3
B31: 4 | C31: 任务号2 | D31: 1～30000 | F31: 范围:1～30000，对应堆垛机货叉1位置任务号（远货架）
B32: 5
B33: 6 | C33: 目标输送线设备号 | F33: 命令是正转或者反转时候，值为0代表单一设备控制，无目标设备编号。 命令是送出的时候，表示目标设备编号，由于现场设备编号可能超出两个字节的范围，因此把设备编号改为4字节存储。
B34: 7
B35: 8
B36: 9
A38: 三任务输送机或者三任务顶升站台DB1：共12字节 | B38: 0 | C38: 读/写标志位 | D38: 1 | E38: 写入数据 | F38: 虚拟站台只用到该读/写标志位字节，即上位机对下位机上报完成的应答，其它字节备用。
D39: 2 | E39: 读出数据正确 | F39: 上位机对下位机上报状态的应答或是用于清除设备故障
B40: 1 | C40: 设备指令 | D40: 1 | E40: 电机正转 | F40: （任务起点设备与目标设备相同，即本输送机移载）
D41: 2 | E41: 电机反转
D42: 6 | E42: 送出 | F42: 任务起点设备与目标设备不同，即从当前输送机输送至目标输送机
B43: 2 | C43: 任务号1 | D43: 1～30000 | F43: 范围:1～30000，对应堆垛机货叉3位置任务号（近货架）
B44: 3
B45: 4 | C45: 任务号2 | D45: 1～30000 | F45: 范围:1～30000，对应堆垛机货叉2位置任务号
B46: 5
B47: 6 | C47: 任务号3 | D47: 1～30000 | F47: 范围:1～30000，对应堆垛机货叉1位置任务号（远货架）
B48: 7
B49: 8 | C49: 目标输送线设备号 | F49: 命令是正转或者反转时候，值为0代表单一设备控制，无目标设备编号。 命令是送出的时候，表示目标设备编号，由于现场设备编号可能超出两个字节的范围，因此把设备编号改为4字节存储。
B50: 9
B51: 10
B52: 11
A57: 输送线上行消息 PLC->PC
A58: 单任务输送机或顶升站台 （共10个字节） | B58: 0 | C58: 读/写标志位 | D58: 1 | E58: 写入数据
D59: 2 | E59: 读出数据正确
B60: 1 | C60: 设备状态 | D60: 0 | E60: 设备空闲
D61: 1 | E61: 任务执行
D62: 2 | E62: 任务完成 | F62: 送出命令，只有在目标(终点)输送设备上才报告完成
D63: other | E63: 设备故障 | F63: 具体参见故障代码
B64: 2 | C64: 任务号 | D64: 1～30000 | F64: 即上位机下达任务时的任务号
B65: 3
B66: 4 | C66: 输送线开关状态 | F66: 输送机设备用字节分别表示不同开关，如下： 4.0 输送线或顶升有货开关（正转入口）； 4.1 输送线或顶升有货开关（正转出口）； 4.2 顶升站台高位开关；（提升机或者顶升移栽 0:表示在低位置 1:表示在高的位置，和顶升移栽一样） (转台的时候 0:表示0度位置 1:表示90度的位置) 4.3 顶升站台低位开关； 4.4 -堆垛机允许输送线动作（1-允许，0-不允许） 4.5 -输送线允许堆垛机动作（1-允许，0-不允许） 4.6 -是否允许AGV等移动设备在其取货（1-允许，0-不允许） 4.7 -是否允许AGV等移动设备向其送货（1-允许，0-不允许） 5.0 -在对接基其他厂家设备时，是否收到其前端（上一节）设备的货物申请申请进入信号（1-收到，0-未收到） 5.1 -在对接基其他厂家设备时，是否允许其前端（上一节）设备的货物进入信号（1-允许，0-不允许） 5.2 -在对接基其他厂家设备时，是否向其后端（下一节）设备发送货物申请进入信号（1-发送，0-未发送） 5.3 -在对接基其他厂家设备时，是否收到其后端（下一节）设备的允许货物进入信号（1-收到，0-未收到）
B67: 5
B68: 6 | C68: 输送线运行状态 | D68: 1 | E68: 正在上升（针对顶升） | F68: 注意： 输送线设备输送线为单向的时候，报0或者3都行,，双向的时候报3和4)，顶升移栽,转台，提升机等 1,2表示顶升移栽和提升机上升和下降，单向的时候报3，双向的时候，报3,4
D69: 2 | E69: 正在下降（针对顶升）
D70: 3 | E70: 正在正转（针对输送及顶升上的输送）
D71: 4 | E71: 正在反转（针对输送及顶升上的输送）
D72: 5 | E72: 转台正在向0旋转
D73: 6 | E73: 转台正在向90旋转
B75: 7～9 | C75: 备用 | F75: 备用
A77: 双任务输送机或双任务顶升站台 （共10个字节） | B77: 0 | C77: 读/写标志位 | D77: 1 | E77: 写入数据
D78: 2 | E78: 读出数据正确
B79: 1 | C79: 设备状态 | D79: 0 | E79: 设备空闲
D80: 1 | E80: 任务执行
D81: 2 | E81: 任务完成 | F81: 送出命令，只有在目标(终点)输送设备上才报告完成
D82: other | E82: 设备故障 | F82: 具体参见故障代码
B83: 2 | C83: 任务号1 | D83: 1～30000 | F83: 对应堆垛机货叉2位置任务号（近货架）
B84: 3
B85: 4 | C85: 任务号2 | D85: 1～30000 | F85: 对应堆垛机货叉1位置任务号（远货架）
B86: 5
B87: 6 | C87: 输送线开关状态
B88: 7
B89: 8～9 | C89: 备用 | F89: 备用
A91: 三任务输送机或三任务顶升站台 （共12个字节） | B91: 0 | C91: 读/写标志位 | D91: 1 | E91: 写入数据
D92: 2 | E92: 读出数据正确
B93: 1 | C93: 设备状态 | D93: 0 | E93: 设备空闲
D94: 1 | E94: 任务执行
D95: 2 | E95: 任务完成 | F95: 送出命令，只有在目标(终点)输送设备上才报告完成
D96: other | E96: 设备故障 | F96: 具体参见故障代码
B97: 2 | C97: 任务号1 | D97: 1～30000 | F97: 对应堆垛机货叉3位置任务号
B98: 3
B99: 4 | C99: 任务号2 | D99: 1～30000 | F99: 对应堆垛机货叉2位置任务号
B100: 5
B101: 6 | C101: 任务号3 | D101: 1～30000 | F101: 对应堆垛机货叉1位置任务号
B102: 7
B103: 8 | C103: 输送线开关状态
B104: 9
B105: 10 | C105: 输送线运行状态 | D105: 1 | E105: 正在上升（针对顶升） | F105: 注意： 输送线设备输送线为单向的时候，报0或者3都行,，双向的时候报3和4)，顶升移栽,转台，提升机等 1,2表示顶升移栽和提升机上升和下降，单向的时候报3，双向的时候，报3,4
D106: 2 | E106: 正在下降（针对顶升）
D107: 3 | E107: 正在正转（针对输送及顶升上的输送）
D108: 4 | E108: 正在反转（针对输送及顶升上的输送）
D109: 5 | E109: 转台正在向0旋转
D110: 6 | E110: 转台正在向90旋转
B112: 11 | C112: 预留
A114: 输送机（包括提升机、顶升移载、转台及拆叠盘机）智能运维及3D上行消息:PLC->PC
A115: 输送机DB50：共160个字节（计划用于关键节点） | B115: 0～1 | C115: 当前状态代码 | F115: 同当前DB2中设备状态字节
B116: 2～5 | C116: 运行时间（s） | E116: 设备从第一次上电起运行的总时间 | F116: 4个字节float型以秒为单位表示当前货叉1运行时间的小于1小时部分
B117: 6～9 | C117: 运行时间（h） | F117: 4个字节float型以小时为单位表示当前货叉1运行时间的小时部分
B118: 10～13 | C118: 机械原因报警时间（s） | E118: 设备从第一次上电起由于机械原因产生的报警总时长 | F118: 4个字节float型以秒为单位表示当前机械原因报警时间的小于1小时部分
B119: 14～17 | C119: 机械原因报警时间（h） | F119: 4个字节float型以小时为单位表示当前机械原因报警时间的小时部分
B120: 18～21 | C120: 电气原因报警时间（s） | E120: 设备从第一次上电起由于电气原因产生的报警总时长 | F120: 4个字节float型以秒为单位表示当前电气原因报警时间的小于1小时部分
B121: 22～25 | C121: 电气原因报警时间（h） | F121: 4个字节float型以小时为单位表示当前电气原因报警时间的小时部分
B122: 26～29 | C122: 其他原因报警时间（s） | E122: 设备从第一次上电起由于其他原因产生的报警总时长 | F122: 4个字节float型以秒为单位表示当前其他原因报警时间的小于1小时部分
B123: 30～33 | C123: 其他原因报警时间（h） | F123: 4个字节float型以小时为单位表示当前其他原因报警时间的小时部分
B124: 34～37 | C124: 机械原因故障时间（s） | E124: 设备从第一次上电起由于机械原因产生的故障总时长 | F124: 4个字节float型以秒为单位表示当前机械原因故障时间的小于1小时部分
B125: 38～41 | C125: 机械原因故障时间（h） | F125: 4个字节float型以小时为单位表示当前机械原因故障时间的小时部分
B126: 42～45 | C126: 电气原因故障时间（s） | E126: 设备从第一次上电起由于电气原因产生的故障总时长 | F126: 4个字节float型以秒为单位表示当前电气原因故障时间的小于1小时部分
B127: 46～49 | C127: 电气原因故障时间（h） | F127: 4个字节float型以小时为单位表示当前电气原因故障时间的小时部分
B128: 50～53 | C128: 其他原因故障时间（s） | E128: 设备从第一次上电起由于其他原因产生的故障总时长 | F128: 4个字节float型以秒为单位表示当前其他原因故障时间的小于1小时部分
B129: 54～57 | C129: 其他原因故障时间（h） | F129: 4个字节float型以小时为单位表示当前其他原因故障时间的小时部分
B130: 58～61 | C130: 执行任务时间（s） | E130: 设备从第一次上电起执行任务的总时长（单指上位机任务，不含半自动状态时的任务） | F130: 4个字节float型以秒为单位表示当前执行任务时间的小于1小时部分
B131: 62～65 | C131: 执行任务时间（h） | F131: 4个字节float型以小时为单位表示当前执行任务时间的小时部分
B132: 66～69 | C132: 设备检修时间（s） | E132: 暂定为设备从第一次上电起手动和半自动运行的时间 | F132: 4个字节float型以秒为单位表示当前设备检修时间的小于1小时部分
B133: 70～73 | C133: 设备检修时间（h） | F133: 4个字节float型以小时为单位表示当前设备检修时间的小时部分
B134: 74～77 | C134: 待机时间（s） | E134: 设备从第一次上电起既没有执行任务也没有进入手动和半自动状态，还没有故障及报警的时间总合 | F134: 4个字节float型以秒为单位表示当前待机时间的小于1小时部分
B135: 78～81 | C135: 待机时间（h） | F135: 4个字节float型以小时为单位表示当前待机时间的小时部分
B136: 82～85 | C136: 机械原因报警次数 | E136: 设备从第一次上电起由于机械原因产生的报警总次数
B137: 86～89 | C137: 电气原因报警次数 | E137: 设备从第一次上电起由于电气原因产生的报警总次数
B138: 90～93 | C138: 其它原因报警次数 | E138: 设备从第一次上电起由于其他原因产生的报警总次数
B139: 94～97 | C139: 机械原因故障次数 | E139: 设备从第一次上电起由于机械原因产生的故障总次数
B140: 98～101 | C140: 电气原因故障数 | E140: 设备从第一次上电起由于电气原因产生的故障总次数
B141: 102～105 | C141: 其它原因故障次数 | E141: 设备从第一次上电起由于其他原因产生的故障总次数
B142: 106～109 | C142: 执行任务次数 | E142: 设备从第一次上电起执行完整任务的次数（单指上位机任务，不含半自动状态时的任务）
B143: 110～113 | C143: 升降（或旋转）运行次数 | F143: 针对顶升移载或转台
B144: 114～117 | C144: 升降运行里程（m） | E144: 设备从第一次上电起升降运行的总里程（针对提升机） | F144: 4个字节float型以米为单位表示当前升降里程的小于1千米部分
B145: 118～121 | C145: 升降运行里程（km） | F145: 4个字节float型以千米为单位表示当前升降里程的千米部分
B146: 122～125 | C146: 升降运行时间（s） | E146: 设备从第一次上电起升降运行的总时间（针对提升机） | F146: 4个字节float型以秒为单位表示当前升降运行时间的小于1小时部分
B147: 126～129 | C147: 升降运行时间（h） | F147: 4个字节float型以小时为单位表示当前升降运行时间的小时部分
B148: 130～133 | C148: 插齿伸缩次数 | E148: 每一次伸缩记为一次（针对叠盘机）
B149: 134～137 | C149: 上推运行次数 | E149: 每一次顶升和下降记为一次（针对叠盘机）
B150: 138 | C150: 运行方向 | D150: 1 | E150: 目前运行在入库方向
D151: 2 | E151: 目前运行在出库方向
B152: 139 | C152: 塔灯开关状态位 | F152: 139.0 红灯位，139.1 绿灯位，139.2 黄灯位，139.3 蜂鸣位（true为灯亮或蜂鸣）
B153: 140～159 | C153: 备用
A154: 如果现场是在巷道两侧都有入库，且是多任务顶升，则按照货位编码小的一侧三个任务对应货叉3,2,1；另外一侧相反三个任务对应货叉1,2,3

Sheet 原料常温库前输送机
A1: 原料常温库前输送机
B3: 设备DB1长度 | C3: 10
B4: 设备DB2长度 | C4: 10
B5: 设备DB1起始位 | C5: 500
B6: 设备DB2起始位 | C6: 500
B7: 设备光电位 | C7: 4
B8: 光电位0 | C8: 0 | D8: 光电内容1 | E8: 货物检测
B9: 光电位1 | C9: 1 | D9: 光电内容2
B10: 光电位2 | C10: 2 | D10: 光电内容3 | E10: 顶升高位
B11: 光电位3 | C11: 3 | D11: 光电内容4
B12: 光电位4 | C12: 4 | D12: 光电内容5
B13: 光电位5 | C13: 5 | D13: 光电内容6
B14: 光电位6 | C14: 6 | D14: 光电内容7
B15: 光电位7 | C15: 7 | D15: 光电内容8
B16: 设备起始设备号 | C16: 12001
A17: 注意：常温库12233左侧设备公用一个主站PLC
B18: 设备编号 | C18: ="DB1起止地址（"&$C$3&"个字节）" -> DB1起止地址（10个字节） | E18: ="DB2起止地址（"&$C$4&"个字节）" -> DB2起止地址（10个字节） | G18: 备注
C19: 起始 | D19: 终止 | E19: 起始 | F19: 终止 | G19: 光电信号
B20: =$C$16 -> 12001 | C20: ="DB1.DBB"&($C$5+(ROW()-20)*$C$3) -> DB1.DBB500 | D20: ="DB1.DBB"&(C$5+(ROW()-19)*C$3-1) -> DB1.DBB509 | E20: ="DB2.DBB"&($C$6+(ROW()-20)*$C$4) -> DB2.DBB500 | F20: ="DB2.DBB"&(C$5+(ROW()-19)*C$3-1) -> DB2.DBB509 | G20: =IF($E$8<>"","DBB "&($C$5+(ROW()-20)*$C$3+$C$7)&"."&$C$8&" - "&$E$8,"")&IF($E$9<>"",CHAR(10)&"DBB "&($C$5+(ROW()-20)*$C$3+$C$7)&"."&$C$9&" - "&$E$9,"")&IF($E$10<>"",CHAR(10)&"DBB "&($C$5+(ROW()-20)*$C$3+$C$7)&"."&$C$10&" - "&$E$10,"")&IF($E$11<>"",CHAR(10)&"DBB "&($C$5+(ROW()-20)*$C$3+$C$7)&"."&$C$11&" - "&$E$11,"")&IF($E$12<>"",CHAR(10)&"DBB "&($C$5+(ROW()-20)*$C$3+$C$7)&"."&$C$12&" - "&$E$12,"")&IF($E$13<>"",CHAR(10)&"DBB "&($C$5+(ROW()-20)*$C$3+$C$7)&"."&$C$13&" - "&$E$13,"")&IF($E$14<>"",CHAR(10)&"DBB "&($C$5+(ROW()-20)*$C$3+$C$7)&"."&$C$14&" - "&$E$14,"")&IF($E$15<>"",CHAR(10)&"DBB "&($C$5+(ROW()-20)*$C$3+$C$7)&"."&$C$15&" - "&$E$15,"") -> DBB 504.0 - 货物检测 DBB 504.2 - 顶升高位
B21: =B20+1 -> 12002 | C21: ="DB1.DBB"&($C$5+(ROW()-20)*$C$3) -> DB1.DBB510 | D21: ="DB1.DBB"&(C$5+(ROW()-19)*C$3-1) -> DB1.DBB519 | E21: ="DB2.DBB"&($C$6+(ROW()-20)*$C$4) -> DB2.DBB510 | F21: ="DB2.DBB"&(C$5+(ROW()-19)*C$3-1) -> DB2.DBB519 | G21: =IF($E$8<>"","DBB "&($C$5+(ROW()-20)*$C$3+$C$7)&"."&$C$8&" - "&$E$8,"")&IF($E$9<>"",CHAR(10)&"DBB "&($C$5+(ROW()-20)*$C$3+$C$7)&"."&$C$9&" - "&$E$9,"")&IF($E$10<>"",CHAR(10)&"DBB "&($C$5+(ROW()-20)*$C$3+$C$7)&"."&$C$10&" - "&$E$10,"")&IF($E$11<>"",CHAR(10)&"DBB "&($C$5+(ROW()-20)*$C$3+$C$7)&"."&$C$11&" - "&$E$11,"")&IF($E$12<>"",CHAR(10)&"DBB "&($C$5+(ROW()-20)*$C$3+$C$7)&"."&$C$12&" - "&$E$12,"")&IF($E$13<>"",CHAR(10)&"DBB "&($C$5+(ROW()-20)*$C$3+$C$7)&"."&$C$13&" - "&$E$13,"")&IF($E$14<>"",CHAR(10)&"DBB "&($C$5+(ROW()-20)*$C$3+$C$7)&"."&$C$14&" - "&$E$14,"")&IF($E$15<>"",CHAR(10)&"DBB "&($C$5+(ROW()-20)*$C$3+$C$7)&"."&$C$15&" - "&$E$15,"") -> DBB 514.0 - 货物检测 DBB 514.2 - 顶升高位
B22: =B21+1 -> 12003 | C22: DB1.DBB520 | D22: DB1.DBB529 | E22: DB2.DBB520 | F22: DB2.DBB529 | G22: =IF($E$8<>"","DBB "&($C$5+(ROW()-20)*$C$3+$C$7)&"."&$C$8&" - "&$E$8,"")&IF($E$9<>"",CHAR(10)&"DBB "&($C$5+(ROW()-20)*$C$3+$C$7)&"."&$C$9&" - "&$E$9,"")&IF($E$10<>"",CHAR(10)&"DBB "&($C$5+(ROW()-20)*$C$3+$C$7)&"."&$C$10&" - "&$E$10,"")&IF($E$11<>"",CHAR(10)&"DBB "&($C$5+(ROW()-20)*$C$3+$C$7)&"."&$C$11&" - "&$E$11,"")&IF($E$12<>"",CHAR(10)&"DBB "&($C$5+(ROW()-20)*$C$3+$C$7)&"."&$C$12&" - "&$E$12,"")&IF($E$13<>"",CHAR(10)&"DBB "&($C$5+(ROW()-20)*$C$3+$C$7)&"."&$C$13&" - "&$E$13,"")&IF($E$14<>"",CHAR(10)&"DBB "&($C$5+(ROW()-20)*$C$3+$C$7)&"."&$C$14&" - "&$E$14,"")&IF($E$15<>"",CHAR(10)&"DBB "&($C$5+(ROW()-20)*$C$3+$C$7)&"."&$C$15&" - "&$E$15,"") -> DBB 524.0 - 货物检测 DBB 524.2 - 顶升高位
B23: 12004 | C23: DB1.DBB530 | D23: DB1.DBB539 | E23: DB2.DBB530 | F23: DB2.DBB539 | G23: DBB 534.0 - 货物检测 DBB 534.2 - 顶升高位
B24: 12005 | C24: DB1.DBB540 | D24: DB1.DBB549 | E24: DB2.DBB540 | F24: DB2.DBB549 | G24: DBB 544.0 - 货物检测 DBB 544.2 - 顶升高位
B25: 12006 | C25: DB1.DBB550 | D25: DB1.DBB559 | E25: DB2.DBB550 | F25: DB2.DBB559 | G25: DBB 554.0 - 货物检测 DBB 554.2 - 顶升高位
B26: 12007 | C26: DB1.DBB560 | D26: DB1.DBB569 | E26: DB2.DBB560 | F26: DB2.DBB569 | G26: DBB 564.0 - 货物检测 DBB 564.2 - 顶升高位
B27: 12008 | C27: DB1.DBB570 | D27: DB1.DBB579 | E27: DB2.DBB570 | F27: DB2.DBB579 | G27: DBB 574.0 - 货物检测 DBB 574.2 - 顶升高位
B28: 12009 | C28: DB1.DBB580 | D28: DB1.DBB589 | E28: DB2.DBB580 | F28: DB2.DBB589 | G28: DBB 584.0 - 货物检测 DBB 584.2 - 顶升高位
B29: 12010 | C29: DB1.DBB590 | D29: DB1.DBB599 | E29: DB2.DBB590 | F29: DB2.DBB599 | G29: DBB 594.0 - 货物检测 DBB 594.2 - 顶升高位
B30: 12011 | C30: DB1.DBB600 | D30: DB1.DBB609 | E30: DB2.DBB600 | F30: DB2.DBB609 | G30: DBB 604.0 - 货物检测 DBB 604.2 - 顶升高位
B31: 12012 | C31: DB1.DBB610 | D31: DB1.DBB619 | E31: DB2.DBB610 | F31: DB2.DBB619 | G31: DBB 614.0 - 货物检测 DBB 614.2 - 顶升高位
B32: 12013 | C32: DB1.DBB620 | D32: DB1.DBB629 | E32: DB2.DBB620 | F32: DB2.DBB629 | G32: DBB 624.0 - 货物检测 DBB 624.2 - 顶升高位
B33: 12014 | C33: DB1.DBB630 | D33: DB1.DBB639 | E33: DB2.DBB630 | F33: DB2.DBB639 | G33: DBB 634.0 - 货物检测 DBB 634.2 - 顶升高位
B34: 12015 | C34: DB1.DBB640 | D34: DB1.DBB649 | E34: DB2.DBB640 | F34: DB2.DBB649 | G34: DBB 644.0 - 货物检测 DBB 644.2 - 顶升高位
B35: 12016 | C35: DB1.DBB650 | D35: DB1.DBB659 | E35: DB2.DBB650 | F35: DB2.DBB659 | G35: DBB 654.0 - 货物检测 DBB 654.2 - 顶升高位
B36: 12017 | C36: DB1.DBB660 | D36: DB1.DBB669 | E36: DB2.DBB660 | F36: DB2.DBB669 | G36: DBB 664.0 - 货物检测 DBB 664.2 - 顶升高位
B37: 12018 | C37: DB1.DBB670 | D37: DB1.DBB679 | E37: DB2.DBB670 | F37: DB2.DBB679 | G37: DBB 674.0 - 货物检测 DBB 674.2 - 顶升高位
B38: 12019 | C38: DB1.DBB680 | D38: DB1.DBB689 | E38: DB2.DBB680 | F38: DB2.DBB689 | G38: DBB 684.0 - 货物检测 DBB 684.2 - 顶升高位
B39: 12020 | C39: DB1.DBB690 | D39: DB1.DBB699 | E39: DB2.DBB690 | F39: DB2.DBB699 | G39: DBB 694.0 - 货物检测 DBB 694.2 - 顶升高位
B40: 12021 | C40: DB1.DBB700 | D40: DB1.DBB709 | E40: DB2.DBB700 | F40: DB2.DBB709 | G40: DBB 704.0 - 货物检测 DBB 704.2 - 顶升高位
B41: 12022 | C41: DB1.DBB710 | D41: DB1.DBB719 | E41: DB2.DBB710 | F41: DB2.DBB719 | G41: DBB 714.0 - 货物检测 DBB 714.2 - 顶升高位
B42: 12023 | C42: DB1.DBB720 | D42: DB1.DBB729 | E42: DB2.DBB720 | F42: DB2.DBB729 | G42: DBB 724.0 - 货物检测 DBB 724.2 - 顶升高位
B43: 12024 | C43: DB1.DBB730 | D43: DB1.DBB739 | E43: DB2.DBB730 | F43: DB2.DBB739 | G43: DBB 734.0 - 货物检测 DBB 734.2 - 顶升高位
B44: 12025 | C44: DB1.DBB740 | D44: DB1.DBB749 | E44: DB2.DBB740 | F44: DB2.DBB749 | G44: DBB 744.0 - 货物检测 DBB 744.2 - 顶升高位
B45: 12026 | C45: DB1.DBB750 | D45: DB1.DBB759 | E45: DB2.DBB750 | F45: DB2.DBB759 | G45: DBB 754.0 - 货物检测 DBB 754.2 - 顶升高位
B46: 12027 | C46: DB1.DBB760 | D46: DB1.DBB769 | E46: DB2.DBB760 | F46: DB2.DBB769 | G46: DBB 764.0 - 货物检测 DBB 764.2 - 顶升高位
B47: 12028 | C47: DB1.DBB770 | D47: DB1.DBB779 | E47: DB2.DBB770 | F47: DB2.DBB779 | G47: DBB 774.0 - 货物检测 DBB 774.2 - 顶升高位
B48: 12029 | C48: DB1.DBB780 | D48: DB1.DBB789 | E48: DB2.DBB780 | F48: DB2.DBB789 | G48: DBB 784.0 - 货物检测 DBB 784.2 - 顶升高位
B49: 12030 | C49: DB1.DBB790 | D49: DB1.DBB799 | E49: DB2.DBB790 | F49: DB2.DBB799 | G49: DBB 794.0 - 货物检测 DBB 794.2 - 顶升高位
B50: 12031 | C50: DB1.DBB800 | D50: DB1.DBB809 | E50: DB2.DBB800 | F50: DB2.DBB809 | G50: DBB 804.0 - 货物检测 DBB 804.2 - 顶升高位
B51: 12032 | C51: DB1.DBB810 | D51: DB1.DBB819 | E51: DB2.DBB810 | F51: DB2.DBB819 | G51: DBB 814.0 - 货物检测 DBB 814.2 - 顶升高位
B52: 12033 | C52: DB1.DBB820 | D52: DB1.DBB829 | E52: DB2.DBB820 | F52: DB2.DBB829 | G52: DBB 824.0 - 货物检测 DBB 824.2 - 顶升高位
B53: 12034 | C53: DB1.DBB830 | D53: DB1.DBB839 | E53: DB2.DBB830 | F53: DB2.DBB839 | G53: DBB 834.0 - 货物检测 DBB 834.2 - 顶升高位
B54: 12035 | C54: DB1.DBB840 | D54: DB1.DBB849 | E54: DB2.DBB840 | F54: DB2.DBB849 | G54: DBB 844.0 - 货物检测 DBB 844.2 - 顶升高位
B55: 12036 | C55: DB1.DBB850 | D55: DB1.DBB859 | E55: DB2.DBB850 | F55: DB2.DBB859 | G55: DBB 854.0 - 货物检测 DBB 854.2 - 顶升高位
B56: 12037 | C56: DB1.DBB860 | D56: DB1.DBB869 | E56: DB2.DBB860 | F56: DB2.DBB869 | G56: DBB 864.0 - 货物检测 DBB 864.2 - 顶升高位
B57: 12038 | C57: DB1.DBB870 | D57: DB1.DBB879 | E57: DB2.DBB870 | F57: DB2.DBB879 | G57: DBB 874.0 - 货物检测 DBB 874.2 - 顶升高位
B58: 12039 | C58: DB1.DBB880 | D58: DB1.DBB889 | E58: DB2.DBB880 | F58: DB2.DBB889 | G58: DBB 884.0 - 货物检测 DBB 884.2 - 顶升高位
B59: 12040 | C59: DB1.DBB890 | D59: DB1.DBB899 | E59: DB2.DBB890 | F59: DB2.DBB899 | G59: DBB 894.0 - 货物检测 DBB 894.2 - 顶升高位
B60: 12041 | C60: DB1.DBB900 | D60: DB1.DBB909 | E60: DB2.DBB900 | F60: DB2.DBB909 | G60: DBB 904.0 - 货物检测 DBB 904.2 - 顶升高位
B61: 12042 | C61: DB1.DBB910 | D61: DB1.DBB919 | E61: DB2.DBB910 | F61: DB2.DBB919 | G61: DBB 914.0 - 货物检测 DBB 914.2 - 顶升高位
B62: 12043 | C62: DB1.DBB920 | D62: DB1.DBB929 | E62: DB2.DBB920 | F62: DB2.DBB929 | G62: DBB 924.0 - 货物检测 DBB 924.2 - 顶升高位
B63: 12044 | C63: DB1.DBB930 | D63: DB1.DBB939 | E63: DB2.DBB930 | F63: DB2.DBB939 | G63: DBB 934.0 - 货物检测 DBB 934.2 - 顶升高位
B64: 12045 | C64: DB1.DBB940 | D64: DB1.DBB949 | E64: DB2.DBB940 | F64: DB2.DBB949 | G64: DBB 944.0 - 货物检测 DBB 944.2 - 顶升高位
B65: 12046 | C65: DB1.DBB950 | D65: DB1.DBB959 | E65: DB2.DBB950 | F65: DB2.DBB959 | G65: DBB 954.0 - 货物检测 DBB 954.2 - 顶升高位
B66: 12047 | C66: DB1.DBB960 | D66: DB1.DBB969 | E66: DB2.DBB960 | F66: DB2.DBB969 | G66: DBB 964.0 - 货物检测 DBB 964.2 - 顶升高位
B67: 12048 | C67: DB1.DBB970 | D67: DB1.DBB979 | E67: DB2.DBB970 | F67: DB2.DBB979 | G67: DBB 974.0 - 货物检测 DBB 974.2 - 顶升高位
B68: 12049 | C68: DB1.DBB980 | D68: DB1.DBB989 | E68: DB2.DBB980 | F68: DB2.DBB989 | G68: DBB 984.0 - 货物检测 DBB 984.2 - 顶升高位
B69: 12050 | C69: DB1.DBB990 | D69: DB1.DBB999 | E69: DB2.DBB990 | F69: DB2.DBB999 | G69: DBB 994.0 - 货物检测 DBB 994.2 - 顶升高位
B70: 12051 | C70: DB1.DBB1000 | D70: DB1.DBB1009 | E70: DB2.DBB1000 | F70: DB2.DBB1009 | G70: DBB 1004.0 - 货物检测 DBB 1004.2 - 顶升高位
B71: 12052 | C71: DB1.DBB1010 | D71: DB1.DBB1019 | E71: DB2.DBB1010 | F71: DB2.DBB1019 | G71: DBB 1014.0 - 货物检测 DBB 1014.2 - 顶升高位
B72: 12053 | C72: DB1.DBB1020 | D72: DB1.DBB1029 | E72: DB2.DBB1020 | F72: DB2.DBB1029 | G72: DBB 1024.0 - 货物检测 DBB 1024.2 - 顶升高位
B73: 12054 | C73: DB1.DBB1030 | D73: DB1.DBB1039 | E73: DB2.DBB1030 | F73: DB2.DBB1039 | G73: DBB 1034.0 - 货物检测 DBB 1034.2 - 顶升高位
B74: 12055 | C74: DB1.DBB1040 | D74: DB1.DBB1049 | E74: DB2.DBB1040 | F74: DB2.DBB1049 | G74: DBB 1044.0 - 货物检测 DBB 1044.2 - 顶升高位
B75: 12056 | C75: DB1.DBB1050 | D75: DB1.DBB1059 | E75: DB2.DBB1050 | F75: DB2.DBB1059 | G75: DBB 1054.0 - 货物检测 DBB 1054.2 - 顶升高位
B76: 12057 | C76: DB1.DBB1060 | D76: DB1.DBB1069 | E76: DB2.DBB1060 | F76: DB2.DBB1069 | G76: DBB 1064.0 - 货物检测 DBB 1064.2 - 顶升高位
B77: 12058 | C77: DB1.DBB1070 | D77: DB1.DBB1079 | E77: DB2.DBB1070 | F77: DB2.DBB1079 | G77: DBB 1074.0 - 货物检测 DBB 1074.2 - 顶升高位
B78: 12059 | C78: DB1.DBB1080 | D78: DB1.DBB1089 | E78: DB2.DBB1080 | F78: DB2.DBB1089 | G78: DBB 1084.0 - 货物检测 DBB 1084.2 - 顶升高位
B79: 12060 | C79: DB1.DBB1090 | D79: DB1.DBB1099 | E79: DB2.DBB1090 | F79: DB2.DBB1099 | G79: DBB 1094.0 - 货物检测 DBB 1094.2 - 顶升高位
B80: 12061 | C80: DB1.DBB1100 | D80: DB1.DBB1109 | E80: DB2.DBB1100 | F80: DB2.DBB1109 | G80: DBB 1104.0 - 货物检测 DBB 1104.2 - 顶升高位
B81: 12062 | C81: DB1.DBB1110 | D81: DB1.DBB1119 | E81: DB2.DBB1110 | F81: DB2.DBB1119 | G81: DBB 1114.0 - 货物检测 DBB 1114.2 - 顶升高位
B82: 12063 | C82: DB1.DBB1120 | D82: DB1.DBB1129 | E82: DB2.DBB1120 | F82: DB2.DBB1129 | G82: DBB 1124.0 - 货物检测 DBB 1124.2 - 顶升高位
B83: 12064 | C83: DB1.DBB1130 | D83: DB1.DBB1139 | E83: DB2.DBB1130 | F83: DB2.DBB1139 | G83: DBB 1134.0 - 货物检测 DBB 1134.2 - 顶升高位
B84: 12065 | C84: DB1.DBB1140 | D84: DB1.DBB1149 | E84: DB2.DBB1140 | F84: DB2.DBB1149 | G84: DBB 1144.0 - 货物检测 DBB 1144.2 - 顶升高位
B85: 12066 | C85: ="DB1.DBB"&($C$5+(ROW()-20)*$C$3) -> DB1.DBB1150 | D85: ="DB1.DBB"&(C$5+(ROW()-19)*C$3-1) -> DB1.DBB1159 | E85: ="DB2.DBB"&($C$6+(ROW()-20)*$C$4) -> DB2.DBB1150 | F85: ="DB2.DBB"&(C$5+(ROW()-19)*C$3-1) -> DB2.DBB1159 | G85: DBB 1154.0 - 货物检测 DBB 1154.2 - 顶升高位
B86: =B85+1 -> 12067 | C86: DB1.DBB1160 | D86: DB1.DBB1169 | E86: DB2.DBB1160 | F86: DB2.DBB1169 | G86: =IF($E$8<>"","DBB "&($C$5+(ROW()-20)*$C$3+$C$7)&"."&$C$8&" - "&$E$8,"")&IF($E$9<>"",CHAR(10)&"DBB "&($C$5+(ROW()-20)*$C$3+$C$7)&"."&$C$9&" - "&$E$9,"")&IF($E$10<>"",CHAR(10)&"DBB "&($C$5+(ROW()-20)*$C$3+$C$7)&"."&$C$10&" - "&$E$10,"")&IF($E$11<>"",CHAR(10)&"DBB "&($C$5+(ROW()-20)*$C$3+$C$7)&"."&$C$11&" - "&$E$11,"")&IF($E$12<>"",CHAR(10)&"DBB "&($C$5+(ROW()-20)*$C$3+$C$7)&"."&$C$12&" - "&$E$12,"")&IF($E$13<>"",CHAR(10)&"DBB "&($C$5+(ROW()-20)*$C$3+$C$7)&"."&$C$13&" - "&$E$13,"")&IF($E$14<>"",CHAR(10)&"DBB "&($C$5+(ROW()-20)*$C$3+$C$7)&"."&$C$14&" - "&$E$14,"")&IF($E$15<>"",CHAR(10)&"DBB "&($C$5+(ROW()-20)*$C$3+$C$7)&"."&$C$15&" - "&$E$15,"") -> DBB 1164.0 - 货物检测 DBB 1164.2 - 顶升高位
B87: 12068 | C87: DB1.DBB1170 | D87: DB1.DBB1179 | E87: DB2.DBB1170 | F87: DB2.DBB1179 | G87: DBB 1174.0 - 货物检测 DBB 1174.2 - 顶升高位
B88: 12069 | C88: DB1.DBB1180 | D88: DB1.DBB1189 | E88: DB2.DBB1180 | F88: DB2.DBB1189 | G88: DBB 1184.0 - 货物检测 DBB 1184.2 - 顶升高位
B89: 12070 | C89: DB1.DBB1190 | D89: DB1.DBB1199 | E89: DB2.DBB1190 | F89: DB2.DBB1199 | G89: DBB 1194.0 - 货物检测 DBB 1194.2 - 顶升高位
B90: 12071 | C90: DB1.DBB1200 | D90: DB1.DBB1209 | E90: DB2.DBB1200 | F90: DB2.DBB1209 | G90: DBB 1204.0 - 货物检测 DBB 1204.2 - 顶升高位
B91: 12072 | C91: DB1.DBB1210 | D91: DB1.DBB1219 | E91: DB2.DBB1210 | F91: DB2.DBB1219 | G91: DBB 1214.0 - 货物检测 DBB 1214.2 - 顶升高位
B92: 12073 | C92: DB1.DBB1220 | D92: DB1.DBB1229 | E92: DB2.DBB1220 | F92: DB2.DBB1229 | G92: DBB 1224.0 - 货物检测 DBB 1224.2 - 顶升高位
B93: 12074 | C93: DB1.DBB1230 | D93: DB1.DBB1239 | E93: DB2.DBB1230 | F93: DB2.DBB1239 | G93: DBB 1234.0 - 货物检测 DBB 1234.2 - 顶升高位
B94: 12075 | C94: DB1.DBB1240 | D94: DB1.DBB1249 | E94: DB2.DBB1240 | F94: DB2.DBB1249 | G94: DBB 1244.0 - 货物检测 DBB 1244.2 - 顶升高位
B95: 12076 | C95: DB1.DBB1250 | D95: DB1.DBB1259 | E95: DB2.DBB1250 | F95: DB2.DBB1259 | G95: DBB 1254.0 - 货物检测 DBB 1254.2 - 顶升高位
B96: 12077 | C96: DB1.DBB1260 | D96: DB1.DBB1269 | E96: DB2.DBB1260 | F96: DB2.DBB1269 | G96: DBB 1264.0 - 货物检测 DBB 1264.2 - 顶升高位
B97: 12078 | C97: DB1.DBB1270 | D97: DB1.DBB1279 | E97: DB2.DBB1270 | F97: DB2.DBB1279 | G97: DBB 1274.0 - 货物检测 DBB 1274.2 - 顶升高位
B98: 12079 | C98: DB1.DBB1280 | D98: DB1.DBB1289 | E98: DB2.DBB1280 | F98: DB2.DBB1289 | G98: DBB 1284.0 - 货物检测 DBB 1284.2 - 顶升高位
B99: 12080 | C99: DB1.DBB1290 | D99: DB1.DBB1299 | E99: DB2.DBB1290 | F99: DB2.DBB1299 | G99: DBB 1294.0 - 货物检测 DBB 1294.2 - 顶升高位
B100: 12081 | C100: DB1.DBB1300 | D100: DB1.DBB1309 | E100: DB2.DBB1300 | F100: DB2.DBB1309 | G100: DBB 1304.0 - 货物检测 DBB 1304.2 - 顶升高位
B101: 12082 | C101: DB1.DBB1310 | D101: DB1.DBB1319 | E101: DB2.DBB1310 | F101: DB2.DBB1319 | G101: DBB 1314.0 - 货物检测 DBB 1314.2 - 顶升高位
B102: 12083 | C102: DB1.DBB1320 | D102: DB1.DBB1329 | E102: DB2.DBB1320 | F102: DB2.DBB1329 | G102: DBB 1324.0 - 货物检测 DBB 1324.2 - 顶升高位
B103: 12084 | C103: DB1.DBB1330 | D103: DB1.DBB1339 | E103: DB2.DBB1330 | F103: DB2.DBB1339 | G103: DBB 1334.0 - 货物检测 DBB 1334.2 - 顶升高位
B104: 12085 | C104: DB1.DBB1340 | D104: DB1.DBB1349 | E104: DB2.DBB1340 | F104: DB2.DBB1349 | G104: DBB 1344.0 - 货物检测 DBB 1344.2 - 顶升高位
B105: 12086 | C105: DB1.DBB1350 | D105: DB1.DBB1359 | E105: DB2.DBB1350 | F105: DB2.DBB1359 | G105: DBB 1354.0 - 货物检测 DBB 1354.2 - 顶升高位
B106: 12087 | C106: DB1.DBB1360 | D106: DB1.DBB1369 | E106: DB2.DBB1360 | F106: DB2.DBB1369 | G106: DBB 1364.0 - 货物检测 DBB 1364.2 - 顶升高位
B107: 12088 | C107: DB1.DBB1370 | D107: DB1.DBB1379 | E107: DB2.DBB1370 | F107: DB2.DBB1379 | G107: DBB 1374.0 - 货物检测 DBB 1374.2 - 顶升高位
B108: 12089 | C108: DB1.DBB1380 | D108: DB1.DBB1389 | E108: DB2.DBB1380 | F108: DB2.DBB1389 | G108: DBB 1384.0 - 货物检测 DBB 1384.2 - 顶升高位
B109: 12090 | C109: DB1.DBB1390 | D109: DB1.DBB1399 | E109: DB2.DBB1390 | F109: DB2.DBB1399 | G109: DBB 1394.0 - 货物检测 DBB 1394.2 - 顶升高位
B110: 12091 | C110: DB1.DBB1400 | D110: DB1.DBB1409 | E110: DB2.DBB1400 | F110: DB2.DBB1409 | G110: DBB 1404.0 - 货物检测 DBB 1404.2 - 顶升高位
B111: 12092 | C111: DB1.DBB1410 | D111: DB1.DBB1419 | E111: DB2.DBB1410 | F111: DB2.DBB1419 | G111: DBB 1414.0 - 货物检测 DBB 1414.2 - 顶升高位
B112: 12093 | C112: DB1.DBB1420 | D112: DB1.DBB1429 | E112: DB2.DBB1420 | F112: DB2.DBB1429 | G112: DBB 1424.0 - 货物检测 DBB 1424.2 - 顶升高位
B113: 12094 | C113: DB1.DBB1430 | D113: DB1.DBB1439 | E113: DB2.DBB1430 | F113: DB2.DBB1439 | G113: DBB 1434.0 - 货物检测 DBB 1434.2 - 顶升高位
B114: 12095 | C114: DB1.DBB1440 | D114: DB1.DBB1449 | E114: DB2.DBB1440 | F114: DB2.DBB1449 | G114: DBB 1444.0 - 货物检测 DBB 1444.2 - 顶升高位
B115: 12096 | C115: DB1.DBB1450 | D115: DB1.DBB1459 | E115: DB2.DBB1450 | F115: DB2.DBB1459 | G115: DBB 1454.0 - 货物检测 DBB 1454.2 - 顶升高位
B116: 12097 | C116: DB1.DBB1460 | D116: DB1.DBB1469 | E116: DB2.DBB1460 | F116: DB2.DBB1469 | G116: DBB 1464.0 - 货物检测 DBB 1464.2 - 顶升高位
B117: 12098 | C117: DB1.DBB1470 | D117: DB1.DBB1479 | E117: DB2.DBB1470 | F117: DB2.DBB1479 | G117: DBB 1474.0 - 货物检测 DBB 1474.2 - 顶升高位
B118: 12099 | C118: DB1.DBB1480 | D118: DB1.DBB1489 | E118: DB2.DBB1480 | F118: DB2.DBB1489 | G118: DBB 1484.0 - 货物检测 DBB 1484.2 - 顶升高位
B119: 12100 | C119: DB1.DBB1490 | D119: DB1.DBB1499 | E119: DB2.DBB1490 | F119: DB2.DBB1499 | G119: DBB 1494.0 - 货物检测 DBB 1494.2 - 顶升高位
B120: 12101 | C120: DB1.DBB1500 | D120: DB1.DBB1509 | E120: DB2.DBB1500 | F120: DB2.DBB1509 | G120: DBB 1504.0 - 货物检测 DBB 1504.2 - 顶升高位
B121: 12102 | C121: DB1.DBB1510 | D121: DB1.DBB1519 | E121: DB2.DBB1510 | F121: DB2.DBB1519 | G121: DBB 1514.0 - 货物检测 DBB 1514.2 - 顶升高位
B122: 12103 | C122: DB1.DBB1520 | D122: DB1.DBB1529 | E122: DB2.DBB1520 | F122: DB2.DBB1529 | G122: DBB 1524.0 - 货物检测 DBB 1524.2 - 顶升高位
B123: 12104 | C123: DB1.DBB1530 | D123: DB1.DBB1539 | E123: DB2.DBB1530 | F123: DB2.DBB1539 | G123: DBB 1534.0 - 货物检测 DBB 1534.2 - 顶升高位
B124: 12105 | C124: DB1.DBB1540 | D124: DB1.DBB1549 | E124: DB2.DBB1540 | F124: DB2.DBB1549 | G124: DBB 1544.0 - 货物检测 DBB 1544.2 - 顶升高位
B125: 12106 | C125: DB1.DBB1550 | D125: DB1.DBB1559 | E125: DB2.DBB1550 | F125: DB2.DBB1559 | G125: DBB 1554.0 - 货物检测 DBB 1554.2 - 顶升高位
B126: 12107 | C126: DB1.DBB1560 | D126: DB1.DBB1569 | E126: DB2.DBB1560 | F126: DB2.DBB1569 | G126: DBB 1564.0 - 货物检测 DBB 1564.2 - 顶升高位
B127: 12108 | C127: DB1.DBB1570 | D127: DB1.DBB1579 | E127: DB2.DBB1570 | F127: DB2.DBB1579 | G127: DBB 1574.0 - 货物检测 DBB 1574.2 - 顶升高位
B128: 12109 | C128: DB1.DBB1580 | D128: DB1.DBB1589 | E128: DB2.DBB1580 | F128: DB2.DBB1589 | G128: DBB 1584.0 - 货物检测 DBB 1584.2 - 顶升高位
B129: 12110 | C129: DB1.DBB1590 | D129: DB1.DBB1599 | E129: DB2.DBB1590 | F129: DB2.DBB1599 | G129: DBB 1594.0 - 货物检测 DBB 1594.2 - 顶升高位
B130: 12111 | C130: DB1.DBB1600 | D130: DB1.DBB1609 | E130: DB2.DBB1600 | F130: DB2.DBB1609 | G130: DBB 1604.0 - 货物检测 DBB 1604.2 - 顶升高位
B131: 12112 | C131: DB1.DBB1610 | D131: DB1.DBB1619 | E131: DB2.DBB1610 | F131: DB2.DBB1619 | G131: DBB 1614.0 - 货物检测 DBB 1614.2 - 顶升高位
B132: 12113 | C132: DB1.DBB1620 | D132: DB1.DBB1629 | E132: DB2.DBB1620 | F132: DB2.DBB1629 | G132: DBB 1624.0 - 货物检测 DBB 1624.2 - 顶升高位
B133: 12114 | C133: DB1.DBB1630 | D133: DB1.DBB1639 | E133: DB2.DBB1630 | F133: DB2.DBB1639 | G133: DBB 1634.0 - 货物检测 DBB 1634.2 - 顶升高位
B134: 12115 | C134: DB1.DBB1640 | D134: DB1.DBB1649 | E134: DB2.DBB1640 | F134: DB2.DBB1649 | G134: DBB 1644.0 - 货物检测 DBB 1644.2 - 顶升高位
B135: 12116 | C135: DB1.DBB1650 | D135: DB1.DBB1659 | E135: DB2.DBB1650 | F135: DB2.DBB1659 | G135: DBB 1654.0 - 货物检测 DBB 1654.2 - 顶升高位
B136: 12117 | C136: DB1.DBB1660 | D136: DB1.DBB1669 | E136: DB2.DBB1660 | F136: DB2.DBB1669 | G136: DBB 1664.0 - 货物检测 DBB 1664.2 - 顶升高位
B137: 12118 | C137: DB1.DBB1670 | D137: DB1.DBB1679 | E137: DB2.DBB1670 | F137: DB2.DBB1679 | G137: DBB 1674.0 - 货物检测 DBB 1674.2 - 顶升高位
B138: 12119 | C138: DB1.DBB1680 | D138: DB1.DBB1689 | E138: DB2.DBB1680 | F138: DB2.DBB1689 | G138: DBB 1684.0 - 货物检测 DBB 1684.2 - 顶升高位
B139: 12120 | C139: DB1.DBB1690 | D139: DB1.DBB1699 | E139: DB2.DBB1690 | F139: DB2.DBB1699 | G139: DBB 1694.0 - 货物检测 DBB 1694.2 - 顶升高位
B140: 12121 | C140: DB1.DBB1700 | D140: DB1.DBB1709 | E140: DB2.DBB1700 | F140: DB2.DBB1709 | G140: DBB 1704.0 - 货物检测 DBB 1704.2 - 顶升高位
B141: 12122 | C141: DB1.DBB1710 | D141: DB1.DBB1719 | E141: DB2.DBB1710 | F141: DB2.DBB1719 | G141: DBB 1714.0 - 货物检测 DBB 1714.2 - 顶升高位
B142: 12123 | C142: DB1.DBB1720 | D142: DB1.DBB1729 | E142: DB2.DBB1720 | F142: DB2.DBB1729 | G142: DBB 1724.0 - 货物检测 DBB 1724.2 - 顶升高位
B143: 12124 | C143: DB1.DBB1730 | D143: DB1.DBB1739 | E143: DB2.DBB1730 | F143: DB2.DBB1739 | G143: DBB 1734.0 - 货物检测 DBB 1734.2 - 顶升高位
B144: 12125 | C144: DB1.DBB1740 | D144: DB1.DBB1749 | E144: DB2.DBB1740 | F144: DB2.DBB1749 | G144: DBB 1744.0 - 货物检测 DBB 1744.2 - 顶升高位
B145: 12126 | C145: DB1.DBB1750 | D145: DB1.DBB1759 | E145: DB2.DBB1750 | F145: DB2.DBB1759 | G145: DBB 1754.0 - 货物检测 DBB 1754.2 - 顶升高位
B146: 12127 | C146: DB1.DBB1760 | D146: DB1.DBB1769 | E146: DB2.DBB1760 | F146: DB2.DBB1769 | G146: DBB 1764.0 - 货物检测 DBB 1764.2 - 顶升高位
B147: 12128 | C147: DB1.DBB1770 | D147: DB1.DBB1779 | E147: DB2.DBB1770 | F147: DB2.DBB1779 | G147: DBB 1774.0 - 货物检测 DBB 1774.2 - 顶升高位
B148: 12129 | C148: DB1.DBB1780 | D148: DB1.DBB1789 | E148: DB2.DBB1780 | F148: DB2.DBB1789 | G148: DBB 1784.0 - 货物检测 DBB 1784.2 - 顶升高位
B149: 12130 | C149: ="DB1.DBB"&($C$5+(ROW()-20)*$C$3) -> DB1.DBB1790 | D149: ="DB1.DBB"&(C$5+(ROW()-19)*C$3-1) -> DB1.DBB1799 | E149: ="DB2.DBB"&($C$6+(ROW()-20)*$C$4) -> DB2.DBB1790 | F149: ="DB2.DBB"&(C$5+(ROW()-19)*C$3-1) -> DB2.DBB1799 | G149: DBB 1794.0 - 货物检测 DBB 1794.2 - 顶升高位
B150: =B149+1 -> 12131 | C150: DB1.DBB1800 | D150: DB1.DBB1809 | E150: DB2.DBB1800 | F150: DB2.DBB1809 | G150: =IF($E$8<>"","DBB "&($C$5+(ROW()-20)*$C$3+$C$7)&"."&$C$8&" - "&$E$8,"")&IF($E$9<>"",CHAR(10)&"DBB "&($C$5+(ROW()-20)*$C$3+$C$7)&"."&$C$9&" - "&$E$9,"")&IF($E$10<>"",CHAR(10)&"DBB "&($C$5+(ROW()-20)*$C$3+$C$7)&"."&$C$10&" - "&$E$10,"")&IF($E$11<>"",CHAR(10)&"DBB "&($C$5+(ROW()-20)*$C$3+$C$7)&"."&$C$11&" - "&$E$11,"")&IF($E$12<>"",CHAR(10)&"DBB "&($C$5+(ROW()-20)*$C$3+$C$7)&"."&$C$12&" - "&$E$12,"")&IF($E$13<>"",CHAR(10)&"DBB "&($C$5+(ROW()-20)*$C$3+$C$7)&"."&$C$13&" - "&$E$13,"")&IF($E$14<>"",CHAR(10)&"DBB "&($C$5+(ROW()-20)*$C$3+$C$7)&"."&$C$14&" - "&$E$14,"")&IF($E$15<>"",CHAR(10)&"DBB "&($C$5+(ROW()-20)*$C$3+$C$7)&"."&$C$15&" - "&$E$15,"") -> DBB 1804.0 - 货物检测 DBB 1804.2 - 顶升高位
B151: 12132 | C151: DB1.DBB1810 | D151: DB1.DBB1819 | E151: DB2.DBB1810 | F151: DB2.DBB1819 | G151: DBB 1814.0 - 货物检测 DBB 1814.2 - 顶升高位
B152: 12133 | C152: DB1.DBB1820 | D152: DB1.DBB1829 | E152: DB2.DBB1820 | F152: DB2.DBB1829 | G152: DBB 1824.0 - 货物检测 DBB 1824.2 - 顶升高位
B153: 12134 | C153: DB1.DBB1830 | D153: DB1.DBB1839 | E153: DB2.DBB1830 | F153: DB2.DBB1839 | G153: DBB 1834.0 - 货物检测 DBB 1834.2 - 顶升高位
B154: 12135 | C154: DB1.DBB1840 | D154: DB1.DBB1849 | E154: DB2.DBB1840 | F154: DB2.DBB1849 | G154: DBB 1844.0 - 货物检测 DBB 1844.2 - 顶升高位
B155: 12136 | C155: DB1.DBB1850 | D155: DB1.DBB1859 | E155: DB2.DBB1850 | F155: DB2.DBB1859 | G155: DBB 1854.0 - 货物检测 DBB 1854.2 - 顶升高位
B156: 12137 | C156: DB1.DBB1860 | D156: DB1.DBB1869 | E156: DB2.DBB1860 | F156: DB2.DBB1869 | G156: DBB 1864.0 - 货物检测 DBB 1864.2 - 顶升高位
B157: 12138 | C157: DB1.DBB1870 | D157: DB1.DBB1879 | E157: DB2.DBB1870 | F157: DB2.DBB1879 | G157: DBB 1874.0 - 货物检测 DBB 1874.2 - 顶升高位
B158: 12139 | C158: DB1.DBB1880 | D158: DB1.DBB1889 | E158: DB2.DBB1880 | F158: DB2.DBB1889 | G158: DBB 1884.0 - 货物检测 DBB 1884.2 - 顶升高位
B159: 12140 | C159: DB1.DBB1890 | D159: DB1.DBB1899 | E159: DB2.DBB1890 | F159: DB2.DBB1899 | G159: DBB 1894.0 - 货物检测 DBB 1894.2 - 顶升高位
B160: 12141 | C160: DB1.DBB1900 | D160: DB1.DBB1909 | E160: DB2.DBB1900 | F160: DB2.DBB1909 | G160: DBB 1904.0 - 货物检测 DBB 1904.2 - 顶升高位
B161: 12142 | C161: DB1.DBB1910 | D161: DB1.DBB1919 | E161: DB2.DBB1910 | F161: DB2.DBB1919 | G161: DBB 1914.0 - 货物检测 DBB 1914.2 - 顶升高位
B162: 12143 | C162: DB1.DBB1920 | D162: DB1.DBB1929 | E162: DB2.DBB1920 | F162: DB2.DBB1929 | G162: DBB 1924.0 - 货物检测 DBB 1924.2 - 顶升高位
B163: 12144 | C163: DB1.DBB1930 | D163: DB1.DBB1939 | E163: DB2.DBB1930 | F163: DB2.DBB1939 | G163: DBB 1934.0 - 货物检测 DBB 1934.2 - 顶升高位
B164: 12145 | C164: DB1.DBB1940 | D164: DB1.DBB1949 | E164: DB2.DBB1940 | F164: DB2.DBB1949 | G164: DBB 1944.0 - 货物检测 DBB 1944.2 - 顶升高位
B165: 12146 | C165: DB1.DBB1950 | D165: DB1.DBB1959 | E165: DB2.DBB1950 | F165: DB2.DBB1959 | G165: DBB 1954.0 - 货物检测 DBB 1954.2 - 顶升高位
B166: 12147 | C166: DB1.DBB1960 | D166: DB1.DBB1969 | E166: DB2.DBB1960 | F166: DB2.DBB1969 | G166: DBB 1964.0 - 货物检测 DBB 1964.2 - 顶升高位
B167: 12148 | C167: DB1.DBB1970 | D167: DB1.DBB1979 | E167: DB2.DBB1970 | F167: DB2.DBB1979 | G167: DBB 1974.0 - 货物检测 DBB 1974.2 - 顶升高位
B168: 12149 | C168: DB1.DBB1980 | D168: DB1.DBB1989 | E168: DB2.DBB1980 | F168: DB2.DBB1989 | G168: DBB 1984.0 - 货物检测 DBB 1984.2 - 顶升高位
B169: 12150 | C169: DB1.DBB1990 | D169: DB1.DBB1999 | E169: DB2.DBB1990 | F169: DB2.DBB1999 | G169: DBB 1994.0 - 货物检测 DBB 1994.2 - 顶升高位
B170: 12151 | C170: DB1.DBB2000 | D170: DB1.DBB2009 | E170: DB2.DBB2000 | F170: DB2.DBB2009 | G170: DBB 2004.0 - 货物检测 DBB 2004.2 - 顶升高位
B171: 12152 | C171: DB1.DBB2010 | D171: DB1.DBB2019 | E171: DB2.DBB2010 | F171: DB2.DBB2019 | G171: DBB 2014.0 - 货物检测 DBB 2014.2 - 顶升高位
B172: 12153 | C172: DB1.DBB2020 | D172: DB1.DBB2029 | E172: DB2.DBB2020 | F172: DB2.DBB2029 | G172: DBB 2024.0 - 货物检测 DBB 2024.2 - 顶升高位
B173: 12154 | C173: DB1.DBB2030 | D173: DB1.DBB2039 | E173: DB2.DBB2030 | F173: DB2.DBB2039 | G173: DBB 2034.0 - 货物检测 DBB 2034.2 - 顶升高位
B174: 12155 | C174: DB1.DBB2040 | D174: DB1.DBB2049 | E174: DB2.DBB2040 | F174: DB2.DBB2049 | G174: DBB 2044.0 - 货物检测 DBB 2044.2 - 顶升高位
B175: 12156 | C175: DB1.DBB2050 | D175: DB1.DBB2059 | E175: DB2.DBB2050 | F175: DB2.DBB2059 | G175: DBB 2054.0 - 货物检测 DBB 2054.2 - 顶升高位
B176: 12157 | C176: DB1.DBB2060 | D176: DB1.DBB2069 | E176: DB2.DBB2060 | F176: DB2.DBB2069 | G176: DBB 2064.0 - 货物检测 DBB 2064.2 - 顶升高位
B177: 12158 | C177: DB1.DBB2070 | D177: DB1.DBB2079 | E177: DB2.DBB2070 | F177: DB2.DBB2079 | G177: DBB 2074.0 - 货物检测 DBB 2074.2 - 顶升高位
B178: 12159 | C178: DB1.DBB2080 | D178: DB1.DBB2089 | E178: DB2.DBB2080 | F178: DB2.DBB2089 | G178: DBB 2084.0 - 货物检测 DBB 2084.2 - 顶升高位
B179: 12160 | C179: DB1.DBB2090 | D179: DB1.DBB2099 | E179: DB2.DBB2090 | F179: DB2.DBB2099 | G179: DBB 2094.0 - 货物检测 DBB 2094.2 - 顶升高位
B180: 12161 | C180: DB1.DBB2100 | D180: DB1.DBB2109 | E180: DB2.DBB2100 | F180: DB2.DBB2109 | G180: DBB 2104.0 - 货物检测 DBB 2104.2 - 顶升高位
B181: 12162 | C181: DB1.DBB2110 | D181: DB1.DBB2119 | E181: DB2.DBB2110 | F181: DB2.DBB2119 | G181: DBB 2114.0 - 货物检测 DBB 2114.2 - 顶升高位
B182: 12163 | C182: DB1.DBB2120 | D182: DB1.DBB2129 | E182: DB2.DBB2120 | F182: DB2.DBB2129 | G182: DBB 2124.0 - 货物检测 DBB 2124.2 - 顶升高位
B183: 12164 | C183: DB1.DBB2130 | D183: DB1.DBB2139 | E183: DB2.DBB2130 | F183: DB2.DBB2139 | G183: DBB 2134.0 - 货物检测 DBB 2134.2 - 顶升高位
B184: 12165 | C184: DB1.DBB2140 | D184: DB1.DBB2149 | E184: DB2.DBB2140 | F184: DB2.DBB2149 | G184: DBB 2144.0 - 货物检测 DBB 2144.2 - 顶升高位
B185: 12166 | C185: DB1.DBB2150 | D185: DB1.DBB2159 | E185: DB2.DBB2150 | F185: DB2.DBB2159 | G185: DBB 2154.0 - 货物检测 DBB 2154.2 - 顶升高位
B186: 12167 | C186: DB1.DBB2160 | D186: DB1.DBB2169 | E186: DB2.DBB2160 | F186: DB2.DBB2169 | G186: DBB 2164.0 - 货物检测 DBB 2164.2 - 顶升高位
B187: 12168 | C187: DB1.DBB2170 | D187: DB1.DBB2179 | E187: DB2.DBB2170 | F187: DB2.DBB2179 | G187: DBB 2174.0 - 货物检测 DBB 2174.2 - 顶升高位
B188: 12169 | C188: DB1.DBB2180 | D188: DB1.DBB2189 | E188: DB2.DBB2180 | F188: DB2.DBB2189 | G188: DBB 2184.0 - 货物检测 DBB 2184.2 - 顶升高位
B189: 12170 | C189: DB1.DBB2190 | D189: DB1.DBB2199 | E189: DB2.DBB2190 | F189: DB2.DBB2199 | G189: DBB 2194.0 - 货物检测 DBB 2194.2 - 顶升高位
B190: 12171 | C190: DB1.DBB2200 | D190: DB1.DBB2209 | E190: DB2.DBB2200 | F190: DB2.DBB2209 | G190: DBB 2204.0 - 货物检测 DBB 2204.2 - 顶升高位
B191: 12172 | C191: DB1.DBB2210 | D191: DB1.DBB2219 | E191: DB2.DBB2210 | F191: DB2.DBB2219 | G191: DBB 2214.0 - 货物检测 DBB 2214.2 - 顶升高位
B192: 12173 | C192: DB1.DBB2220 | D192: DB1.DBB2229 | E192: DB2.DBB2220 | F192: DB2.DBB2229 | G192: DBB 2224.0 - 货物检测 DBB 2224.2 - 顶升高位
B193: 12174 | C193: DB1.DBB2230 | D193: DB1.DBB2239 | E193: DB2.DBB2230 | F193: DB2.DBB2239 | G193: DBB 2234.0 - 货物检测 DBB 2234.2 - 顶升高位
B194: 12175 | C194: DB1.DBB2240 | D194: DB1.DBB2249 | E194: DB2.DBB2240 | F194: DB2.DBB2249 | G194: DBB 2244.0 - 货物检测 DBB 2244.2 - 顶升高位
B195: 12176 | C195: DB1.DBB2250 | D195: DB1.DBB2259 | E195: DB2.DBB2250 | F195: DB2.DBB2259 | G195: DBB 2254.0 - 货物检测 DBB 2254.2 - 顶升高位
B196: 12177 | C196: DB1.DBB2260 | D196: DB1.DBB2269 | E196: DB2.DBB2260 | F196: DB2.DBB2269 | G196: DBB 2264.0 - 货物检测 DBB 2264.2 - 顶升高位
B197: 12178 | C197: DB1.DBB2270 | D197: DB1.DBB2279 | E197: DB2.DBB2270 | F197: DB2.DBB2279 | G197: DBB 2274.0 - 货物检测 DBB 2274.2 - 顶升高位
B198: 12179 | C198: DB1.DBB2280 | D198: DB1.DBB2289 | E198: DB2.DBB2280 | F198: DB2.DBB2289 | G198: DBB 2284.0 - 货物检测 DBB 2284.2 - 顶升高位
B199: 12180 | C199: DB1.DBB2290 | D199: DB1.DBB2299 | E199: DB2.DBB2290 | F199: DB2.DBB2299 | G199: DBB 2294.0 - 货物检测 DBB 2294.2 - 顶升高位
B200: 12181 | C200: DB1.DBB2300 | D200: DB1.DBB2309 | E200: DB2.DBB2300 | F200: DB2.DBB2309 | G200: DBB 2304.0 - 货物检测 DBB 2304.2 - 顶升高位
B201: 12182 | C201: DB1.DBB2310 | D201: DB1.DBB2319 | E201: DB2.DBB2310 | F201: DB2.DBB2319 | G201: DBB 2314.0 - 货物检测 DBB 2314.2 - 顶升高位
... 76 more rows

Sheet 原料常温库后输送机
A1: 原料库后输送机
B3: 设备DB1长度 | C3: 10
B4: 设备DB2长度 | C4: 10
B5: 设备DB1起始位 | C5: 3000
B6: 设备DB2起始位 | C6: 3000
B7: 设备光电位 | C7: 4
B8: 光电位0 | C8: 0 | D8: 光电内容1 | E8: 货物检测
B9: 光电位1 | C9: 1 | D9: 光电内容2
B10: 光电位2 | C10: 2 | D10: 光电内容3 | E10: 顶升高位
B11: 光电位3 | C11: 3 | D11: 光电内容4
B12: 光电位4 | C12: 4 | D12: 光电内容5
B13: 光电位5 | C13: 5 | D13: 光电内容6
B14: 光电位6 | C14: 6 | D14: 光电内容7
B15: 光电位7 | C15: 7 | D15: 光电内容8
B16: 设备起始设备号 | C16: 12401
A17: 注意：常温库后输送和常温库前公用一个主站PLC
B18: 设备编号 | C18: ="DB1起止地址（"&$C$3&"个字节）" -> DB1起止地址（10个字节） | E18: ="DB2起止地址（"&$C$4&"个字节）" -> DB2起止地址（10个字节） | G18: 备注
C19: 起始 | D19: 终止 | E19: 起始 | F19: 终止 | G19: 光电信号
B20: 12401 | C20: ="DB1.DBB"&($C$5+(ROW()-20)*$C$3) -> DB1.DBB3000 | D20: ="DB1.DBB"&(C$5+(ROW()-19)*C$3-1) -> DB1.DBB3009 | E20: ="DB2.DBB"&($C$6+(ROW()-20)*$C$4) -> DB2.DBB3000 | F20: ="DB2.DBB"&(C$5+(ROW()-19)*C$3-1) -> DB2.DBB3009 | G20: =IF($E$8<>"","DBB "&($C$5+(ROW()-20)*$C$3+$C$7)&"."&$C$8&" - "&$E$8,"")&IF($E$9<>"",CHAR(10)&"DBB "&($C$5+(ROW()-20)*$C$3+$C$7)&"."&$C$9&" - "&$E$9,"")&IF($E$10<>"",CHAR(10)&"DBB "&($C$5+(ROW()-20)*$C$3+$C$7)&"."&$C$10&" - "&$E$10,"")&IF($E$11<>"",CHAR(10)&"DBB "&($C$5+(ROW()-20)*$C$3+$C$7)&"."&$C$11&" - "&$E$11,"")&IF($E$12<>"",CHAR(10)&"DBB "&($C$5+(ROW()-20)*$C$3+$C$7)&"."&$C$12&" - "&$E$12,"")&IF($E$13<>"",CHAR(10)&"DBB "&($C$5+(ROW()-20)*$C$3+$C$7)&"."&$C$13&" - "&$E$13,"")&IF($E$14<>"",CHAR(10)&"DBB "&($C$5+(ROW()-20)*$C$3+$C$7)&"."&$C$14&" - "&$E$14,"")&IF($E$15<>"",CHAR(10)&"DBB "&($C$5+(ROW()-20)*$C$3+$C$7)&"."&$C$15&" - "&$E$15,"") -> DBB 3004.0 - 货物检测 DBB 3004.2 - 顶升高位 | H20: 常温库
B21: =B20+1 -> 12402 | C21: ="DB1.DBB"&($C$5+(ROW()-20)*$C$3) -> DB1.DBB3010 | D21: ="DB1.DBB"&(C$5+(ROW()-19)*C$3-1) -> DB1.DBB3019 | E21: ="DB2.DBB"&($C$6+(ROW()-20)*$C$4) -> DB2.DBB3010 | F21: ="DB2.DBB"&(C$5+(ROW()-19)*C$3-1) -> DB2.DBB3019 | G21: =IF($E$8<>"","DBB "&($C$5+(ROW()-20)*$C$3+$C$7)&"."&$C$8&" - "&$E$8,"")&IF($E$9<>"",CHAR(10)&"DBB "&($C$5+(ROW()-20)*$C$3+$C$7)&"."&$C$9&" - "&$E$9,"")&IF($E$10<>"",CHAR(10)&"DBB "&($C$5+(ROW()-20)*$C$3+$C$7)&"."&$C$10&" - "&$E$10,"")&IF($E$11<>"",CHAR(10)&"DBB "&($C$5+(ROW()-20)*$C$3+$C$7)&"."&$C$11&" - "&$E$11,"")&IF($E$12<>"",CHAR(10)&"DBB "&($C$5+(ROW()-20)*$C$3+$C$7)&"."&$C$12&" - "&$E$12,"")&IF($E$13<>"",CHAR(10)&"DBB "&($C$5+(ROW()-20)*$C$3+$C$7)&"."&$C$13&" - "&$E$13,"")&IF($E$14<>"",CHAR(10)&"DBB "&($C$5+(ROW()-20)*$C$3+$C$7)&"."&$C$14&" - "&$E$14,"")&IF($E$15<>"",CHAR(10)&"DBB "&($C$5+(ROW()-20)*$C$3+$C$7)&"."&$C$15&" - "&$E$15,"") -> DBB 3014.0 - 货物检测 DBB 3014.2 - 顶升高位
B22: =B21+1 -> 12403 | C22: DB1.DBB3020 | D22: DB1.DBB3029 | E22: DB2.DBB3020 | F22: DB2.DBB3029 | G22: =IF($E$8<>"","DBB "&($C$5+(ROW()-20)*$C$3+$C$7)&"."&$C$8&" - "&$E$8,"")&IF($E$9<>"",CHAR(10)&"DBB "&($C$5+(ROW()-20)*$C$3+$C$7)&"."&$C$9&" - "&$E$9,"")&IF($E$10<>"",CHAR(10)&"DBB "&($C$5+(ROW()-20)*$C$3+$C$7)&"."&$C$10&" - "&$E$10,"")&IF($E$11<>"",CHAR(10)&"DBB "&($C$5+(ROW()-20)*$C$3+$C$7)&"."&$C$11&" - "&$E$11,"")&IF($E$12<>"",CHAR(10)&"DBB "&($C$5+(ROW()-20)*$C$3+$C$7)&"."&$C$12&" - "&$E$12,"")&IF($E$13<>"",CHAR(10)&"DBB "&($C$5+(ROW()-20)*$C$3+$C$7)&"."&$C$13&" - "&$E$13,"")&IF($E$14<>"",CHAR(10)&"DBB "&($C$5+(ROW()-20)*$C$3+$C$7)&"."&$C$14&" - "&$E$14,"")&IF($E$15<>"",CHAR(10)&"DBB "&($C$5+(ROW()-20)*$C$3+$C$7)&"."&$C$15&" - "&$E$15,"") -> DBB 3024.0 - 货物检测 DBB 3024.2 - 顶升高位
B23: 12404 | C23: DB1.DBB3030 | D23: DB1.DBB3039 | E23: DB2.DBB3030 | F23: DB2.DBB3039 | G23: DBB 3034.0 - 货物检测 DBB 3034.2 - 顶升高位
B24: 12405 | C24: DB1.DBB3040 | D24: DB1.DBB3049 | E24: DB2.DBB3040 | F24: DB2.DBB3049 | G24: DBB 3044.0 - 货物检测 DBB 3044.2 - 顶升高位
B25: 12406 | C25: DB1.DBB3050 | D25: DB1.DBB3059 | E25: DB2.DBB3050 | F25: DB2.DBB3059 | G25: DBB 3054.0 - 货物检测 DBB 3054.2 - 顶升高位
B26: 12407 | C26: DB1.DBB3060 | D26: DB1.DBB3069 | E26: DB2.DBB3060 | F26: DB2.DBB3069 | G26: DBB 3064.0 - 货物检测 DBB 3064.2 - 顶升高位
B27: 12408 | C27: DB1.DBB3070 | D27: DB1.DBB3079 | E27: DB2.DBB3070 | F27: DB2.DBB3079 | G27: DBB 3074.0 - 货物检测 DBB 3074.2 - 顶升高位
B28: 12409 | C28: DB1.DBB3080 | D28: DB1.DBB3089 | E28: DB2.DBB3080 | F28: DB2.DBB3089 | G28: DBB 3084.0 - 货物检测 DBB 3084.2 - 顶升高位
B29: 12410 | C29: DB1.DBB3090 | D29: DB1.DBB3099 | E29: DB2.DBB3090 | F29: DB2.DBB3099 | G29: DBB 3094.0 - 货物检测 DBB 3094.2 - 顶升高位
B30: 12411 | C30: DB1.DBB3100 | D30: DB1.DBB3109 | E30: DB2.DBB3100 | F30: DB2.DBB3109 | G30: DBB 3104.0 - 货物检测 DBB 3104.2 - 顶升高位
B31: 12412 | C31: DB1.DBB3110 | D31: DB1.DBB3119 | E31: DB2.DBB3110 | F31: DB2.DBB3119 | G31: DBB 3114.0 - 货物检测 DBB 3114.2 - 顶升高位
B32: 12413 | C32: DB1.DBB3120 | D32: DB1.DBB3129 | E32: DB2.DBB3120 | F32: DB2.DBB3129 | G32: DBB 3124.0 - 货物检测 DBB 3124.2 - 顶升高位
B33: 12414 | C33: DB1.DBB3130 | D33: DB1.DBB3139 | E33: DB2.DBB3130 | F33: DB2.DBB3139 | G33: DBB 3134.0 - 货物检测 DBB 3134.2 - 顶升高位
B34: 12415 | C34: DB1.DBB3140 | D34: DB1.DBB3149 | E34: DB2.DBB3140 | F34: DB2.DBB3149 | G34: DBB 3144.0 - 货物检测 DBB 3144.2 - 顶升高位
B35: 12416 | C35: DB1.DBB3150 | D35: DB1.DBB3159 | E35: DB2.DBB3150 | F35: DB2.DBB3159 | G35: DBB 3154.0 - 货物检测 DBB 3154.2 - 顶升高位
B36: 12417 | C36: DB1.DBB3160 | D36: DB1.DBB3169 | E36: DB2.DBB3160 | F36: DB2.DBB3169 | G36: DBB 3164.0 - 货物检测 DBB 3164.2 - 顶升高位
B37: 12418 | C37: DB1.DBB3170 | D37: DB1.DBB3179 | E37: DB2.DBB3170 | F37: DB2.DBB3179 | G37: DBB 3174.0 - 货物检测 DBB 3174.2 - 顶升高位
B38: 12419 | C38: DB1.DBB3180 | D38: DB1.DBB3189 | E38: DB2.DBB3180 | F38: DB2.DBB3189 | G38: DBB 3184.0 - 货物检测 DBB 3184.2 - 顶升高位
B39: 12420 | C39: DB1.DBB3190 | D39: DB1.DBB3199 | E39: DB2.DBB3190 | F39: DB2.DBB3199 | G39: DBB 3194.0 - 货物检测 DBB 3194.2 - 顶升高位
B40: 12421 | C40: DB1.DBB3200 | D40: DB1.DBB3209 | E40: DB2.DBB3200 | F40: DB2.DBB3209 | G40: DBB 3204.0 - 货物检测 DBB 3204.2 - 顶升高位
B41: 12422 | C41: DB1.DBB3210 | D41: DB1.DBB3219 | E41: DB2.DBB3210 | F41: DB2.DBB3219 | G41: DBB 3214.0 - 货物检测 DBB 3214.2 - 顶升高位
B42: 12423 | C42: DB1.DBB3220 | D42: DB1.DBB3229 | E42: DB2.DBB3220 | F42: DB2.DBB3229 | G42: DBB 3224.0 - 货物检测 DBB 3224.2 - 顶升高位
B43: 12424 | C43: DB1.DBB3230 | D43: DB1.DBB3239 | E43: DB2.DBB3230 | F43: DB2.DBB3239 | G43: DBB 3234.0 - 货物检测 DBB 3234.2 - 顶升高位
B44: 12425 | C44: DB1.DBB3240 | D44: DB1.DBB3249 | E44: DB2.DBB3240 | F44: DB2.DBB3249 | G44: DBB 3244.0 - 货物检测 DBB 3244.2 - 顶升高位
B45: 12426 | C45: DB1.DBB3250 | D45: DB1.DBB3259 | E45: DB2.DBB3250 | F45: DB2.DBB3259 | G45: DBB 3254.0 - 货物检测 DBB 3254.2 - 顶升高位
B46: 12427 | C46: DB1.DBB3260 | D46: DB1.DBB3269 | E46: DB2.DBB3260 | F46: DB2.DBB3269 | G46: DBB 3264.0 - 货物检测 DBB 3264.2 - 顶升高位
B47: 12428 | C47: DB1.DBB3270 | D47: DB1.DBB3279 | E47: DB2.DBB3270 | F47: DB2.DBB3279 | G47: DBB 3274.0 - 货物检测 DBB 3274.2 - 顶升高位
B48: 12429 | C48: DB1.DBB3280 | D48: DB1.DBB3289 | E48: DB2.DBB3280 | F48: DB2.DBB3289 | G48: DBB 3284.0 - 货物检测 DBB 3284.2 - 顶升高位
B49: 12430 | C49: DB1.DBB3290 | D49: DB1.DBB3299 | E49: DB2.DBB3290 | F49: DB2.DBB3299 | G49: DBB 3294.0 - 货物检测 DBB 3294.2 - 顶升高位
B50: 12431 | C50: DB1.DBB3300 | D50: DB1.DBB3309 | E50: DB2.DBB3300 | F50: DB2.DBB3309 | G50: DBB 3304.0 - 货物检测 DBB 3304.2 - 顶升高位
B51: 12432 | C51: DB1.DBB3310 | D51: DB1.DBB3319 | E51: DB2.DBB3310 | F51: DB2.DBB3319 | G51: DBB 3314.0 - 货物检测 DBB 3314.2 - 顶升高位
B52: 12433 | C52: DB1.DBB3320 | D52: DB1.DBB3329 | E52: DB2.DBB3320 | F52: DB2.DBB3329 | G52: DBB 3324.0 - 货物检测 DBB 3324.2 - 顶升高位
B53: 12434 | C53: DB1.DBB3330 | D53: DB1.DBB3339 | E53: DB2.DBB3330 | F53: DB2.DBB3339 | G53: DBB 3334.0 - 货物检测 DBB 3334.2 - 顶升高位
B54: 12435 | C54: DB1.DBB3340 | D54: DB1.DBB3349 | E54: DB2.DBB3340 | F54: DB2.DBB3349 | G54: DBB 3344.0 - 货物检测 DBB 3344.2 - 顶升高位
B55: 12436 | C55: DB1.DBB3350 | D55: DB1.DBB3359 | E55: DB2.DBB3350 | F55: DB2.DBB3359 | G55: DBB 3354.0 - 货物检测 DBB 3354.2 - 顶升高位
B56: 12437 | C56: DB1.DBB3360 | D56: DB1.DBB3369 | E56: DB2.DBB3360 | F56: DB2.DBB3369 | G56: DBB 3364.0 - 货物检测 DBB 3364.2 - 顶升高位
B57: 12438 | C57: DB1.DBB3370 | D57: DB1.DBB3379 | E57: DB2.DBB3370 | F57: DB2.DBB3379 | G57: DBB 3374.0 - 货物检测 DBB 3374.2 - 顶升高位
B58: 12439 | C58: DB1.DBB3380 | D58: DB1.DBB3389 | E58: DB2.DBB3380 | F58: DB2.DBB3389 | G58: DBB 3384.0 - 货物检测 DBB 3384.2 - 顶升高位
B59: 12440 | C59: DB1.DBB3390 | D59: DB1.DBB3399 | E59: DB2.DBB3390 | F59: DB2.DBB3399 | G59: DBB 3394.0 - 货物检测 DBB 3394.2 - 顶升高位
B60: 12441 | C60: DB1.DBB3400 | D60: DB1.DBB3409 | E60: DB2.DBB3400 | F60: DB2.DBB3409 | G60: DBB 3404.0 - 货物检测 DBB 3404.2 - 顶升高位
B61: 12442 | C61: DB1.DBB3410 | D61: DB1.DBB3419 | E61: DB2.DBB3410 | F61: DB2.DBB3419 | G61: DBB 3414.0 - 货物检测 DBB 3414.2 - 顶升高位
B62: 12443 | C62: DB1.DBB3420 | D62: DB1.DBB3429 | E62: DB2.DBB3420 | F62: DB2.DBB3429 | G62: DBB 3424.0 - 货物检测 DBB 3424.2 - 顶升高位
B63: 12444 | C63: DB1.DBB3430 | D63: DB1.DBB3439 | E63: DB2.DBB3430 | F63: DB2.DBB3439 | G63: DBB 3434.0 - 货物检测 DBB 3434.2 - 顶升高位
B64: 12445 | C64: DB1.DBB3440 | D64: DB1.DBB3449 | E64: DB2.DBB3440 | F64: DB2.DBB3449 | G64: DBB 3444.0 - 货物检测 DBB 3444.2 - 顶升高位
B65: 12446 | C65: DB1.DBB3450 | D65: DB1.DBB3459 | E65: DB2.DBB3450 | F65: DB2.DBB3459 | G65: DBB 3454.0 - 货物检测 DBB 3454.2 - 顶升高位
B66: 12447 | C66: DB1.DBB3460 | D66: DB1.DBB3469 | E66: DB2.DBB3460 | F66: DB2.DBB3469 | G66: DBB 3464.0 - 货物检测 DBB 3464.2 - 顶升高位
B67: 12448 | C67: DB1.DBB3470 | D67: DB1.DBB3479 | E67: DB2.DBB3470 | F67: DB2.DBB3479 | G67: DBB 3474.0 - 货物检测 DBB 3474.2 - 顶升高位
B68: 12449 | C68: DB1.DBB3480 | D68: DB1.DBB3489 | E68: DB2.DBB3480 | F68: DB2.DBB3489 | G68: DBB 3484.0 - 货物检测 DBB 3484.2 - 顶升高位
B69: 12450 | C69: DB1.DBB3490 | D69: DB1.DBB3499 | E69: DB2.DBB3490 | F69: DB2.DBB3499 | G69: DBB 3494.0 - 货物检测 DBB 3494.2 - 顶升高位
B70: 12451 | C70: DB1.DBB3500 | D70: DB1.DBB3509 | E70: DB2.DBB3500 | F70: DB2.DBB3509 | G70: DBB 3504.0 - 货物检测 DBB 3504.2 - 顶升高位
B71: 12452 | C71: DB1.DBB3510 | D71: DB1.DBB3519 | E71: DB2.DBB3510 | F71: DB2.DBB3519 | G71: DBB 3514.0 - 货物检测 DBB 3514.2 - 顶升高位
B72: 12453 | C72: DB1.DBB3520 | D72: DB1.DBB3529 | E72: DB2.DBB3520 | F72: DB2.DBB3529 | G72: DBB 3524.0 - 货物检测 DBB 3524.2 - 顶升高位
B73: 12454 | C73: DB1.DBB3530 | D73: DB1.DBB3539 | E73: DB2.DBB3530 | F73: DB2.DBB3539 | G73: DBB 3534.0 - 货物检测 DBB 3534.2 - 顶升高位
B74: 12455 | C74: DB1.DBB3540 | D74: DB1.DBB3549 | E74: DB2.DBB3540 | F74: DB2.DBB3549 | G74: DBB 3544.0 - 货物检测 DBB 3544.2 - 顶升高位
B75: 12456 | C75: DB1.DBB3550 | D75: DB1.DBB3559 | E75: DB2.DBB3550 | F75: DB2.DBB3559 | G75: DBB 3554.0 - 货物检测 DBB 3554.2 - 顶升高位
B76: 12457 | C76: DB1.DBB3560 | D76: DB1.DBB3569 | E76: DB2.DBB3560 | F76: DB2.DBB3569 | G76: DBB 3564.0 - 货物检测 DBB 3564.2 - 顶升高位
B77: 12458 | C77: DB1.DBB3570 | D77: DB1.DBB3579 | E77: DB2.DBB3570 | F77: DB2.DBB3579 | G77: DBB 3574.0 - 货物检测 DBB 3574.2 - 顶升高位
B78: 12459 | C78: DB1.DBB3580 | D78: DB1.DBB3589 | E78: DB2.DBB3580 | F78: DB2.DBB3589 | G78: DBB 3584.0 - 货物检测 DBB 3584.2 - 顶升高位
B79: 12460 | C79: DB1.DBB3590 | D79: DB1.DBB3599 | E79: DB2.DBB3590 | F79: DB2.DBB3599 | G79: DBB 3594.0 - 货物检测 DBB 3594.2 - 顶升高位
B80: 12461 | C80: DB1.DBB3600 | D80: DB1.DBB3609 | E80: DB2.DBB3600 | F80: DB2.DBB3609 | G80: DBB 3604.0 - 货物检测 DBB 3604.2 - 顶升高位
B81: 12462 | C81: DB1.DBB3610 | D81: DB1.DBB3619 | E81: DB2.DBB3610 | F81: DB2.DBB3619 | G81: DBB 3614.0 - 货物检测 DBB 3614.2 - 顶升高位 | I81: 三维和智能运维DB50地址
B82: 12511 | C82: DB1.DBB3620 | D82: DB1.DBB3629 | E82: DB2.DBB3620 | F82: DB2.DBB3629 | G82: DBB 3624.0 - 货物检测 DBB 3624.2 - 顶升高位 | I82: 三维和智能运维DB50地址
B83: 15401 | C83: DB1.DBB4000 | D83: DB1.DBB4015 | E83: DB2.DBB4000 | F83: DB2.DBB4011 | G83: DB2.DBB4009.0- 叉1载货开关 | H83: 右1双工位直轨RGV | I83: 4200
B84: 15402 | C84: DB1.DBB4016 | D84: DB1.DBB4031 | E84: DB2.DBB4012 | F84: DB2.DBB4023 | G84: DB2.DBB4021.0- 叉1载货开关 DB2.DBB4021.1- 叉2载货开关 | H84: 右2双工位直轨RGV | I84: 4400
B85: 15403 | C85: DB1.DBB4032 | D85: DB1.DBB4041 | E85: DB2.DBB4024 | F85: DB2.DBB4035 | G85: DB2.DBB4033.0- 叉1载货开关 DB2.DBB4033.1- 叉2载货开关 | H85: 右3单工位直轨RGV | I85: 4600

Sheet 原料恒温库前输送机
A1: 原料恒温库前输送机
B3: 设备DB1长度 | C3: 10
B4: 设备DB2长度 | C4: 10
B5: 设备DB1起始位 | C5: 300
B6: 设备DB2起始位 | C6: 300
B7: 设备光电位 | C7: 4
B8: 光电位0 | C8: 0 | D8: 光电内容1 | E8: 货物检测
B9: 光电位1 | C9: 1 | D9: 光电内容2
B10: 光电位2 | C10: 2 | D10: 光电内容3 | E10: 顶升高位
B11: 光电位3 | C11: 3 | D11: 光电内容4
B12: 光电位4 | C12: 4 | D12: 光电内容5
B13: 光电位5 | C13: 5 | D13: 光电内容6
B14: 光电位6 | C14: 6 | D14: 光电内容7
B15: 光电位7 | C15: 7 | D15: 光电内容8
B16: 设备起始设备号 | C16: 12234
A17: 注意：恒温库12234右侧库前库后设备和堆垛机公用一个主站PLC
B18: 设备编号 | C18: ="DB1起止地址（"&$C$3&"个字节）" -> DB1起止地址（10个字节） | E18: ="DB2起止地址（"&$C$4&"个字节）" -> DB2起止地址（10个字节） | G18: 备注
C19: 起始 | D19: 终止 | E19: 起始 | F19: 终止 | G19: 光电信号
B20: =$C$16 -> 12234 | C20: ="DB1.DBB"&($C$5+(ROW()-20)*$C$3) -> DB1.DBB300 | D20: ="DB1.DBB"&(C$5+(ROW()-19)*C$3-1) -> DB1.DBB309 | E20: ="DB2.DBB"&($C$6+(ROW()-20)*$C$4) -> DB2.DBB300 | F20: ="DB2.DBB"&(C$5+(ROW()-19)*C$3-1) -> DB2.DBB309 | G20: =IF($E$8<>"","DBB "&($C$5+(ROW()-20)*$C$3+$C$7)&"."&$C$8&" - "&$E$8,"")&IF($E$9<>"",CHAR(10)&"DBB "&($C$5+(ROW()-20)*$C$3+$C$7)&"."&$C$9&" - "&$E$9,"")&IF($E$10<>"",CHAR(10)&"DBB "&($C$5+(ROW()-20)*$C$3+$C$7)&"."&$C$10&" - "&$E$10,"")&IF($E$11<>"",CHAR(10)&"DBB "&($C$5+(ROW()-20)*$C$3+$C$7)&"."&$C$11&" - "&$E$11,"")&IF($E$12<>"",CHAR(10)&"DBB "&($C$5+(ROW()-20)*$C$3+$C$7)&"."&$C$12&" - "&$E$12,"")&IF($E$13<>"",CHAR(10)&"DBB "&($C$5+(ROW()-20)*$C$3+$C$7)&"."&$C$13&" - "&$E$13,"")&IF($E$14<>"",CHAR(10)&"DBB "&($C$5+(ROW()-20)*$C$3+$C$7)&"."&$C$14&" - "&$E$14,"")&IF($E$15<>"",CHAR(10)&"DBB "&($C$5+(ROW()-20)*$C$3+$C$7)&"."&$C$15&" - "&$E$15,"") -> DBB 304.0 - 货物检测 DBB 304.2 - 顶升高位
B21: =B20+1 -> 12235 | C21: ="DB1.DBB"&($C$5+(ROW()-20)*$C$3) -> DB1.DBB310 | D21: ="DB1.DBB"&(C$5+(ROW()-19)*C$3-1) -> DB1.DBB319 | E21: ="DB2.DBB"&($C$6+(ROW()-20)*$C$4) -> DB2.DBB310 | F21: ="DB2.DBB"&(C$5+(ROW()-19)*C$3-1) -> DB2.DBB319 | G21: =IF($E$8<>"","DBB "&($C$5+(ROW()-20)*$C$3+$C$7)&"."&$C$8&" - "&$E$8,"")&IF($E$9<>"",CHAR(10)&"DBB "&($C$5+(ROW()-20)*$C$3+$C$7)&"."&$C$9&" - "&$E$9,"")&IF($E$10<>"",CHAR(10)&"DBB "&($C$5+(ROW()-20)*$C$3+$C$7)&"."&$C$10&" - "&$E$10,"")&IF($E$11<>"",CHAR(10)&"DBB "&($C$5+(ROW()-20)*$C$3+$C$7)&"."&$C$11&" - "&$E$11,"")&IF($E$12<>"",CHAR(10)&"DBB "&($C$5+(ROW()-20)*$C$3+$C$7)&"."&$C$12&" - "&$E$12,"")&IF($E$13<>"",CHAR(10)&"DBB "&($C$5+(ROW()-20)*$C$3+$C$7)&"."&$C$13&" - "&$E$13,"")&IF($E$14<>"",CHAR(10)&"DBB "&($C$5+(ROW()-20)*$C$3+$C$7)&"."&$C$14&" - "&$E$14,"")&IF($E$15<>"",CHAR(10)&"DBB "&($C$5+(ROW()-20)*$C$3+$C$7)&"."&$C$15&" - "&$E$15,"") -> DBB 314.0 - 货物检测 DBB 314.2 - 顶升高位
B22: =B21+1 -> 12236 | C22: DB1.DBB320 | D22: DB1.DBB329 | E22: DB2.DBB320 | F22: DB2.DBB329 | G22: =IF($E$8<>"","DBB "&($C$5+(ROW()-20)*$C$3+$C$7)&"."&$C$8&" - "&$E$8,"")&IF($E$9<>"",CHAR(10)&"DBB "&($C$5+(ROW()-20)*$C$3+$C$7)&"."&$C$9&" - "&$E$9,"")&IF($E$10<>"",CHAR(10)&"DBB "&($C$5+(ROW()-20)*$C$3+$C$7)&"."&$C$10&" - "&$E$10,"")&IF($E$11<>"",CHAR(10)&"DBB "&($C$5+(ROW()-20)*$C$3+$C$7)&"."&$C$11&" - "&$E$11,"")&IF($E$12<>"",CHAR(10)&"DBB "&($C$5+(ROW()-20)*$C$3+$C$7)&"."&$C$12&" - "&$E$12,"")&IF($E$13<>"",CHAR(10)&"DBB "&($C$5+(ROW()-20)*$C$3+$C$7)&"."&$C$13&" - "&$E$13,"")&IF($E$14<>"",CHAR(10)&"DBB "&($C$5+(ROW()-20)*$C$3+$C$7)&"."&$C$14&" - "&$E$14,"")&IF($E$15<>"",CHAR(10)&"DBB "&($C$5+(ROW()-20)*$C$3+$C$7)&"."&$C$15&" - "&$E$15,"") -> DBB 324.0 - 货物检测 DBB 324.2 - 顶升高位
B23: 12237 | C23: DB1.DBB330 | D23: DB1.DBB339 | E23: DB2.DBB330 | F23: DB2.DBB339 | G23: DBB 334.0 - 货物检测 DBB 334.2 - 顶升高位
B24: 12238 | C24: DB1.DBB340 | D24: DB1.DBB349 | E24: DB2.DBB340 | F24: DB2.DBB349 | G24: DBB 344.0 - 货物检测 DBB 344.2 - 顶升高位
B25: 12239 | C25: DB1.DBB350 | D25: DB1.DBB359 | E25: DB2.DBB350 | F25: DB2.DBB359 | G25: DBB 354.0 - 货物检测 DBB 354.2 - 顶升高位
B26: 12240 | C26: DB1.DBB360 | D26: DB1.DBB369 | E26: DB2.DBB360 | F26: DB2.DBB369 | G26: DBB 364.0 - 货物检测 DBB 364.2 - 顶升高位
B27: 12241 | C27: DB1.DBB370 | D27: DB1.DBB379 | E27: DB2.DBB370 | F27: DB2.DBB379 | G27: DBB 374.0 - 货物检测 DBB 374.2 - 顶升高位
B28: 12242 | C28: DB1.DBB380 | D28: DB1.DBB389 | E28: DB2.DBB380 | F28: DB2.DBB389 | G28: DBB 384.0 - 货物检测 DBB 384.2 - 顶升高位
B29: 12243 | C29: DB1.DBB390 | D29: DB1.DBB399 | E29: DB2.DBB390 | F29: DB2.DBB399 | G29: DBB 394.0 - 货物检测 DBB 394.2 - 顶升高位
B30: 12244 | C30: DB1.DBB400 | D30: DB1.DBB409 | E30: DB2.DBB400 | F30: DB2.DBB409 | G30: DBB 404.0 - 货物检测 DBB 404.2 - 顶升高位
B31: 12245 | C31: DB1.DBB410 | D31: DB1.DBB419 | E31: DB2.DBB410 | F31: DB2.DBB419 | G31: DBB 414.0 - 货物检测 DBB 414.2 - 顶升高位
B32: 12246 | C32: DB1.DBB420 | D32: DB1.DBB429 | E32: DB2.DBB420 | F32: DB2.DBB429 | G32: DBB 424.0 - 货物检测 DBB 424.2 - 顶升高位
B33: 12247 | C33: DB1.DBB430 | D33: DB1.DBB439 | E33: DB2.DBB430 | F33: DB2.DBB439 | G33: DBB 434.0 - 货物检测 DBB 434.2 - 顶升高位
B34: 12248 | C34: DB1.DBB440 | D34: DB1.DBB449 | E34: DB2.DBB440 | F34: DB2.DBB449 | G34: DBB 444.0 - 货物检测 DBB 444.2 - 顶升高位
B35: 12249 | C35: DB1.DBB450 | D35: DB1.DBB459 | E35: DB2.DBB450 | F35: DB2.DBB459 | G35: DBB 454.0 - 货物检测 DBB 454.2 - 顶升高位
B36: 12250 | C36: DB1.DBB460 | D36: DB1.DBB469 | E36: DB2.DBB460 | F36: DB2.DBB469 | G36: DBB 464.0 - 货物检测 DBB 464.2 - 顶升高位
B37: 12251 | C37: DB1.DBB470 | D37: DB1.DBB479 | E37: DB2.DBB470 | F37: DB2.DBB479 | G37: DBB 474.0 - 货物检测 DBB 474.2 - 顶升高位
B38: 12252 | C38: DB1.DBB480 | D38: DB1.DBB489 | E38: DB2.DBB480 | F38: DB2.DBB489 | G38: DBB 484.0 - 货物检测 DBB 484.2 - 顶升高位
B39: 12253 | C39: DB1.DBB490 | D39: DB1.DBB499 | E39: DB2.DBB490 | F39: DB2.DBB499 | G39: DBB 494.0 - 货物检测 DBB 494.2 - 顶升高位
B40: 12254 | C40: DB1.DBB500 | D40: DB1.DBB509 | E40: DB2.DBB500 | F40: DB2.DBB509 | G40: DBB 504.0 - 货物检测 DBB 504.2 - 顶升高位
B41: 12255 | C41: DB1.DBB510 | D41: DB1.DBB519 | E41: DB2.DBB510 | F41: DB2.DBB519 | G41: DBB 514.0 - 货物检测 DBB 514.2 - 顶升高位
B42: 12256 | C42: DB1.DBB520 | D42: DB1.DBB529 | E42: DB2.DBB520 | F42: DB2.DBB529 | G42: DBB 524.0 - 货物检测 DBB 524.2 - 顶升高位
B43: 12257 | C43: DB1.DBB530 | D43: DB1.DBB539 | E43: DB2.DBB530 | F43: DB2.DBB539 | G43: DBB 534.0 - 货物检测 DBB 534.2 - 顶升高位
B44: 12258 | C44: DB1.DBB540 | D44: DB1.DBB549 | E44: DB2.DBB540 | F44: DB2.DBB549 | G44: DBB 544.0 - 货物检测 DBB 544.2 - 顶升高位
B45: 12259 | C45: DB1.DBB550 | D45: DB1.DBB559 | E45: DB2.DBB550 | F45: DB2.DBB559 | G45: DBB 554.0 - 货物检测 DBB 554.2 - 顶升高位
B46: 12260 | C46: DB1.DBB560 | D46: DB1.DBB569 | E46: DB2.DBB560 | F46: DB2.DBB569 | G46: DBB 564.0 - 货物检测 DBB 564.2 - 顶升高位
B47: 12261 | C47: DB1.DBB570 | D47: DB1.DBB579 | E47: DB2.DBB570 | F47: DB2.DBB579 | G47: DBB 574.0 - 货物检测 DBB 574.2 - 顶升高位
B48: 12262 | C48: DB1.DBB580 | D48: DB1.DBB589 | E48: DB2.DBB580 | F48: DB2.DBB589 | G48: DBB 584.0 - 货物检测 DBB 584.2 - 顶升高位
B49: 12263 | C49: DB1.DBB590 | D49: DB1.DBB599 | E49: DB2.DBB590 | F49: DB2.DBB599 | G49: DBB 594.0 - 货物检测 DBB 594.2 - 顶升高位
B50: 12264 | C50: DB1.DBB600 | D50: DB1.DBB609 | E50: DB2.DBB600 | F50: DB2.DBB609 | G50: DBB 604.0 - 货物检测 DBB 604.2 - 顶升高位
B51: 12265 | C51: DB1.DBB610 | D51: DB1.DBB619 | E51: DB2.DBB610 | F51: DB2.DBB619 | G51: DBB 614.0 - 货物检测 DBB 614.2 - 顶升高位
B52: 12266 | C52: DB1.DBB620 | D52: DB1.DBB629 | E52: DB2.DBB620 | F52: DB2.DBB629 | G52: DBB 624.0 - 货物检测 DBB 624.2 - 顶升高位
B53: 12267 | C53: DB1.DBB630 | D53: DB1.DBB639 | E53: DB2.DBB630 | F53: DB2.DBB639 | G53: DBB 634.0 - 货物检测 DBB 634.2 - 顶升高位
B54: 12268 | C54: DB1.DBB640 | D54: DB1.DBB649 | E54: DB2.DBB640 | F54: DB2.DBB649 | G54: DBB 644.0 - 货物检测 DBB 644.2 - 顶升高位
B55: 12269 | C55: DB1.DBB650 | D55: DB1.DBB659 | E55: DB2.DBB650 | F55: DB2.DBB659 | G55: DBB 654.0 - 货物检测 DBB 654.2 - 顶升高位
B56: 12270 | C56: DB1.DBB660 | D56: DB1.DBB669 | E56: DB2.DBB660 | F56: DB2.DBB669 | G56: DBB 664.0 - 货物检测 DBB 664.2 - 顶升高位
B57: 12271 | C57: DB1.DBB670 | D57: DB1.DBB679 | E57: DB2.DBB670 | F57: DB2.DBB679 | G57: DBB 674.0 - 货物检测 DBB 674.2 - 顶升高位
B58: 12272 | C58: DB1.DBB680 | D58: DB1.DBB689 | E58: DB2.DBB680 | F58: DB2.DBB689 | G58: DBB 684.0 - 货物检测 DBB 684.2 - 顶升高位
B59: 12273 | C59: DB1.DBB690 | D59: DB1.DBB699 | E59: DB2.DBB690 | F59: DB2.DBB699 | G59: DBB 694.0 - 货物检测 DBB 694.2 - 顶升高位
B60: 12274 | C60: DB1.DBB700 | D60: DB1.DBB709 | E60: DB2.DBB700 | F60: DB2.DBB709 | G60: DBB 704.0 - 货物检测 DBB 704.2 - 顶升高位
B61: 12275 | C61: DB1.DBB710 | D61: DB1.DBB719 | E61: DB2.DBB710 | F61: DB2.DBB719 | G61: DBB 714.0 - 货物检测 DBB 714.2 - 顶升高位
B62: 12276 | C62: DB1.DBB720 | D62: DB1.DBB729 | E62: DB2.DBB720 | F62: DB2.DBB729 | G62: DBB 724.0 - 货物检测 DBB 724.2 - 顶升高位
B63: 12277 | C63: DB1.DBB730 | D63: DB1.DBB739 | E63: DB2.DBB730 | F63: DB2.DBB739 | G63: DBB 734.0 - 货物检测 DBB 734.2 - 顶升高位
B64: 12278 | C64: DB1.DBB740 | D64: DB1.DBB749 | E64: DB2.DBB740 | F64: DB2.DBB749 | G64: DBB 744.0 - 货物检测 DBB 744.2 - 顶升高位
B65: 12279 | C65: DB1.DBB750 | D65: DB1.DBB759 | E65: DB2.DBB750 | F65: DB2.DBB759 | G65: DBB 754.0 - 货物检测 DBB 754.2 - 顶升高位
B66: 12280 | C66: DB1.DBB760 | D66: DB1.DBB769 | E66: DB2.DBB760 | F66: DB2.DBB769 | G66: DBB 764.0 - 货物检测 DBB 764.2 - 顶升高位
B67: 12281 | C67: DB1.DBB770 | D67: DB1.DBB779 | E67: DB2.DBB770 | F67: DB2.DBB779 | G67: DBB 774.0 - 货物检测 DBB 774.2 - 顶升高位
B68: 12282 | C68: DB1.DBB780 | D68: DB1.DBB789 | E68: DB2.DBB780 | F68: DB2.DBB789 | G68: DBB 784.0 - 货物检测 DBB 784.2 - 顶升高位
B69: 12283 | C69: DB1.DBB790 | D69: DB1.DBB799 | E69: DB2.DBB790 | F69: DB2.DBB799 | G69: DBB 794.0 - 货物检测 DBB 794.2 - 顶升高位
B70: 12284 | C70: DB1.DBB800 | D70: DB1.DBB809 | E70: DB2.DBB800 | F70: DB2.DBB809 | G70: DBB 804.0 - 货物检测 DBB 804.2 - 顶升高位
B71: 12285 | C71: DB1.DBB810 | D71: DB1.DBB819 | E71: DB2.DBB810 | F71: DB2.DBB819 | G71: DBB 814.0 - 货物检测 DBB 814.2 - 顶升高位
B72: 12286 | C72: DB1.DBB820 | D72: DB1.DBB829 | E72: DB2.DBB820 | F72: DB2.DBB829 | G72: DBB 824.0 - 货物检测 DBB 824.2 - 顶升高位
B73: 12287 | C73: DB1.DBB830 | D73: DB1.DBB839 | E73: DB2.DBB830 | F73: DB2.DBB839 | G73: DBB 834.0 - 货物检测 DBB 834.2 - 顶升高位
B74: 12288 | C74: DB1.DBB840 | D74: DB1.DBB849 | E74: DB2.DBB840 | F74: DB2.DBB849 | G74: DBB 844.0 - 货物检测 DBB 844.2 - 顶升高位
B75: 12289 | C75: DB1.DBB850 | D75: DB1.DBB859 | E75: DB2.DBB850 | F75: DB2.DBB859 | G75: DBB 854.0 - 货物检测 DBB 854.2 - 顶升高位
B76: 12290 | C76: DB1.DBB860 | D76: DB1.DBB869 | E76: DB2.DBB860 | F76: DB2.DBB869 | G76: DBB 864.0 - 货物检测 DBB 864.2 - 顶升高位
B77: 12291 | C77: DB1.DBB870 | D77: DB1.DBB879 | E77: DB2.DBB870 | F77: DB2.DBB879 | G77: DBB 874.0 - 货物检测 DBB 874.2 - 顶升高位
B78: 12292 | C78: DB1.DBB880 | D78: DB1.DBB889 | E78: DB2.DBB880 | F78: DB2.DBB889 | G78: DBB 884.0 - 货物检测 DBB 884.2 - 顶升高位
B79: 12293 | C79: DB1.DBB890 | D79: DB1.DBB899 | E79: DB2.DBB890 | F79: DB2.DBB899 | G79: DBB 894.0 - 货物检测 DBB 894.2 - 顶升高位
B80: 12294 | C80: DB1.DBB900 | D80: DB1.DBB909 | E80: DB2.DBB900 | F80: DB2.DBB909 | G80: DBB 904.0 - 货物检测 DBB 904.2 - 顶升高位
B81: 12295 | C81: DB1.DBB910 | D81: DB1.DBB919 | E81: DB2.DBB910 | F81: DB2.DBB919 | G81: DBB 914.0 - 货物检测 DBB 914.2 - 顶升高位
B82: 12296 | C82: DB1.DBB920 | D82: DB1.DBB929 | E82: DB2.DBB920 | F82: DB2.DBB929 | G82: DBB 924.0 - 货物检测 DBB 924.2 - 顶升高位
B83: 12297 | C83: DB1.DBB930 | D83: DB1.DBB939 | E83: DB2.DBB930 | F83: DB2.DBB939 | G83: DBB 934.0 - 货物检测 DBB 934.2 - 顶升高位
B84: 12298 | C84: DB1.DBB940 | D84: DB1.DBB949 | E84: DB2.DBB940 | F84: DB2.DBB949 | G84: DBB 944.0 - 货物检测 DBB 944.2 - 顶升高位
B85: 12299 | C85: ="DB1.DBB"&($C$5+(ROW()-20)*$C$3) -> DB1.DBB950 | D85: ="DB1.DBB"&(C$5+(ROW()-19)*C$3-1) -> DB1.DBB959 | E85: ="DB2.DBB"&($C$6+(ROW()-20)*$C$4) -> DB2.DBB950 | F85: ="DB2.DBB"&(C$5+(ROW()-19)*C$3-1) -> DB2.DBB959 | G85: DBB 954.0 - 货物检测 DBB 954.2 - 顶升高位
B86: =B85+1 -> 12300 | C86: DB1.DBB960 | D86: DB1.DBB969 | E86: DB2.DBB960 | F86: DB2.DBB969 | G86: =IF($E$8<>"","DBB "&($C$5+(ROW()-20)*$C$3+$C$7)&"."&$C$8&" - "&$E$8,"")&IF($E$9<>"",CHAR(10)&"DBB "&($C$5+(ROW()-20)*$C$3+$C$7)&"."&$C$9&" - "&$E$9,"")&IF($E$10<>"",CHAR(10)&"DBB "&($C$5+(ROW()-20)*$C$3+$C$7)&"."&$C$10&" - "&$E$10,"")&IF($E$11<>"",CHAR(10)&"DBB "&($C$5+(ROW()-20)*$C$3+$C$7)&"."&$C$11&" - "&$E$11,"")&IF($E$12<>"",CHAR(10)&"DBB "&($C$5+(ROW()-20)*$C$3+$C$7)&"."&$C$12&" - "&$E$12,"")&IF($E$13<>"",CHAR(10)&"DBB "&($C$5+(ROW()-20)*$C$3+$C$7)&"."&$C$13&" - "&$E$13,"")&IF($E$14<>"",CHAR(10)&"DBB "&($C$5+(ROW()-20)*$C$3+$C$7)&"."&$C$14&" - "&$E$14,"")&IF($E$15<>"",CHAR(10)&"DBB "&($C$5+(ROW()-20)*$C$3+$C$7)&"."&$C$15&" - "&$E$15,"") -> DBB 964.0 - 货物检测 DBB 964.2 - 顶升高位
B87: 12301 | C87: DB1.DBB970 | D87: DB1.DBB979 | E87: DB2.DBB970 | F87: DB2.DBB979 | G87: DBB 974.0 - 货物检测 DBB 974.2 - 顶升高位
B88: 12302 | C88: DB1.DBB980 | D88: DB1.DBB989 | E88: DB2.DBB980 | F88: DB2.DBB989 | G88: DBB 984.0 - 货物检测 DBB 984.2 - 顶升高位
B89: 12303 | C89: DB1.DBB990 | D89: DB1.DBB999 | E89: DB2.DBB990 | F89: DB2.DBB999 | G89: DBB 994.0 - 货物检测 DBB 994.2 - 顶升高位
B90: 12304 | C90: DB1.DBB1000 | D90: DB1.DBB1009 | E90: DB2.DBB1000 | F90: DB2.DBB1009 | G90: DBB 1004.0 - 货物检测 DBB 1004.2 - 顶升高位
B91: 12305 | C91: DB1.DBB1010 | D91: DB1.DBB1019 | E91: DB2.DBB1010 | F91: DB2.DBB1019 | G91: DBB 1014.0 - 货物检测 DBB 1014.2 - 顶升高位
B92: 12306 | C92: DB1.DBB1020 | D92: DB1.DBB1029 | E92: DB2.DBB1020 | F92: DB2.DBB1029 | G92: DBB 1024.0 - 货物检测 DBB 1024.2 - 顶升高位
B93: 12307 | C93: DB1.DBB1030 | D93: DB1.DBB1039 | E93: DB2.DBB1030 | F93: DB2.DBB1039 | G93: DBB 1034.0 - 货物检测 DBB 1034.2 - 顶升高位
B94: 12308 | C94: DB1.DBB1040 | D94: DB1.DBB1049 | E94: DB2.DBB1040 | F94: DB2.DBB1049 | G94: DBB 1044.0 - 货物检测 DBB 1044.2 - 顶升高位
B95: 12309 | C95: DB1.DBB1050 | D95: DB1.DBB1059 | E95: DB2.DBB1050 | F95: DB2.DBB1059 | G95: DBB 1054.0 - 货物检测 DBB 1054.2 - 顶升高位
B96: 12310 | C96: DB1.DBB1060 | D96: DB1.DBB1069 | E96: DB2.DBB1060 | F96: DB2.DBB1069 | G96: DBB 1064.0 - 货物检测 DBB 1064.2 - 顶升高位
B97: 12311 | C97: DB1.DBB1070 | D97: DB1.DBB1079 | E97: DB2.DBB1070 | F97: DB2.DBB1079 | G97: DBB 1074.0 - 货物检测 DBB 1074.2 - 顶升高位
B98: 12312 | C98: DB1.DBB1080 | D98: DB1.DBB1089 | E98: DB2.DBB1080 | F98: DB2.DBB1089 | G98: DBB 1084.0 - 货物检测 DBB 1084.2 - 顶升高位
B99: 12313 | C99: DB1.DBB1090 | D99: DB1.DBB1099 | E99: DB2.DBB1090 | F99: DB2.DBB1099 | G99: DBB 1094.0 - 货物检测 DBB 1094.2 - 顶升高位
B100: 12314 | C100: DB1.DBB1100 | D100: DB1.DBB1109 | E100: DB2.DBB1100 | F100: DB2.DBB1109 | G100: DBB 1104.0 - 货物检测 DBB 1104.2 - 顶升高位
B101: 12315 | C101: DB1.DBB1110 | D101: DB1.DBB1119 | E101: DB2.DBB1110 | F101: DB2.DBB1119 | G101: DBB 1114.0 - 货物检测 DBB 1114.2 - 顶升高位
B102: 12316 | C102: DB1.DBB1120 | D102: DB1.DBB1129 | E102: DB2.DBB1120 | F102: DB2.DBB1129 | G102: DBB 1124.0 - 货物检测 DBB 1124.2 - 顶升高位
B103: 12317 | C103: DB1.DBB1130 | D103: DB1.DBB1139 | E103: DB2.DBB1130 | F103: DB2.DBB1139 | G103: DBB 1134.0 - 货物检测 DBB 1134.2 - 顶升高位
B104: 12318 | C104: DB1.DBB1140 | D104: DB1.DBB1149 | E104: DB2.DBB1140 | F104: DB2.DBB1149 | G104: DBB 1144.0 - 货物检测 DBB 1144.2 - 顶升高位
B105: 12319 | C105: DB1.DBB1150 | D105: DB1.DBB1159 | E105: DB2.DBB1150 | F105: DB2.DBB1159 | G105: DBB 1154.0 - 货物检测 DBB 1154.2 - 顶升高位
B106: 12320 | C106: DB1.DBB1160 | D106: DB1.DBB1169 | E106: DB2.DBB1160 | F106: DB2.DBB1169 | G106: DBB 1164.0 - 货物检测 DBB 1164.2 - 顶升高位
B107: 12321 | C107: DB1.DBB1170 | D107: DB1.DBB1179 | E107: DB2.DBB1170 | F107: DB2.DBB1179 | G107: DBB 1174.0 - 货物检测 DBB 1174.2 - 顶升高位
B108: 12322 | C108: DB1.DBB1180 | D108: DB1.DBB1189 | E108: DB2.DBB1180 | F108: DB2.DBB1189 | G108: DBB 1184.0 - 货物检测 DBB 1184.2 - 顶升高位
B109: 12323 | C109: DB1.DBB1190 | D109: DB1.DBB1199 | E109: DB2.DBB1190 | F109: DB2.DBB1199 | G109: DBB 1194.0 - 货物检测 DBB 1194.2 - 顶升高位
B110: 12324 | C110: DB1.DBB1200 | D110: DB1.DBB1209 | E110: DB2.DBB1200 | F110: DB2.DBB1209 | G110: DBB 1204.0 - 货物检测 DBB 1204.2 - 顶升高位
B111: 12325 | C111: DB1.DBB1210 | D111: DB1.DBB1219 | E111: DB2.DBB1210 | F111: DB2.DBB1219 | G111: DBB 1214.0 - 货物检测 DBB 1214.2 - 顶升高位
B112: 12326 | C112: DB1.DBB1220 | D112: DB1.DBB1229 | E112: DB2.DBB1220 | F112: DB2.DBB1229 | G112: DBB 1224.0 - 货物检测 DBB 1224.2 - 顶升高位
B113: 12327 | C113: DB1.DBB1230 | D113: DB1.DBB1239 | E113: DB2.DBB1230 | F113: DB2.DBB1239 | G113: DBB 1234.0 - 货物检测 DBB 1234.2 - 顶升高位
B114: 12328 | C114: DB1.DBB1240 | D114: DB1.DBB1249 | E114: DB2.DBB1240 | F114: DB2.DBB1249 | G114: DBB 1244.0 - 货物检测 DBB 1244.2 - 顶升高位
B115: 12329 | C115: DB1.DBB1250 | D115: DB1.DBB1259 | E115: DB2.DBB1250 | F115: DB2.DBB1259 | G115: DBB 1254.0 - 货物检测 DBB 1254.2 - 顶升高位
B116: 12330 | C116: DB1.DBB1260 | D116: DB1.DBB1269 | E116: DB2.DBB1260 | F116: DB2.DBB1269 | G116: DBB 1264.0 - 货物检测 DBB 1264.2 - 顶升高位
B117: 12331 | C117: DB1.DBB1270 | D117: DB1.DBB1279 | E117: DB2.DBB1270 | F117: DB2.DBB1279 | G117: DBB 1274.0 - 货物检测 DBB 1274.2 - 顶升高位
B118: 12332 | C118: DB1.DBB1280 | D118: DB1.DBB1289 | E118: DB2.DBB1280 | F118: DB2.DBB1289 | G118: DBB 1284.0 - 货物检测 DBB 1284.2 - 顶升高位
B119: 12333 | C119: DB1.DBB1290 | D119: DB1.DBB1299 | E119: DB2.DBB1290 | F119: DB2.DBB1299 | G119: DBB 1294.0 - 货物检测 DBB 1294.2 - 顶升高位
B120: 12334 | C120: DB1.DBB1300 | D120: DB1.DBB1309 | E120: DB2.DBB1300 | F120: DB2.DBB1309 | G120: DBB 1304.0 - 货物检测 DBB 1304.2 - 顶升高位
B121: 12335 | C121: DB1.DBB1310 | D121: DB1.DBB1319 | E121: DB2.DBB1310 | F121: DB2.DBB1319 | G121: DBB 1314.0 - 货物检测 DBB 1314.2 - 顶升高位
B122: 12336 | C122: DB1.DBB1320 | D122: DB1.DBB1329 | E122: DB2.DBB1320 | F122: DB2.DBB1329 | G122: DBB 1324.0 - 货物检测 DBB 1324.2 - 顶升高位
B123: 12337 | C123: DB1.DBB1330 | D123: DB1.DBB1339 | E123: DB2.DBB1330 | F123: DB2.DBB1339 | G123: DBB 1334.0 - 货物检测 DBB 1334.2 - 顶升高位
B124: 12338 | C124: DB1.DBB1340 | D124: DB1.DBB1349 | E124: DB2.DBB1340 | F124: DB2.DBB1349 | G124: DBB 1344.0 - 货物检测 DBB 1344.2 - 顶升高位
B125: 12339 | C125: DB1.DBB1350 | D125: DB1.DBB1359 | E125: DB2.DBB1350 | F125: DB2.DBB1359 | G125: DBB 1354.0 - 货物检测 DBB 1354.2 - 顶升高位
B126: 12340 | C126: DB1.DBB1360 | D126: DB1.DBB1369 | E126: DB2.DBB1360 | F126: DB2.DBB1369 | G126: DBB 1364.0 - 货物检测 DBB 1364.2 - 顶升高位
B127: 12341 | C127: DB1.DBB1370 | D127: DB1.DBB1379 | E127: DB2.DBB1370 | F127: DB2.DBB1379 | G127: DBB 1374.0 - 货物检测 DBB 1374.2 - 顶升高位
B128: 12342 | C128: DB1.DBB1380 | D128: DB1.DBB1389 | E128: DB2.DBB1380 | F128: DB2.DBB1389 | G128: DBB 1384.0 - 货物检测 DBB 1384.2 - 顶升高位
B129: 12343 | C129: DB1.DBB1390 | D129: DB1.DBB1399 | E129: DB2.DBB1390 | F129: DB2.DBB1399 | G129: DBB 1394.0 - 货物检测 DBB 1394.2 - 顶升高位
B130: 12344 | C130: DB1.DBB1400 | D130: DB1.DBB1409 | E130: DB2.DBB1400 | F130: DB2.DBB1409 | G130: DBB 1404.0 - 货物检测 DBB 1404.2 - 顶升高位
B131: 12345 | C131: DB1.DBB1410 | D131: DB1.DBB1419 | E131: DB2.DBB1410 | F131: DB2.DBB1419 | G131: DBB 1414.0 - 货物检测 DBB 1414.2 - 顶升高位
B132: 12346 | C132: DB1.DBB1420 | D132: DB1.DBB1429 | E132: DB2.DBB1420 | F132: DB2.DBB1429 | G132: DBB 1424.0 - 货物检测 DBB 1424.2 - 顶升高位
B133: 12347 | C133: DB1.DBB1430 | D133: DB1.DBB1439 | E133: DB2.DBB1430 | F133: DB2.DBB1439 | G133: DBB 1434.0 - 货物检测 DBB 1434.2 - 顶升高位
B134: 12348 | C134: DB1.DBB1440 | D134: DB1.DBB1449 | E134: DB2.DBB1440 | F134: DB2.DBB1449 | G134: DBB 1444.0 - 货物检测 DBB 1444.2 - 顶升高位
B135: 12349 | C135: DB1.DBB1450 | D135: DB1.DBB1459 | E135: DB2.DBB1450 | F135: DB2.DBB1459 | G135: DBB 1454.0 - 货物检测 DBB 1454.2 - 顶升高位
B136: 12350 | C136: DB1.DBB1460 | D136: DB1.DBB1469 | E136: DB2.DBB1460 | F136: DB2.DBB1469 | G136: DBB 1464.0 - 货物检测 DBB 1464.2 - 顶升高位
B137: 12351 | C137: DB1.DBB1470 | D137: DB1.DBB1479 | E137: DB2.DBB1470 | F137: DB2.DBB1479 | G137: DBB 1474.0 - 货物检测 DBB 1474.2 - 顶升高位
B138: 12352 | C138: DB1.DBB1480 | D138: DB1.DBB1489 | E138: DB2.DBB1480 | F138: DB2.DBB1489 | G138: DBB 1484.0 - 货物检测 DBB 1484.2 - 顶升高位
B139: 12353 | C139: DB1.DBB1490 | D139: DB1.DBB1499 | E139: DB2.DBB1490 | F139: DB2.DBB1499 | G139: DBB 1494.0 - 货物检测 DBB 1494.2 - 顶升高位
B140: 12354 | C140: DB1.DBB1500 | D140: DB1.DBB1509 | E140: DB2.DBB1500 | F140: DB2.DBB1509 | G140: DBB 1504.0 - 货物检测 DBB 1504.2 - 顶升高位
B141: 12355 | C141: DB1.DBB1510 | D141: DB1.DBB1519 | E141: DB2.DBB1510 | F141: DB2.DBB1519 | G141: DBB 1514.0 - 货物检测 DBB 1514.2 - 顶升高位
B142: 12356 | C142: DB1.DBB1520 | D142: DB1.DBB1529 | E142: DB2.DBB1520 | F142: DB2.DBB1529 | G142: DBB 1524.0 - 货物检测 DBB 1524.2 - 顶升高位
B143: 12357 | C143: DB1.DBB1530 | D143: DB1.DBB1539 | E143: DB2.DBB1530 | F143: DB2.DBB1539 | G143: DBB 1534.0 - 货物检测 DBB 1534.2 - 顶升高位
B144: 12358 | C144: DB1.DBB1540 | D144: DB1.DBB1549 | E144: DB2.DBB1540 | F144: DB2.DBB1549 | G144: DBB 1544.0 - 货物检测 DBB 1544.2 - 顶升高位
B145: 12359 | C145: DB1.DBB1550 | D145: DB1.DBB1559 | E145: DB2.DBB1550 | F145: DB2.DBB1559 | G145: DBB 1554.0 - 货物检测 DBB 1554.2 - 顶升高位
B146: 12360 | C146: DB1.DBB1560 | D146: DB1.DBB1569 | E146: DB2.DBB1560 | F146: DB2.DBB1569 | G146: DBB 1564.0 - 货物检测 DBB 1564.2 - 顶升高位
B147: 12361 | C147: DB1.DBB1570 | D147: DB1.DBB1579 | E147: DB2.DBB1570 | F147: DB2.DBB1579 | G147: DBB 1574.0 - 货物检测 DBB 1574.2 - 顶升高位
B148: 12362 | C148: DB1.DBB1580 | D148: DB1.DBB1589 | E148: DB2.DBB1580 | F148: DB2.DBB1589 | G148: DBB 1584.0 - 货物检测 DBB 1584.2 - 顶升高位
B149: 12363 | C149: ="DB1.DBB"&($C$5+(ROW()-20)*$C$3) -> DB1.DBB1590 | D149: ="DB1.DBB"&(C$5+(ROW()-19)*C$3-1) -> DB1.DBB1599 | E149: ="DB2.DBB"&($C$6+(ROW()-20)*$C$4) -> DB2.DBB1590 | F149: ="DB2.DBB"&(C$5+(ROW()-19)*C$3-1) -> DB2.DBB1599 | G149: DBB 1594.0 - 货物检测 DBB 1594.2 - 顶升高位
B150: =B149+1 -> 12364 | C150: DB1.DBB1600 | D150: DB1.DBB1609 | E150: DB2.DBB1600 | F150: DB2.DBB1609 | G150: =IF($E$8<>"","DBB "&($C$5+(ROW()-20)*$C$3+$C$7)&"."&$C$8&" - "&$E$8,"")&IF($E$9<>"",CHAR(10)&"DBB "&($C$5+(ROW()-20)*$C$3+$C$7)&"."&$C$9&" - "&$E$9,"")&IF($E$10<>"",CHAR(10)&"DBB "&($C$5+(ROW()-20)*$C$3+$C$7)&"."&$C$10&" - "&$E$10,"")&IF($E$11<>"",CHAR(10)&"DBB "&($C$5+(ROW()-20)*$C$3+$C$7)&"."&$C$11&" - "&$E$11,"")&IF($E$12<>"",CHAR(10)&"DBB "&($C$5+(ROW()-20)*$C$3+$C$7)&"."&$C$12&" - "&$E$12,"")&IF($E$13<>"",CHAR(10)&"DBB "&($C$5+(ROW()-20)*$C$3+$C$7)&"."&$C$13&" - "&$E$13,"")&IF($E$14<>"",CHAR(10)&"DBB "&($C$5+(ROW()-20)*$C$3+$C$7)&"."&$C$14&" - "&$E$14,"")&IF($E$15<>"",CHAR(10)&"DBB "&($C$5+(ROW()-20)*$C$3+$C$7)&"."&$C$15&" - "&$E$15,"") -> DBB 1604.0 - 货物检测 DBB 1604.2 - 顶升高位
B151: 12365 | C151: DB1.DBB1610 | D151: DB1.DBB1619 | E151: DB2.DBB1610 | F151: DB2.DBB1619 | G151: DBB 1614.0 - 货物检测 DBB 1614.2 - 顶升高位
B152: 12366 | C152: DB1.DBB1620 | D152: DB1.DBB1629 | E152: DB2.DBB1620 | F152: DB2.DBB1629 | G152: DBB 1624.0 - 货物检测 DBB 1624.2 - 顶升高位
B153: 12367 | C153: DB1.DBB1630 | D153: DB1.DBB1639 | E153: DB2.DBB1630 | F153: DB2.DBB1639 | G153: DBB 1634.0 - 货物检测 DBB 1634.2 - 顶升高位
B154: 12368 | C154: DB1.DBB1640 | D154: DB1.DBB1649 | E154: DB2.DBB1640 | F154: DB2.DBB1649 | G154: DBB 1644.0 - 货物检测 DBB 1644.2 - 顶升高位
B155: 12369 | C155: DB1.DBB1650 | D155: DB1.DBB1659 | E155: DB2.DBB1650 | F155: DB2.DBB1659 | G155: DBB 1654.0 - 货物检测 DBB 1654.2 - 顶升高位
B156: 12370 | C156: DB1.DBB1660 | D156: DB1.DBB1669 | E156: DB2.DBB1660 | F156: DB2.DBB1669 | G156: DBB 1664.0 - 货物检测 DBB 1664.2 - 顶升高位
B157: 12371 | C157: DB1.DBB1670 | D157: DB1.DBB1679 | E157: DB2.DBB1670 | F157: DB2.DBB1679 | G157: DBB 1674.0 - 货物检测 DBB 1674.2 - 顶升高位
B158: 12372 | C158: DB1.DBB1680 | D158: DB1.DBB1689 | E158: DB2.DBB1680 | F158: DB2.DBB1689 | G158: DBB 1684.0 - 货物检测 DBB 1684.2 - 顶升高位
B159: 12550 | C159: DB1.DBB1690 | D159: DB1.DBB1699 | E159: DB2.DBB1690 | F159: ="DB2.DBB"&(C$5+(ROW()-19)*C$3-1) -> DB2.DBB1699 | G159: DBB 1694.0 - 货物检测 DBB 1694.2 - 顶升高位
B160: 12551 | C160: DB1.DBB1700 | D160: DB1.DBB1709 | E160: DB2.DBB1700 | F160: ="DB2.DBB"&(C$5+(ROW()-19)*C$3-1) -> DB2.DBB1709 | G160: DBB 1704.0 - 货物检测 DBB 1704.2 - 顶升高位
B161: 12552 | C161: DB1.DBB1710 | D161: DB1.DBB1719 | E161: DB2.DBB1710 | F161: ="DB2.DBB"&(C$5+(ROW()-19)*C$3-1) -> DB2.DBB1719 | G161: DBB 1714.0 - 货物检测 DBB 1714.2 - 顶升高位
B162: 12553 | C162: DB1.DBB1720 | D162: DB1.DBB1729 | E162: DB2.DBB1720 | F162: DB2.DBB1729 | G162: DBB 1724.0 - 货物检测 DBB 1724.2 - 顶升高位
B163: 12554 | C163: DB1.DBB1730 | D163: DB1.DBB1739 | E163: DB2.DBB1730 | F163: DB2.DBB1739 | G163: DBB 1734.0 - 货物检测 DBB 1734.2 - 顶升高位 | H163: 正反向避让点
B164: 12555 | C164: DB1.DBB1740 | D164: DB1.DBB1749 | E164: DB2.DBB1740 | F164: DB2.DBB1749 | G164: DBB 1744.0 - 货物检测 DBB 1744.2 - 顶升高位
B165: 12556 | C165: DB1.DBB1750 | D165: DB1.DBB1759 | E165: DB2.DBB1750 | F165: DB2.DBB1759 | G165: DBB 1754.0 - 货物检测 DBB 1754.2 - 顶升高位
B166: 12557 | C166: DB1.DBB1760 | D166: DB1.DBB1769 | E166: DB2.DBB1760 | F166: DB2.DBB1769 | G166: DBB 1764.0 - 货物检测 DBB 1764.2 - 顶升高位
B167: 12558 | C167: DB1.DBB1770 | D167: DB1.DBB1779 | E167: DB2.DBB1770 | F167: DB2.DBB1779 | G167: DBB 1774.0 - 货物检测 DBB 1774.2 - 顶升高位
B168: 12559 | C168: DB1.DBB1780 | D168: DB1.DBB1789 | E168: DB2.DBB1780 | F168: DB2.DBB1789 | G168: DBB 1784.0 - 货物检测 DBB 1784.2 - 顶升高位
B169: 12560 | C169: DB1.DBB1790 | D169: DB1.DBB1799 | E169: DB2.DBB1790 | F169: DB2.DBB1799 | G169: DBB 1794.0 - 货物检测 DBB 1794.2 - 顶升高位
B170: 12561 | C170: DB1.DBB1800 | D170: DB1.DBB1809 | E170: DB2.DBB1800 | F170: DB2.DBB1809 | G170: DBB 1804.0 - 货物检测 DBB 1804.2 - 顶升高位
B171: 12562 | C171: DB1.DBB1810 | D171: DB1.DBB1819 | E171: DB2.DBB1810 | F171: DB2.DBB1819 | G171: DBB 1814.0 - 货物检测 DBB 1814.2 - 顶升高位
B172: 12563 | C172: DB1.DBB1820 | D172: DB1.DBB1829 | E172: DB2.DBB1820 | F172: DB2.DBB1829 | G172: DBB 1824.0 - 货物检测 DBB 1824.2 - 顶升高位
B173: 12564 | C173: DB1.DBB1830 | D173: DB1.DBB1839 | E173: DB2.DBB1830 | F173: DB2.DBB1839 | G173: DBB 1834.0 - 货物检测 DBB 1834.2 - 顶升高位
B174: 12565 | C174: DB1.DBB1840 | D174: DB1.DBB1849 | E174: DB2.DBB1840 | F174: DB2.DBB1849 | G174: DBB 1844.0 - 货物检测 DBB 1844.2 - 顶升高位
B175: 12566 | C175: DB1.DBB1850 | D175: DB1.DBB1859 | E175: DB2.DBB1850 | F175: DB2.DBB1859 | G175: DBB 1854.0 - 货物检测 DBB 1854.2 - 顶升高位
B176: 12567 | C176: DB1.DBB1860 | D176: DB1.DBB1869 | E176: DB2.DBB1860 | F176: DB2.DBB1869 | G176: DBB 1864.0 - 货物检测 DBB 1864.2 - 顶升高位
B177: 12568 | C177: DB1.DBB1870 | D177: DB1.DBB1879 | E177: DB2.DBB1870 | F177: DB2.DBB1879 | G177: DBB 1874.0 - 货物检测 DBB 1874.2 - 顶升高位
B178: 12569 | C178: DB1.DBB1880 | D178: DB1.DBB1889 | E178: DB2.DBB1880 | F178: DB2.DBB1889 | G178: DBB 1884.0 - 货物检测 DBB 1884.2 - 顶升高位
B179: 12570 | C179: DB1.DBB1890 | D179: DB1.DBB1899 | E179: DB2.DBB1890 | F179: DB2.DBB1899 | G179: DBB 1894.0 - 货物检测 DBB 1894.2 - 顶升高位
B180: 12571 | C180: DB1.DBB1900 | D180: DB1.DBB1909 | E180: DB2.DBB1900 | F180: DB2.DBB1909 | G180: DBB 1904.0 - 货物检测 DBB 1904.2 - 顶升高位
B181: 12572 | C181: DB1.DBB1910 | D181: DB1.DBB1919 | E181: DB2.DBB1910 | F181: DB2.DBB1919 | G181: DBB 1914.0 - 货物检测 DBB 1914.2 - 顶升高位
B182: 12573 | C182: DB1.DBB1920 | D182: DB1.DBB1929 | E182: DB2.DBB1920 | F182: DB2.DBB1929 | G182: DBB 1924.0 - 货物检测 DBB 1924.2 - 顶升高位
B183: 12574 | C183: DB1.DBB1930 | D183: DB1.DBB1939 | E183: DB2.DBB1930 | F183: DB2.DBB1939 | G183: DBB 1934.0 - 货物检测 DBB 1934.2 - 顶升高位
B184: 12575 | C184: DB1.DBB1940 | D184: DB1.DBB1949 | E184: DB2.DBB1940 | F184: DB2.DBB1949 | G184: DBB 1944.0 - 货物检测 DBB 1944.2 - 顶升高位
B185: 12576 | C185: DB1.DBB1950 | D185: DB1.DBB1959 | E185: DB2.DBB1950 | F185: DB2.DBB1959 | G185: DBB 1954.0 - 货物检测 DBB 1954.2 - 顶升高位
B186: 12577 | C186: DB1.DBB1960 | D186: DB1.DBB1969 | E186: DB2.DBB1960 | F186: DB2.DBB1969 | G186: DBB 1964.0 - 货物检测 DBB 1964.2 - 顶升高位
B187: 12578 | C187: DB1.DBB1970 | D187: DB1.DBB1979 | E187: DB2.DBB1970 | F187: DB2.DBB1979 | G187: DBB 1974.0 - 货物检测 DBB 1974.2 - 顶升高位
B188: 12579 | C188: DB1.DBB1980 | D188: DB1.DBB1989 | E188: DB2.DBB1980 | F188: DB2.DBB1989 | G188: DBB 1984.0 - 货物检测 DBB 1984.2 - 顶升高位
B189: 12580 | C189: DB1.DBB1990 | D189: DB1.DBB1999 | E189: DB2.DBB1990 | F189: DB2.DBB1999 | G189: DBB 1994.0 - 货物检测 DBB 1994.2 - 顶升高位 | H189: 正反向避让点
B190: 12581 | C190: DB1.DBB2000 | D190: DB1.DBB2009 | E190: DB2.DBB2000 | F190: DB2.DBB2009 | G190: DBB 2004.0 - 货物检测 DBB 2004.2 - 顶升高位
B191: 12582 | C191: DB1.DBB2010 | D191: DB1.DBB2019 | E191: DB2.DBB2010 | F191: DB2.DBB2019 | G191: DBB 2014.0 - 货物检测 DBB 2014.2 - 顶升高位
B192: 12583 | C192: DB1.DBB2020 | D192: DB1.DBB2029 | E192: DB2.DBB2020 | F192: DB2.DBB2029 | G192: DBB 2024.0 - 货物检测 DBB 2024.2 - 顶升高位
B193: 12584 | C193: DB1.DBB2030 | D193: DB1.DBB2039 | E193: DB2.DBB2030 | F193: DB2.DBB2039 | G193: DBB 2034.0 - 货物检测 DBB 2034.2 - 顶升高位
B194: 12585 | C194: DB1.DBB2040 | D194: DB1.DBB2049 | E194: DB2.DBB2040 | F194: DB2.DBB2049 | G194: DBB 2044.0 - 货物检测 DBB 2044.2 - 顶升高位
B195: 12586 | C195: DB1.DBB2050 | D195: DB1.DBB2059 | E195: DB2.DBB2050 | F195: DB2.DBB2059 | G195: DBB 2054.0 - 货物检测 DBB 2054.2 - 顶升高位
B196: 12587 | C196: DB1.DBB2060 | D196: DB1.DBB2069 | E196: DB2.DBB2060 | F196: DB2.DBB2069 | G196: DBB 2064.0 - 货物检测 DBB 2064.2 - 顶升高位
B197: 12588 | C197: DB1.DBB2070 | D197: DB1.DBB2079 | E197: DB2.DBB2070 | F197: DB2.DBB2079 | G197: DBB 2074.0 - 货物检测 DBB 2074.2 - 顶升高位
B198: 12589 | C198: DB1.DBB2080 | D198: DB1.DBB2089 | E198: DB2.DBB2080 | F198: DB2.DBB2089 | G198: DBB 2084.0 - 货物检测 DBB 2084.2 - 顶升高位
B199: 12590 | C199: DB1.DBB2090 | D199: DB1.DBB2099 | E199: DB2.DBB2090 | F199: DB2.DBB2099 | G199: DBB 2094.0 - 货物检测 DBB 2094.2 - 顶升高位
B200: 12591 | C200: DB1.DBB2100 | D200: DB1.DBB2109 | E200: DB2.DBB2100 | F200: DB2.DBB2109 | G200: DBB 2104.0 - 货物检测 DBB 2104.2 - 顶升高位
B201: 12592 | C201: DB1.DBB2110 | D201: ="DB1.DBB"&(C$5+(ROW()-19)*C$3-1) -> DB1.DBB2119 | E201: DB2.DBB2110 | F201: ="DB2.DBB"&(C$5+(ROW()-19)*C$3-1) -> DB2.DBB2119 | G201: DBB 2114.0 - 货物检测 DBB 2114.2 - 顶升高位 | H201: 新增电池片上下料口
... 51 more rows

Sheet 原料恒温库后输送机
A1: 原料库恒温后输送机
B3: 设备DB1长度 | C3: 10
B4: 设备DB2长度 | C4: 10
B5: 设备DB1起始位 | C5: 2300
B6: 设备DB2起始位 | C6: 2300
B7: 设备光电位 | C7: 4
B8: 光电位0 | C8: 0 | D8: 光电内容1 | E8: 货物检测
B9: 光电位1 | C9: 1 | D9: 光电内容2
B10: 光电位2 | C10: 2 | D10: 光电内容3 | E10: 顶升高位
B11: 光电位3 | C11: 3 | D11: 光电内容4
B12: 光电位4 | C12: 4 | D12: 光电内容5
B13: 光电位5 | C13: 5 | D13: 光电内容6
B14: 光电位6 | C14: 6 | D14: 光电内容7
B15: 光电位7 | C15: 7 | D15: 光电内容8
B16: 设备起始设备号 | C16: 12463
A17: 注意：恒温库前库后设备和恒温堆垛机公用一个主站PLC
B18: 设备编号 | C18: ="DB1起止地址（"&$C$3&"个字节）" -> DB1起止地址（10个字节） | E18: ="DB2起止地址（"&$C$4&"个字节）" -> DB2起止地址（10个字节） | G18: 备注
C19: 起始 | D19: 终止 | E19: 起始 | F19: 终止 | G19: 光电信号
B20: 12463 | C20: ="DB1.DBB"&($C$5+(ROW()-20)*$C$3) -> DB1.DBB2300 | D20: ="DB1.DBB"&(C$5+(ROW()-19)*C$3-1) -> DB1.DBB2309 | E20: ="DB2.DBB"&($C$6+(ROW()-20)*$C$4) -> DB2.DBB2300 | F20: ="DB2.DBB"&(C$5+(ROW()-19)*C$3-1) -> DB2.DBB2309 | G20: =IF($E$8<>"","DBB "&($C$5+(ROW()-20)*$C$3+$C$7)&"."&$C$8&" - "&$E$8,"")&IF($E$9<>"",CHAR(10)&"DBB "&($C$5+(ROW()-20)*$C$3+$C$7)&"."&$C$9&" - "&$E$9,"")&IF($E$10<>"",CHAR(10)&"DBB "&($C$5+(ROW()-20)*$C$3+$C$7)&"."&$C$10&" - "&$E$10,"")&IF($E$11<>"",CHAR(10)&"DBB "&($C$5+(ROW()-20)*$C$3+$C$7)&"."&$C$11&" - "&$E$11,"")&IF($E$12<>"",CHAR(10)&"DBB "&($C$5+(ROW()-20)*$C$3+$C$7)&"."&$C$12&" - "&$E$12,"")&IF($E$13<>"",CHAR(10)&"DBB "&($C$5+(ROW()-20)*$C$3+$C$7)&"."&$C$13&" - "&$E$13,"")&IF($E$14<>"",CHAR(10)&"DBB "&($C$5+(ROW()-20)*$C$3+$C$7)&"."&$C$14&" - "&$E$14,"")&IF($E$15<>"",CHAR(10)&"DBB "&($C$5+(ROW()-20)*$C$3+$C$7)&"."&$C$15&" - "&$E$15,"") -> DBB 2304.0 - 货物检测 DBB 2304.2 - 顶升高位
B21: =B20+1 -> 12464 | C21: DB1.DBB2310 | D21: DB1.DBB2319 | E21: DB2.DBB2310 | F21: DB2.DBB2319 | G21: DBB 2314.0 - 货物检测 DBB 2314.2 - 顶升高位
B22: 12465 | C22: DB1.DBB2320 | D22: DB1.DBB2329 | E22: DB2.DBB2320 | F22: DB2.DBB2329 | G22: DBB 2324.0 - 货物检测 DBB 2324.2 - 顶升高位
B23: 12466 | C23: ="DB1.DBB"&($C$5+(ROW()-20)*$C$3) -> DB1.DBB2330 | D23: ="DB1.DBB"&(C$5+(ROW()-19)*C$3-1) -> DB1.DBB2339 | E23: ="DB2.DBB"&($C$6+(ROW()-20)*$C$4) -> DB2.DBB2330 | F23: ="DB2.DBB"&(C$5+(ROW()-19)*C$3-1) -> DB2.DBB2339 | G23: DBB 2334.0 - 货物检测 DBB 2334.2 - 顶升高位
B24: =B23+1 -> 12467 | C24: DB1.DBB2340 | D24: DB1.DBB2349 | E24: DB2.DBB2340 | F24: DB2.DBB2349 | G24: =IF($E$8<>"","DBB "&($C$5+(ROW()-20)*$C$3+$C$7)&"."&$C$8&" - "&$E$8,"")&IF($E$9<>"",CHAR(10)&"DBB "&($C$5+(ROW()-20)*$C$3+$C$7)&"."&$C$9&" - "&$E$9,"")&IF($E$10<>"",CHAR(10)&"DBB "&($C$5+(ROW()-20)*$C$3+$C$7)&"."&$C$10&" - "&$E$10,"")&IF($E$11<>"",CHAR(10)&"DBB "&($C$5+(ROW()-20)*$C$3+$C$7)&"."&$C$11&" - "&$E$11,"")&IF($E$12<>"",CHAR(10)&"DBB "&($C$5+(ROW()-20)*$C$3+$C$7)&"."&$C$12&" - "&$E$12,"")&IF($E$13<>"",CHAR(10)&"DBB "&($C$5+(ROW()-20)*$C$3+$C$7)&"."&$C$13&" - "&$E$13,"")&IF($E$14<>"",CHAR(10)&"DBB "&($C$5+(ROW()-20)*$C$3+$C$7)&"."&$C$14&" - "&$E$14,"")&IF($E$15<>"",CHAR(10)&"DBB "&($C$5+(ROW()-20)*$C$3+$C$7)&"."&$C$15&" - "&$E$15,"") -> DBB 2344.0 - 货物检测 DBB 2344.2 - 顶升高位
B25: 12468 | C25: DB1.DBB2350 | D25: DB1.DBB2359 | E25: DB2.DBB2350 | F25: DB2.DBB2359 | G25: DBB 2354.0 - 货物检测 DBB 2354.2 - 顶升高位
B26: 12469 | C26: DB1.DBB2360 | D26: DB1.DBB2369 | E26: DB2.DBB2360 | F26: DB2.DBB2369 | G26: DBB 2364.0 - 货物检测 DBB 2364.2 - 顶升高位
B27: 12470 | C27: DB1.DBB2370 | D27: DB1.DBB2379 | E27: DB2.DBB2370 | F27: DB2.DBB2379 | G27: DBB 2374.0 - 货物检测 DBB 2374.2 - 顶升高位
B28: 12471 | C28: DB1.DBB2380 | D28: DB1.DBB2389 | E28: DB2.DBB2380 | F28: DB2.DBB2389 | G28: DBB 2384.0 - 货物检测 DBB 2384.2 - 顶升高位
B29: 12472 | C29: DB1.DBB2390 | D29: DB1.DBB2399 | E29: DB2.DBB2390 | F29: DB2.DBB2399 | G29: DBB 2394.0 - 货物检测 DBB 2394.2 - 顶升高位
B30: 12473 | C30: DB1.DBB2400 | D30: DB1.DBB2409 | E30: DB2.DBB2400 | F30: DB2.DBB2409 | G30: DBB 2404.0 - 货物检测 DBB 2404.2 - 顶升高位
B31: 12474 | C31: DB1.DBB2410 | D31: DB1.DBB2419 | E31: DB2.DBB2410 | F31: DB2.DBB2419 | G31: DBB 2414.0 - 货物检测 DBB 2414.2 - 顶升高位
B32: 12475 | C32: DB1.DBB2420 | D32: DB1.DBB2429 | E32: DB2.DBB2420 | F32: DB2.DBB2429 | G32: DBB 2424.0 - 货物检测 DBB 2424.2 - 顶升高位
B33: 12476 | C33: DB1.DBB2430 | D33: DB1.DBB2439 | E33: DB2.DBB2430 | F33: DB2.DBB2439 | G33: DBB 2434.0 - 货物检测 DBB 2434.2 - 顶升高位
B34: 12477 | C34: DB1.DBB2440 | D34: DB1.DBB2449 | E34: DB2.DBB2440 | F34: DB2.DBB2449 | G34: DBB 2444.0 - 货物检测 DBB 2444.2 - 顶升高位
B35: 12478 | C35: DB1.DBB2450 | D35: DB1.DBB2459 | E35: DB2.DBB2450 | F35: DB2.DBB2459 | G35: DBB 2454.0 - 货物检测 DBB 2454.2 - 顶升高位
B36: 12479 | C36: DB1.DBB2460 | D36: DB1.DBB2469 | E36: DB2.DBB2460 | F36: DB2.DBB2469 | G36: DBB 2464.0 - 货物检测 DBB 2464.2 - 顶升高位
B37: 12480 | C37: DB1.DBB2470 | D37: DB1.DBB2479 | E37: DB2.DBB2470 | F37: DB2.DBB2479 | G37: DBB 2474.0 - 货物检测 DBB 2474.2 - 顶升高位
B38: 12481 | C38: DB1.DBB2480 | D38: DB1.DBB2489 | E38: DB2.DBB2480 | F38: DB2.DBB2489 | G38: DBB 2484.0 - 货物检测 DBB 2484.2 - 顶升高位
B39: 12482 | C39: DB1.DBB2490 | D39: DB1.DBB2499 | E39: DB2.DBB2490 | F39: DB2.DBB2499 | G39: DBB 2494.0 - 货物检测 DBB 2494.2 - 顶升高位
B40: 12483 | C40: DB1.DBB2500 | D40: DB1.DBB2509 | E40: DB2.DBB2500 | F40: DB2.DBB2509 | G40: DBB 2504.0 - 货物检测 DBB 2504.2 - 顶升高位
B41: 12484 | C41: DB1.DBB2510 | D41: DB1.DBB2519 | E41: DB2.DBB2510 | F41: DB2.DBB2519 | G41: DBB 2514.0 - 货物检测 DBB 2514.2 - 顶升高位
B42: 12485 | C42: DB1.DBB2520 | D42: DB1.DBB2529 | E42: DB2.DBB2520 | F42: DB2.DBB2529 | G42: DBB 2524.0 - 货物检测 DBB 2524.2 - 顶升高位
B43: 12486 | C43: DB1.DBB2530 | D43: DB1.DBB2539 | E43: DB2.DBB2530 | F43: DB2.DBB2539 | G43: DBB 2534.0 - 货物检测 DBB 2534.2 - 顶升高位
B44: 12487 | C44: DB1.DBB2540 | D44: DB1.DBB2549 | E44: DB2.DBB2540 | F44: DB2.DBB2549 | G44: DBB 2544.0 - 货物检测 DBB 2544.2 - 顶升高位
B45: 12488 | C45: DB1.DBB2550 | D45: DB1.DBB2559 | E45: DB2.DBB2550 | F45: DB2.DBB2559 | G45: DBB 2554.0 - 货物检测 DBB 2554.2 - 顶升高位
B46: 12489 | C46: DB1.DBB2560 | D46: DB1.DBB2569 | E46: DB2.DBB2560 | F46: DB2.DBB2569 | G46: DBB 2564.0 - 货物检测 DBB 2564.2 - 顶升高位
B47: 12490 | C47: DB1.DBB2570 | D47: DB1.DBB2579 | E47: DB2.DBB2570 | F47: DB2.DBB2579 | G47: DBB 2574.0 - 货物检测 DBB 2574.2 - 顶升高位
B48: 12491 | C48: DB1.DBB2580 | D48: DB1.DBB2589 | E48: DB2.DBB2580 | F48: DB2.DBB2589 | G48: DBB 2584.0 - 货物检测 DBB 2584.2 - 顶升高位
B49: 12492 | C49: DB1.DBB2590 | D49: DB1.DBB2599 | E49: DB2.DBB2590 | F49: DB2.DBB2599 | G49: DBB 2594.0 - 货物检测 DBB 2594.2 - 顶升高位
B50: 12493 | C50: DB1.DBB2600 | D50: DB1.DBB2609 | E50: DB2.DBB2600 | F50: DB2.DBB2609 | G50: DBB 2604.0 - 货物检测 DBB 2604.2 - 顶升高位
B51: 12494 | C51: DB1.DBB2610 | D51: DB1.DBB2619 | E51: DB2.DBB2610 | F51: DB2.DBB2619 | G51: DBB 2614.0 - 货物检测 DBB 2614.2 - 顶升高位
B52: 12495 | C52: DB1.DBB2620 | D52: DB1.DBB2629 | E52: DB2.DBB2620 | F52: DB2.DBB2629 | G52: DBB 2624.0 - 货物检测 DBB 2624.2 - 顶升高位
B53: 12496 | C53: DB1.DBB2630 | D53: DB1.DBB2639 | E53: DB2.DBB2630 | F53: DB2.DBB2639 | G53: DBB 2634.0 - 货物检测 DBB 2634.2 - 顶升高位
B54: 12497 | C54: DB1.DBB2640 | D54: DB1.DBB2649 | E54: DB2.DBB2640 | F54: DB2.DBB2649 | G54: DBB 2644.0 - 货物检测 DBB 2644.2 - 顶升高位
B55: 12498 | C55: DB1.DBB2650 | D55: DB1.DBB2659 | E55: DB2.DBB2650 | F55: DB2.DBB2659 | G55: DBB 2654.0 - 货物检测 DBB 2654.2 - 顶升高位
B56: 12499 | C56: DB1.DBB2660 | D56: DB1.DBB2669 | E56: DB2.DBB2660 | F56: DB2.DBB2669 | G56: DBB 2664.0 - 货物检测 DBB 2664.2 - 顶升高位
B57: 12500 | C57: DB1.DBB2670 | D57: DB1.DBB2679 | E57: DB2.DBB2670 | F57: DB2.DBB2679 | G57: DBB 2674.0 - 货物检测 DBB 2674.2 - 顶升高位
B58: 12501 | C58: DB1.DBB2680 | D58: DB1.DBB2689 | E58: DB2.DBB2680 | F58: DB2.DBB2689 | G58: DBB 2684.0 - 货物检测 DBB 2684.2 - 顶升高位
B59: 12502 | C59: DB1.DBB2690 | D59: DB1.DBB2699 | E59: DB2.DBB2690 | F59: DB2.DBB2699 | G59: DBB 2694.0 - 货物检测 DBB 2694.2 - 顶升高位
B60: 12503 | C60: DB1.DBB2700 | D60: DB1.DBB2709 | E60: DB2.DBB2700 | F60: DB2.DBB2709 | G60: DBB 2704.0 - 货物检测 DBB 2704.2 - 顶升高位
B61: 12504 | C61: DB1.DBB2710 | D61: DB1.DBB2719 | E61: DB2.DBB2710 | F61: DB2.DBB2719 | G61: DBB 2714.0 - 货物检测 DBB 2714.2 - 顶升高位
B62: 12505 | C62: DB1.DBB2720 | D62: DB1.DBB2729 | E62: DB2.DBB2720 | F62: DB2.DBB2729 | G62: DBB 2724.0 - 货物检测 DBB 2724.2 - 顶升高位
B63: 12506 | C63: DB1.DBB2730 | D63: DB1.DBB2739 | E63: DB2.DBB2730 | F63: DB2.DBB2739 | G63: DBB 2734.0 - 货物检测 DBB 2734.2 - 顶升高位
B64: 12507 | C64: DB1.DBB2740 | D64: DB1.DBB2749 | E64: DB2.DBB2740 | F64: DB2.DBB2749 | G64: DBB 2744.0 - 货物检测 DBB 2744.2 - 顶升高位
B65: 12508 | C65: DB1.DBB2750 | D65: DB1.DBB2759 | E65: DB2.DBB2750 | F65: DB2.DBB2759 | G65: DBB 2754.0 - 货物检测 DBB 2754.2 - 顶升高位
B66: 12509 | C66: DB1.DBB2760 | D66: DB1.DBB2769 | E66: DB2.DBB2760 | F66: DB2.DBB2769 | G66: DBB 2764.0 - 货物检测 DBB 2764.2 - 顶升高位
B67: 12510 | C67: DB1.DBB2770 | D67: DB1.DBB2779 | E67: DB2.DBB2770 | F67: DB2.DBB2779 | G67: DBB 2774.0 - 货物检测 DBB 2774.2 - 顶升高位
B68: 12511 | C68: DB1.DBB2780 | D68: DB1.DBB2789 | E68: DB2.DBB2780 | F68: DB2.DBB2789 | G68: DBB 2784.0 - 货物检测 DBB 2784.2 - 顶升高位 | H68: 挪到常温库后
B69: 12650 | C69: DB1.DBB2790 | D69: DB1.DBB2799 | E69: DB2.DBB2790 | F69: DB2.DBB2799 | G69: DBB 2794.0 - 货物检测 DBB 2794.2 - 顶升高位 | H69: 归到连廊PLC
B70: 12651 | C70: DB1.DBB2800 | D70: DB1.DBB2809 | E70: DB2.DBB2800 | F70: DB2.DBB2809 | G70: DBB 2804.0 - 货物检测 DBB 2804.2 - 顶升高位
B71: 12652 | C71: DB1.DBB2810 | D71: DB1.DBB2819 | E71: DB2.DBB2810 | F71: DB2.DBB2819 | G71: DBB 2814.0 - 货物检测 DBB 2814.2 - 顶升高位
B72: 12653 | C72: DB1.DBB2820 | D72: DB1.DBB2829 | E72: DB2.DBB2820 | F72: DB2.DBB2829 | G72: DBB 2824.0 - 货物检测 DBB 2824.2 - 顶升高位
B73: 12654 | C73: DB1.DBB2830 | D73: DB1.DBB2839 | E73: DB2.DBB2830 | F73: DB2.DBB2839 | G73: DBB 2834.0 - 货物检测 DBB 2834.2 - 顶升高位
B74: 12655 | C74: DB1.DBB2840 | D74: DB1.DBB2849 | E74: DB2.DBB2840 | F74: DB2.DBB2849 | G74: DBB 2844.0 - 货物检测 DBB 2844.2 - 顶升高位
B75: 12656 | C75: DB1.DBB2850 | D75: DB1.DBB2859 | E75: DB2.DBB2850 | F75: DB2.DBB2859 | G75: DBB 2854.0 - 货物检测 DBB 2854.2 - 顶升高位
B76: 12657 | C76: DB1.DBB2860 | D76: DB1.DBB2869 | E76: DB2.DBB2860 | F76: DB2.DBB2869 | G76: DBB 2864.0 - 货物检测 DBB 2864.2 - 顶升高位
B77: 12658 | C77: DB1.DBB2870 | D77: DB1.DBB2879 | E77: DB2.DBB2870 | F77: DB2.DBB2879 | G77: DBB 2874.0 - 货物检测 DBB 2874.2 - 顶升高位
B78: 12659 | C78: DB1.DBB2880 | D78: DB1.DBB2889 | E78: DB2.DBB2880 | F78: DB2.DBB2889 | G78: DBB 2884.0 - 货物检测 DBB 2884.2 - 顶升高位
B79: 12660 | C79: DB1.DBB2890 | D79: DB1.DBB2899 | E79: DB2.DBB2890 | F79: DB2.DBB2899 | G79: DBB 2894.0 - 货物检测 DBB 2894.2 - 顶升高位
B80: 12661 | C80: DB1.DBB2900 | D80: DB1.DBB2909 | E80: DB2.DBB2900 | F80: DB2.DBB2909 | G80: DBB 2904.0 - 货物检测 DBB 2904.2 - 顶升高位
B81: 12662 | C81: DB1.DBB2910 | D81: DB1.DBB2919 | E81: DB2.DBB2910 | F81: DB2.DBB2919 | G81: DBB 2914.0 - 货物检测 DBB 2914.2 - 顶升高位
B82: 12663 | C82: DB1.DBB2920 | D82: DB1.DBB2929 | E82: DB2.DBB2920 | F82: DB2.DBB2929 | G82: DBB 2924.0 - 货物检测 DBB 2924.2 - 顶升高位
B83: 12664 | C83: DB1.DBB2930 | D83: DB1.DBB2939 | E83: DB2.DBB2930 | F83: DB2.DBB2939 | G83: DBB 2934.0 - 货物检测 DBB 2934.2 - 顶升高位
B84: 12665 | C84: DB1.DBB2940 | D84: DB1.DBB2949 | E84: DB2.DBB2940 | F84: DB2.DBB2949 | G84: DBB 2944.0 - 货物检测 DBB 2944.2 - 顶升高位
B85: 12666 | C85: DB1.DBB2950 | D85: DB1.DBB2959 | E85: DB2.DBB2950 | F85: DB2.DBB2959 | G85: DBB 2954.0 - 货物检测 DBB 2954.2 - 顶升高位
B86: 12667 | C86: DB1.DBB2960 | D86: DB1.DBB2969 | E86: DB2.DBB2960 | F86: DB2.DBB2969 | G86: DBB 2964.0 - 货物检测 DBB 2964.2 - 顶升高位
B87: 12668 | C87: ="DB1.DBB"&($C$5+(ROW()-20)*$C$3) -> DB1.DBB2970 | D87: ="DB1.DBB"&(C$5+(ROW()-19)*C$3-1) -> DB1.DBB2979 | E87: ="DB2.DBB"&($C$6+(ROW()-20)*$C$4) -> DB2.DBB2970 | F87: ="DB2.DBB"&(C$5+(ROW()-19)*C$3-1) -> DB2.DBB2979 | G87: DBB 2974.0 - 货物检测 DBB 2974.2 - 顶升高位
B88: =B87+1 -> 12669 | C88: DB1.DBB2980 | D88: DB1.DBB2989 | E88: DB2.DBB2980 | F88: DB2.DBB2989 | G88: =IF($E$8<>"","DBB "&($C$5+(ROW()-20)*$C$3+$C$7)&"."&$C$8&" - "&$E$8,"")&IF($E$9<>"",CHAR(10)&"DBB "&($C$5+(ROW()-20)*$C$3+$C$7)&"."&$C$9&" - "&$E$9,"")&IF($E$10<>"",CHAR(10)&"DBB "&($C$5+(ROW()-20)*$C$3+$C$7)&"."&$C$10&" - "&$E$10,"")&IF($E$11<>"",CHAR(10)&"DBB "&($C$5+(ROW()-20)*$C$3+$C$7)&"."&$C$11&" - "&$E$11,"")&IF($E$12<>"",CHAR(10)&"DBB "&($C$5+(ROW()-20)*$C$3+$C$7)&"."&$C$12&" - "&$E$12,"")&IF($E$13<>"",CHAR(10)&"DBB "&($C$5+(ROW()-20)*$C$3+$C$7)&"."&$C$13&" - "&$E$13,"")&IF($E$14<>"",CHAR(10)&"DBB "&($C$5+(ROW()-20)*$C$3+$C$7)&"."&$C$14&" - "&$E$14,"")&IF($E$15<>"",CHAR(10)&"DBB "&($C$5+(ROW()-20)*$C$3+$C$7)&"."&$C$15&" - "&$E$15,"") -> DBB 2984.0 - 货物检测 DBB 2984.2 - 顶升高位
B89: 12670 | C89: DB1.DBB2990 | D89: DB1.DBB2999 | E89: DB2.DBB2990 | F89: DB2.DBB2999 | G89: DBB 2994.0 - 货物检测 DBB 2994.2 - 顶升高位
B90: 12671 | C90: DB1.DBB3000 | D90: DB1.DBB3009 | E90: DB2.DBB3000 | F90: DB2.DBB3009 | G90: DBB 3004.0 - 货物检测 DBB 3004.2 - 顶升高位
B91: 12672 | C91: DB1.DBB3010 | D91: DB1.DBB3019 | E91: DB2.DBB3010 | F91: DB2.DBB3019 | G91: DBB 3014.0 - 货物检测 DBB 3014.2 - 顶升高位
B92: 12673 | C92: DB1.DBB3020 | D92: DB1.DBB3029 | E92: DB2.DBB3020 | F92: DB2.DBB3029 | G92: DBB 3024.0 - 货物检测 DBB 3024.2 - 顶升高位
B93: 12674 | C93: DB1.DBB3030 | D93: DB1.DBB3039 | E93: DB2.DBB3030 | F93: DB2.DBB3039 | G93: DBB 3034.0 - 货物检测 DBB 3034.2 - 顶升高位
B94: 12675 | C94: DB1.DBB3040 | D94: DB1.DBB3049 | E94: DB2.DBB3040 | F94: DB2.DBB3049 | G94: DBB 3044.0 - 货物检测 DBB 3044.2 - 顶升高位
B95: 12676 | C95: DB1.DBB3050 | D95: DB1.DBB3059 | E95: DB2.DBB3050 | F95: DB2.DBB3059 | G95: DBB 3054.0 - 货物检测 DBB 3054.2 - 顶升高位
B96: 12677 | C96: DB1.DBB3060 | D96: DB1.DBB3069 | E96: DB2.DBB3060 | F96: DB2.DBB3069 | G96: DBB 3064.0 - 货物检测 DBB 3064.2 - 顶升高位
B97: 12678 | C97: DB1.DBB3070 | D97: DB1.DBB3079 | E97: DB2.DBB3070 | F97: DB2.DBB3079 | G97: DBB 3074.0 - 货物检测 DBB 3074.2 - 顶升高位
B98: 12679 | C98: DB1.DBB3080 | D98: DB1.DBB3089 | E98: DB2.DBB3080 | F98: DB2.DBB3089 | G98: DBB 3084.0 - 货物检测 DBB 3084.2 - 顶升高位
B99: 12680 | C99: DB1.DBB3090 | D99: DB1.DBB3099 | E99: DB2.DBB3090 | F99: DB2.DBB3099 | G99: DBB 3094.0 - 货物检测 DBB 3094.2 - 顶升高位
B100: 12681 | C100: DB1.DBB3100 | D100: DB1.DBB3109 | E100: DB2.DBB3100 | F100: DB2.DBB3109 | G100: DBB 3104.0 - 货物检测 DBB 3104.2 - 顶升高位
B101: 12682 | C101: DB1.DBB3110 | D101: DB1.DBB3119 | E101: DB2.DBB3110 | F101: DB2.DBB3119 | G101: DBB 3114.0 - 货物检测 DBB 3114.2 - 顶升高位
B102: 12683 | C102: DB1.DBB3120 | D102: DB1.DBB3129 | E102: DB2.DBB3120 | F102: DB2.DBB3129 | G102: DBB 3124.0 - 货物检测 DBB 3124.2 - 顶升高位
B103: 12684 | C103: DB1.DBB3130 | D103: DB1.DBB3139 | E103: DB2.DBB3130 | F103: DB2.DBB3139 | G103: DBB 3134.0 - 货物检测 DBB 3134.2 - 顶升高位
B104: 12685 | C104: DB1.DBB3140 | D104: DB1.DBB3149 | E104: DB2.DBB3140 | F104: DB2.DBB3149 | G104: DBB 3144.0 - 货物检测 DBB 3144.2 - 顶升高位
B105: 12686 | C105: DB1.DBB3150 | D105: DB1.DBB3159 | E105: DB2.DBB3150 | F105: DB2.DBB3159 | G105: DBB 3154.0 - 货物检测 DBB 3154.2 - 顶升高位
B106: 12687 | C106: DB1.DBB3160 | D106: DB1.DBB3169 | E106: DB2.DBB3160 | F106: DB2.DBB3169 | G106: DBB 3164.0 - 货物检测 DBB 3164.2 - 顶升高位
B107: 12688 | C107: DB1.DBB3170 | D107: DB1.DBB3179 | E107: DB2.DBB3170 | F107: DB2.DBB3179 | G107: DBB 3174.0 - 货物检测 DBB 3174.2 - 顶升高位
B108: 12689 | C108: DB1.DBB3180 | D108: DB1.DBB3189 | E108: DB2.DBB3180 | F108: DB2.DBB3189 | G108: DBB 3184.0 - 货物检测 DBB 3184.2 - 顶升高位
B109: 12690 | C109: DB1.DBB3190 | D109: DB1.DBB3199 | E109: DB2.DBB3190 | F109: DB2.DBB3199 | G109: DBB 3194.0 - 货物检测 DBB 3194.2 - 顶升高位
B110: 12691 | C110: DB1.DBB3200 | D110: DB1.DBB3209 | E110: DB2.DBB3200 | F110: DB2.DBB3209 | G110: DBB 3204.0 - 货物检测 DBB 3204.2 - 顶升高位
B111: 12692 | C111: DB1.DBB3210 | D111: DB1.DBB3219 | E111: DB2.DBB3210 | F111: DB2.DBB3219 | G111: DBB 3214.0 - 货物检测 DBB 3214.2 - 顶升高位
B112: 12693 | C112: DB1.DBB3220 | D112: DB1.DBB3229 | E112: DB2.DBB3220 | F112: DB2.DBB3229 | G112: DBB 3224.0 - 货物检测 DBB 3224.2 - 顶升高位
B113: 12694 | C113: DB1.DBB3230 | D113: DB1.DBB3239 | E113: DB2.DBB3230 | F113: DB2.DBB3239 | G113: DBB 3234.0 - 货物检测 DBB 3234.2 - 顶升高位
B114: 12695 | C114: DB1.DBB3240 | D114: DB1.DBB3249 | E114: DB2.DBB3240 | F114: DB2.DBB3249 | G114: DBB 3244.0 - 货物检测 DBB 3244.2 - 顶升高位
B115: 12696 | C115: DB1.DBB3250 | D115: DB1.DBB3259 | E115: DB2.DBB3250 | F115: DB2.DBB3259 | G115: DBB 3254.0 - 货物检测 DBB 3254.2 - 顶升高位
B116: 12697 | C116: DB1.DBB3260 | D116: DB1.DBB3269 | E116: DB2.DBB3260 | F116: DB2.DBB3269 | G116: DBB 3264.0 - 货物检测 DBB 3264.2 - 顶升高位
B117: 12698 | C117: DB1.DBB3270 | D117: DB1.DBB3279 | E117: DB2.DBB3270 | F117: DB2.DBB3279 | G117: DBB 3274.0 - 货物检测 DBB 3274.2 - 顶升高位
B118: 12699 | C118: DB1.DBB3280 | D118: DB1.DBB3289 | E118: DB2.DBB3280 | F118: DB2.DBB3289 | G118: DBB 3284.0 - 货物检测 DBB 3284.2 - 顶升高位
B119: 12700 | C119: DB1.DBB3290 | D119: DB1.DBB3299 | E119: DB2.DBB3290 | F119: DB2.DBB3299 | G119: DBB 3294.0 - 货物检测 DBB 3294.2 - 顶升高位
B120: 12701 | C120: DB1.DBB3300 | D120: DB1.DBB3309 | E120: DB2.DBB3300 | F120: DB2.DBB3309 | G120: DBB 3304.0 - 货物检测 DBB 3304.2 - 顶升高位
B121: 12702 | C121: DB1.DBB3310 | D121: DB1.DBB3319 | E121: DB2.DBB3310 | F121: DB2.DBB3319 | G121: DBB 3314.0 - 货物检测 DBB 3314.2 - 顶升高位
B122: 12703 | C122: DB1.DBB3320 | D122: DB1.DBB3329 | E122: DB2.DBB3320 | F122: DB2.DBB3329 | G122: DBB 3324.0 - 货物检测 DBB 3324.2 - 顶升高位
B123: 12704 | C123: DB1.DBB3330 | D123: DB1.DBB3339 | E123: DB2.DBB3330 | F123: DB2.DBB3339 | G123: DBB 3334.0 - 货物检测 DBB 3334.2 - 顶升高位
B124: 12705 | C124: DB1.DBB3340 | D124: DB1.DBB3349 | E124: DB2.DBB3340 | F124: DB2.DBB3349 | G124: DBB 3344.0 - 货物检测 DBB 3344.2 - 顶升高位
B125: 12706 | C125: DB1.DBB3350 | D125: DB1.DBB3359 | E125: DB2.DBB3350 | F125: DB2.DBB3359 | G125: DBB 3354.0 - 货物检测 DBB 3354.2 - 顶升高位
B126: 12707 | C126: DB1.DBB3360 | D126: DB1.DBB3369 | E126: DB2.DBB3360 | F126: DB2.DBB3369 | G126: DBB 3364.0 - 货物检测 DBB 3364.2 - 顶升高位
B127: 12708 | C127: DB1.DBB3370 | D127: DB1.DBB3379 | E127: DB2.DBB3370 | F127: DB2.DBB3379 | G127: DBB 3374.0 - 货物检测 DBB 3374.2 - 顶升高位
B128: 12709 | C128: DB1.DBB3380 | D128: DB1.DBB3389 | E128: DB2.DBB3380 | F128: DB2.DBB3389 | G128: DBB 3384.0 - 货物检测 DBB 3384.2 - 顶升高位
B129: 12710 | C129: DB1.DBB3390 | D129: DB1.DBB3399 | E129: DB2.DBB3390 | F129: DB2.DBB3399 | G129: DBB 3394.0 - 货物检测 DBB 3394.2 - 顶升高位
B130: 12711 | C130: DB1.DBB3400 | D130: DB1.DBB3409 | E130: DB2.DBB3400 | F130: DB2.DBB3409 | G130: DBB 3404.0 - 货物检测 DBB 3404.2 - 顶升高位
B131: 12712 | C131: DB1.DBB3410 | D131: DB1.DBB3419 | E131: DB2.DBB3410 | F131: DB2.DBB3419 | G131: DBB 3414.0 - 货物检测 DBB 3414.2 - 顶升高位
B132: 12713 | C132: DB1.DBB3420 | D132: DB1.DBB3429 | E132: DB2.DBB3420 | F132: DB2.DBB3429 | G132: DBB 3424.0 - 货物检测 DBB 3424.2 - 顶升高位
B133: 12714 | C133: DB1.DBB3430 | D133: DB1.DBB3439 | E133: DB2.DBB3430 | F133: DB2.DBB3439 | G133: DBB 3434.0 - 货物检测 DBB 3434.2 - 顶升高位
B134: 12715 | C134: DB1.DBB3440 | D134: DB1.DBB3449 | E134: DB2.DBB3440 | F134: DB2.DBB3449 | G134: DBB 3444.0 - 货物检测 DBB 3444.2 - 顶升高位
B135: 12716 | C135: DB1.DBB3450 | D135: DB1.DBB3459 | E135: DB2.DBB3450 | F135: DB2.DBB3459 | G135: DBB 3454.0 - 货物检测 DBB 3454.2 - 顶升高位
B136: 12717 | C136: DB1.DBB3460 | D136: DB1.DBB3469 | E136: DB2.DBB3460 | F136: DB2.DBB3469 | G136: DBB 3464.0 - 货物检测 DBB 3464.2 - 顶升高位
B137: 12718 | C137: DB1.DBB3470 | D137: DB1.DBB3479 | E137: DB2.DBB3470 | F137: DB2.DBB3479 | G137: DBB 3474.0 - 货物检测 DBB 3474.2 - 顶升高位
B138: 12719 | C138: DB1.DBB3480 | D138: DB1.DBB3489 | E138: DB2.DBB3480 | F138: DB2.DBB3489 | G138: DBB 3484.0 - 货物检测 DBB 3484.2 - 顶升高位
B139: 12720 | C139: DB1.DBB3490 | D139: DB1.DBB3499 | E139: DB2.DBB3490 | F139: DB2.DBB3499 | G139: DBB 3494.0 - 货物检测 DBB 3494.2 - 顶升高位
B140: 12721 | C140: DB1.DBB3500 | D140: DB1.DBB3509 | E140: DB2.DBB3500 | F140: DB2.DBB3509 | G140: DBB 3504.0 - 货物检测 DBB 3504.2 - 顶升高位
B141: 12722 | C141: DB1.DBB3510 | D141: DB1.DBB3519 | E141: DB2.DBB3510 | F141: DB2.DBB3519 | G141: DBB 3514.0 - 货物检测 DBB 3514.2 - 顶升高位
B142: 12723 | C142: DB1.DBB3520 | D142: DB1.DBB3529 | E142: DB2.DBB3520 | F142: DB2.DBB3529 | G142: DBB 3524.0 - 货物检测 DBB 3524.2 - 顶升高位
B143: 12724 | C143: DB1.DBB3530 | D143: DB1.DBB3539 | E143: DB2.DBB3530 | F143: DB2.DBB3539 | G143: DBB 3534.0 - 货物检测 DBB 3534.2 - 顶升高位
B144: 12725 | C144: DB1.DBB3540 | D144: DB1.DBB3549 | E144: DB2.DBB3540 | F144: DB2.DBB3549 | G144: DBB 3544.0 - 货物检测 DBB 3544.2 - 顶升高位
B145: 12726 | C145: DB1.DBB3550 | D145: DB1.DBB3559 | E145: DB2.DBB3550 | F145: DB2.DBB3559 | G145: DBB 3554.0 - 货物检测 DBB 3554.2 - 顶升高位
B146: 12727 | C146: DB1.DBB3560 | D146: DB1.DBB3569 | E146: DB2.DBB3560 | F146: DB2.DBB3569 | G146: DBB 3564.0 - 货物检测 DBB 3564.2 - 顶升高位
B147: 15001 | C147: DB1.DBB3570 | D147: DB1.DBB3579 | E147: DB2.DBB3570 | F147: DB2.DBB3579 | G147: DBB 3574.0 - 货物检测 DBB 3574.2 - 顶升高位
B148: 15002 | C148: DB1.DBB3580 | D148: DB1.DBB3589 | E148: DB2.DBB3580 | F148: DB2.DBB3589 | G148: DBB 3584.0 - 货物检测 DBB 3584.2 - 顶升高位
B149: 15003 | C149: DB1.DBB3590 | D149: DB1.DBB3599 | E149: DB2.DBB3590 | F149: DB2.DBB3599 | G149: DBB 3594.0 - 货物检测 DBB 3594.2 - 顶升高位
B150: 15004 | C150: DB1.DBB3600 | D150: DB1.DBB3609 | E150: DB2.DBB3600 | F150: DB2.DBB3609 | G150: DBB 3604.0 - 货物检测 DBB 3604.2 - 顶升高位
B151: 15005 | C151: ="DB1.DBB"&($C$5+(ROW()-20)*$C$3) -> DB1.DBB3610 | D151: ="DB1.DBB"&(C$5+(ROW()-19)*C$3-1) -> DB1.DBB3619 | E151: ="DB2.DBB"&($C$6+(ROW()-20)*$C$4) -> DB2.DBB3610 | F151: ="DB2.DBB"&(C$5+(ROW()-19)*C$3-1) -> DB2.DBB3619 | G151: DBB 3614.0 - 货物检测 DBB 3614.2 - 顶升高位
B152: 15006 | C152: DB1.DBB3620 | D152: DB1.DBB3629 | E152: DB2.DBB3620 | F152: DB2.DBB3629 | G152: =IF($E$8<>"","DBB "&($C$5+(ROW()-20)*$C$3+$C$7)&"."&$C$8&" - "&$E$8,"")&IF($E$9<>"",CHAR(10)&"DBB "&($C$5+(ROW()-20)*$C$3+$C$7)&"."&$C$9&" - "&$E$9,"")&IF($E$10<>"",CHAR(10)&"DBB "&($C$5+(ROW()-20)*$C$3+$C$7)&"."&$C$10&" - "&$E$10,"")&IF($E$11<>"",CHAR(10)&"DBB "&($C$5+(ROW()-20)*$C$3+$C$7)&"."&$C$11&" - "&$E$11,"")&IF($E$12<>"",CHAR(10)&"DBB "&($C$5+(ROW()-20)*$C$3+$C$7)&"."&$C$12&" - "&$E$12,"")&IF($E$13<>"",CHAR(10)&"DBB "&($C$5+(ROW()-20)*$C$3+$C$7)&"."&$C$13&" - "&$E$13,"")&IF($E$14<>"",CHAR(10)&"DBB "&($C$5+(ROW()-20)*$C$3+$C$7)&"."&$C$14&" - "&$E$14,"")&IF($E$15<>"",CHAR(10)&"DBB "&($C$5+(ROW()-20)*$C$3+$C$7)&"."&$C$15&" - "&$E$15,"") -> DBB 3624.0 - 货物检测 DBB 3624.2 - 顶升高位
B153: 15007 | C153: DB1.DBB3630 | D153: DB1.DBB3639 | E153: DB2.DBB3630 | F153: DB2.DBB3639 | G153: DBB 3634.0 - 货物检测 DBB 3634.2 - 顶升高位
B154: 15008 | C154: DB1.DBB3640 | D154: DB1.DBB3649 | E154: DB2.DBB3640 | F154: DB2.DBB3649 | G154: DBB 3644.0 - 货物检测 DBB 3644.2 - 顶升高位
B155: 15009 | C155: DB1.DBB3650 | D155: DB1.DBB3659 | E155: DB2.DBB3650 | F155: DB2.DBB3659 | G155: DBB 3654.0 - 货物检测 DBB 3654.2 - 顶升高位
B156: 15010 | C156: DB1.DBB3660 | D156: DB1.DBB3669 | E156: DB2.DBB3660 | F156: DB2.DBB3669 | G156: DBB 3664.0 - 货物检测 DBB 3664.2 - 顶升高位
B157: 15011 | C157: DB1.DBB3670 | D157: DB1.DBB3679 | E157: DB2.DBB3670 | F157: DB2.DBB3679 | G157: DBB 3674.0 - 货物检测 DBB 3674.2 - 顶升高位
B158: 15012 | C158: DB1.DBB3680 | D158: DB1.DBB3689 | E158: DB2.DBB3680 | F158: DB2.DBB3689 | G158: DBB 3684.0 - 货物检测 DBB 3684.2 - 顶升高位
B159: 15013 | C159: DB1.DBB3690 | D159: DB1.DBB3699 | E159: DB2.DBB3690 | F159: DB2.DBB3699 | G159: DBB 3694.0 - 货物检测 DBB 3694.2 - 顶升高位
B160: 15014 | C160: DB1.DBB3700 | D160: DB1.DBB3709 | E160: DB2.DBB3700 | F160: DB2.DBB3709 | G160: DBB 3704.0 - 货物检测 DBB 3704.2 - 顶升高位
B161: 15004-15011 | C161: DB1.DBB3800 | E161: DB2.DBB3800 | G161: 入库时1，出库时2，默认值1 | H161: 电气触摸屏申请出入库换向
B162: 15005-15012 | C162: DB1.DBB3801 | E162: DB2.DBB3801 | G162: 入库时1，出库时2，默认值2

Sheet 组件车间输送机
A1: 组件车间输送机
B3: 设备DB1长度 | C3: 10
B4: 设备DB2长度 | C4: 10
B5: 设备DB1起始位 | C5: 0
B6: 设备DB2起始位 | C6: 0
B7: 设备光电位 | C7: 4
B8: 光电位0 | C8: 0 | D8: 光电内容1 | E8: 货物检测
B9: 光电位1 | C9: 1 | D9: 光电内容2
B10: 光电位2 | C10: 2 | D10: 光电内容3 | E10: 顶升高位
B11: 光电位3 | C11: 3 | D11: 光电内容4
B12: 光电位4 | C12: 4 | D12: 光电内容5
B13: 光电位5 | C13: 5 | D13: 光电内容6
B14: 光电位6 | C14: 6 | D14: 光电内容7
B15: 光电位7 | C15: 7 | D15: 光电内容8
B16: 设备起始设备号 | C16: 22001
A17: 注意：组件车间设备公用一个主站PLC
B18: 设备编号 | C18: ="DB1起止地址（"&$C$3&"个字节）" -> DB1起止地址（10个字节） | E18: ="DB2起止地址（"&$C$4&"个字节）" -> DB2起止地址（10个字节） | G18: 备注
C19: 起始 | D19: 终止 | E19: 起始 | F19: 终止 | G19: 光电信号
B20: 22001 | C20: ="DB1.DBB"&($C$5+(ROW()-20)*$C$3) -> DB1.DBB0 | D20: ="DB1.DBB"&(C$5+(ROW()-19)*C$3-1) -> DB1.DBB9 | E20: ="DB2.DBB"&($C$6+(ROW()-20)*$C$4) -> DB2.DBB0 | F20: ="DB2.DBB"&(C$5+(ROW()-19)*C$3-1) -> DB2.DBB9 | G20: =IF($E$8<>"","DBB "&($C$5+(ROW()-20)*$C$3+$C$7)&"."&$C$8&" - "&$E$8,"")&IF($E$9<>"",CHAR(10)&"DBB "&($C$5+(ROW()-20)*$C$3+$C$7)&"."&$C$9&" - "&$E$9,"")&IF($E$10<>"",CHAR(10)&"DBB "&($C$5+(ROW()-20)*$C$3+$C$7)&"."&$C$10&" - "&$E$10,"")&IF($E$11<>"",CHAR(10)&"DBB "&($C$5+(ROW()-20)*$C$3+$C$7)&"."&$C$11&" - "&$E$11,"")&IF($E$12<>"",CHAR(10)&"DBB "&($C$5+(ROW()-20)*$C$3+$C$7)&"."&$C$12&" - "&$E$12,"")&IF($E$13<>"",CHAR(10)&"DBB "&($C$5+(ROW()-20)*$C$3+$C$7)&"."&$C$13&" - "&$E$13,"")&IF($E$14<>"",CHAR(10)&"DBB "&($C$5+(ROW()-20)*$C$3+$C$7)&"."&$C$14&" - "&$E$14,"")&IF($E$15<>"",CHAR(10)&"DBB "&($C$5+(ROW()-20)*$C$3+$C$7)&"."&$C$15&" - "&$E$15,"") -> DBB 4.0 - 货物检测 DBB 4.2 - 顶升高位
B21: =B20+1 -> 22002 | C21: ="DB1.DBB"&($C$5+(ROW()-20)*$C$3) -> DB1.DBB10 | D21: ="DB1.DBB"&(C$5+(ROW()-19)*C$3-1) -> DB1.DBB19 | E21: ="DB2.DBB"&($C$6+(ROW()-20)*$C$4) -> DB2.DBB10 | F21: ="DB2.DBB"&(C$5+(ROW()-19)*C$3-1) -> DB2.DBB19 | G21: =IF($E$8<>"","DBB "&($C$5+(ROW()-20)*$C$3+$C$7)&"."&$C$8&" - "&$E$8,"")&IF($E$9<>"",CHAR(10)&"DBB "&($C$5+(ROW()-20)*$C$3+$C$7)&"."&$C$9&" - "&$E$9,"")&IF($E$10<>"",CHAR(10)&"DBB "&($C$5+(ROW()-20)*$C$3+$C$7)&"."&$C$10&" - "&$E$10,"")&IF($E$11<>"",CHAR(10)&"DBB "&($C$5+(ROW()-20)*$C$3+$C$7)&"."&$C$11&" - "&$E$11,"")&IF($E$12<>"",CHAR(10)&"DBB "&($C$5+(ROW()-20)*$C$3+$C$7)&"."&$C$12&" - "&$E$12,"")&IF($E$13<>"",CHAR(10)&"DBB "&($C$5+(ROW()-20)*$C$3+$C$7)&"."&$C$13&" - "&$E$13,"")&IF($E$14<>"",CHAR(10)&"DBB "&($C$5+(ROW()-20)*$C$3+$C$7)&"."&$C$14&" - "&$E$14,"")&IF($E$15<>"",CHAR(10)&"DBB "&($C$5+(ROW()-20)*$C$3+$C$7)&"."&$C$15&" - "&$E$15,"") -> DBB 14.0 - 货物检测 DBB 14.2 - 顶升高位
B22: =B21+1 -> 22003 | C22: DB1.DBB20 | D22: DB1.DBB29 | E22: DB2.DBB20 | F22: DB2.DBB29 | G22: =IF($E$8<>"","DBB "&($C$5+(ROW()-20)*$C$3+$C$7)&"."&$C$8&" - "&$E$8,"")&IF($E$9<>"",CHAR(10)&"DBB "&($C$5+(ROW()-20)*$C$3+$C$7)&"."&$C$9&" - "&$E$9,"")&IF($E$10<>"",CHAR(10)&"DBB "&($C$5+(ROW()-20)*$C$3+$C$7)&"."&$C$10&" - "&$E$10,"")&IF($E$11<>"",CHAR(10)&"DBB "&($C$5+(ROW()-20)*$C$3+$C$7)&"."&$C$11&" - "&$E$11,"")&IF($E$12<>"",CHAR(10)&"DBB "&($C$5+(ROW()-20)*$C$3+$C$7)&"."&$C$12&" - "&$E$12,"")&IF($E$13<>"",CHAR(10)&"DBB "&($C$5+(ROW()-20)*$C$3+$C$7)&"."&$C$13&" - "&$E$13,"")&IF($E$14<>"",CHAR(10)&"DBB "&($C$5+(ROW()-20)*$C$3+$C$7)&"."&$C$14&" - "&$E$14,"")&IF($E$15<>"",CHAR(10)&"DBB "&($C$5+(ROW()-20)*$C$3+$C$7)&"."&$C$15&" - "&$E$15,"") -> DBB 24.0 - 货物检测 DBB 24.2 - 顶升高位 | H22: 入库模式下，空托盘读码上报用于管理组盘，实托盘读码上报申请入库任务
B23: 22004 | C23: DB1.DBB30 | D23: DB1.DBB39 | E23: DB2.DBB30 | F23: DB2.DBB39 | G23: DBB 34.0 - 货物检测 DBB 34.2 - 顶升高位
B24: 22005 | C24: DB1.DBB40 | D24: DB1.DBB49 | E24: DB2.DBB40 | F24: DB2.DBB49 | G24: DBB 44.0 - 货物检测 DBB 44.2 - 顶升高位
B25: 22006 | C25: DB1.DBB50 | D25: DB1.DBB59 | E25: DB2.DBB50 | F25: DB2.DBB59 | G25: DBB 54.0 - 货物检测 DBB 54.2 - 顶升高位
B26: 22007 | C26: DB1.DBB60 | D26: DB1.DBB69 | E26: DB2.DBB60 | F26: DB2.DBB69 | G26: DBB 64.0 - 货物检测 DBB 64.2 - 顶升高位
B27: 22008 | C27: DB1.DBB70 | D27: DB1.DBB79 | E27: DB2.DBB70 | F27: DB2.DBB79 | G27: DBB 74.0 - 货物检测 DBB 74.2 - 顶升高位
B28: 22009 | C28: DB1.DBB80 | D28: DB1.DBB89 | E28: DB2.DBB80 | F28: DB2.DBB89 | G28: DBB 84.0 - 货物检测 DBB 84.2 - 顶升高位
B29: 22010 | C29: DB1.DBB90 | D29: DB1.DBB99 | E29: DB2.DBB90 | F29: DB2.DBB99 | G29: DBB 94.0 - 货物检测 DBB 94.2 - 顶升高位
B30: 22011 | C30: DB1.DBB100 | D30: DB1.DBB109 | E30: DB2.DBB100 | F30: DB2.DBB109 | G30: DBB 104.0 - 货物检测 DBB 104.2 - 顶升高位
B31: 22012 | C31: DB1.DBB110 | D31: DB1.DBB119 | E31: DB2.DBB110 | F31: DB2.DBB119 | G31: DBB 114.0 - 货物检测 DBB 114.2 - 顶升高位
B32: 22013 | C32: DB1.DBB120 | D32: DB1.DBB129 | E32: DB2.DBB120 | F32: DB2.DBB129 | G32: DBB 124.0 - 货物检测 DBB 124.2 - 顶升高位
B33: 22014 | C33: DB1.DBB130 | D33: DB1.DBB139 | E33: DB2.DBB130 | F33: DB2.DBB139 | G33: DBB 134.0 - 货物检测 DBB 134.2 - 顶升高位
B34: 22015 | C34: DB1.DBB140 | D34: DB1.DBB149 | E34: DB2.DBB140 | F34: DB2.DBB149 | G34: DBB 144.0 - 货物检测 DBB 144.2 - 顶升高位
B35: 22016 | C35: DB1.DBB150 | D35: DB1.DBB159 | E35: DB2.DBB150 | F35: DB2.DBB159 | G35: DBB 154.0 - 货物检测 DBB 154.2 - 顶升高位
B36: 22017 | C36: DB1.DBB160 | D36: DB1.DBB169 | E36: DB2.DBB160 | F36: DB2.DBB169 | G36: DBB 164.0 - 货物检测 DBB 164.2 - 顶升高位
B37: 22018 | C37: DB1.DBB170 | D37: DB1.DBB179 | E37: DB2.DBB170 | F37: DB2.DBB179 | G37: DBB 174.0 - 货物检测 DBB 174.2 - 顶升高位
B38: 22026 | C38: DB1.DBB180 | D38: DB1.DBB189 | E38: DB2.DBB180 | F38: DB2.DBB189 | G38: DBB 184.0 - 货物检测 DBB 184.2 - 顶升高位
B39: 22027 | C39: DB1.DBB190 | D39: DB1.DBB199 | E39: DB2.DBB190 | F39: DB2.DBB199 | G39: DBB 194.0 - 货物检测 DBB 194.2 - 顶升高位
B40: 22028 | C40: DB1.DBB200 | D40: DB1.DBB209 | E40: DB2.DBB200 | F40: DB2.DBB209 | G40: DBB 204.0 - 货物检测 DBB 204.2 - 顶升高位
B41: 22029 | C41: DB1.DBB210 | D41: DB1.DBB219 | E41: DB2.DBB210 | F41: DB2.DBB219 | G41: DBB 214.0 - 货物检测 DBB 214.2 - 顶升高位
B42: 22030 | C42: DB1.DBB220 | D42: DB1.DBB229 | E42: DB2.DBB220 | F42: DB2.DBB229 | G42: DBB 224.0 - 货物检测 DBB 224.2 - 顶升高位
B43: 22031 | C43: DB1.DBB230 | D43: DB1.DBB239 | E43: DB2.DBB230 | F43: DB2.DBB239 | G43: DBB 234.0 - 货物检测 DBB 234.2 - 顶升高位
B44: 22032 | C44: DB1.DBB240 | D44: DB1.DBB249 | E44: DB2.DBB240 | F44: DB2.DBB249 | G44: DBB 244.0 - 货物检测 DBB 244.2 - 顶升高位
B45: 22033 | C45: DB1.DBB250 | D45: DB1.DBB259 | E45: DB2.DBB250 | F45: DB2.DBB259 | G45: DBB 254.0 - 货物检测 DBB 254.2 - 顶升高位
B46: 22034 | C46: DB1.DBB260 | D46: DB1.DBB269 | E46: DB2.DBB260 | F46: DB2.DBB269 | G46: DBB 264.0 - 货物检测 DBB 264.2 - 顶升高位
B47: 22035 | C47: DB1.DBB270 | D47: DB1.DBB279 | E47: DB2.DBB270 | F47: DB2.DBB279 | G47: DBB 274.0 - 货物检测 DBB 274.2 - 顶升高位
B48: 22036 | C48: DB1.DBB280 | D48: DB1.DBB289 | E48: DB2.DBB280 | F48: DB2.DBB289 | G48: DBB 284.0 - 货物检测 DBB 284.2 - 顶升高位
B49: 22037 | C49: DB1.DBB290 | D49: DB1.DBB299 | E49: DB2.DBB290 | F49: DB2.DBB299 | G49: DBB 294.0 - 货物检测 DBB 294.2 - 顶升高位
B50: 22038 | C50: DB1.DBB300 | D50: DB1.DBB309 | E50: DB2.DBB300 | F50: DB2.DBB309 | G50: DBB 304.0 - 货物检测 DBB 304.2 - 顶升高位
B51: 22039 | C51: DB1.DBB310 | D51: DB1.DBB319 | E51: DB2.DBB310 | F51: DB2.DBB319 | G51: DBB 314.0 - 货物检测 DBB 314.2 - 顶升高位
B52: 22040 | C52: DB1.DBB320 | D52: DB1.DBB329 | E52: DB2.DBB320 | F52: DB2.DBB329 | G52: DBB 324.0 - 货物检测 DBB 324.2 - 顶升高位
B53: 22041 | C53: DB1.DBB330 | D53: DB1.DBB339 | E53: DB2.DBB330 | F53: DB2.DBB339 | G53: DBB 334.0 - 货物检测 DBB 334.2 - 顶升高位
B54: 22042 | C54: DB1.DBB340 | D54: DB1.DBB349 | E54: DB2.DBB340 | F54: DB2.DBB349 | G54: DBB 344.0 - 货物检测 DBB 344.2 - 顶升高位
B55: 22043 | C55: DB1.DBB350 | D55: DB1.DBB359 | E55: DB2.DBB350 | F55: DB2.DBB359 | G55: DBB 354.0 - 货物检测 DBB 354.2 - 顶升高位
B56: 22051 | C56: DB1.DBB360 | D56: DB1.DBB369 | E56: DB2.DBB360 | F56: DB2.DBB369 | G56: DBB 364.0 - 货物检测 DBB 364.2 - 顶升高位
B57: 22052 | C57: DB1.DBB370 | D57: DB1.DBB379 | E57: DB2.DBB370 | F57: DB2.DBB379 | G57: DBB 374.0 - 货物检测 DBB 374.2 - 顶升高位
B58: 22053 | C58: DB1.DBB380 | D58: DB1.DBB389 | E58: DB2.DBB380 | F58: DB2.DBB389 | G58: DBB 384.0 - 货物检测 DBB 384.2 - 顶升高位
B59: 22054 | C59: DB1.DBB390 | D59: DB1.DBB399 | E59: DB2.DBB390 | F59: DB2.DBB399 | G59: DBB 394.0 - 货物检测 DBB 394.2 - 顶升高位
B60: 22055 | C60: DB1.DBB400 | D60: DB1.DBB409 | E60: DB2.DBB400 | F60: DB2.DBB409 | G60: DBB 404.0 - 货物检测 DBB 404.2 - 顶升高位
B61: 22056 | C61: DB1.DBB410 | D61: DB1.DBB419 | E61: DB2.DBB410 | F61: DB2.DBB419 | G61: DBB 414.0 - 货物检测 DBB 414.2 - 顶升高位
B62: 22057 | C62: DB1.DBB420 | D62: DB1.DBB429 | E62: DB2.DBB420 | F62: DB2.DBB429 | G62: DBB 424.0 - 货物检测 DBB 424.2 - 顶升高位
B63: 22058 | C63: DB1.DBB430 | D63: DB1.DBB439 | E63: DB2.DBB430 | F63: DB2.DBB439 | G63: DBB 434.0 - 货物检测 DBB 434.2 - 顶升高位
B64: 22059 | C64: DB1.DBB440 | D64: DB1.DBB449 | E64: DB2.DBB440 | F64: DB2.DBB449 | G64: DBB 444.0 - 货物检测 DBB 444.2 - 顶升高位
B65: 22060 | C65: DB1.DBB450 | D65: DB1.DBB459 | E65: DB2.DBB450 | F65: DB2.DBB459 | G65: DBB 454.0 - 货物检测 DBB 454.2 - 顶升高位
B66: 22061 | C66: DB1.DBB460 | D66: DB1.DBB469 | E66: DB2.DBB460 | F66: DB2.DBB469 | G66: DBB 464.0 - 货物检测 DBB 464.2 - 顶升高位
B67: 22062 | C67: DB1.DBB470 | D67: DB1.DBB479 | E67: DB2.DBB470 | F67: DB2.DBB479 | G67: DBB 474.0 - 货物检测 DBB 474.2 - 顶升高位
B68: 22063 | C68: DB1.DBB480 | D68: DB1.DBB489 | E68: DB2.DBB480 | F68: DB2.DBB489 | G68: DBB 484.0 - 货物检测 DBB 484.2 - 顶升高位
B69: 22064 | C69: DB1.DBB490 | D69: DB1.DBB499 | E69: DB2.DBB490 | F69: DB2.DBB499 | G69: DBB 494.0 - 货物检测 DBB 494.2 - 顶升高位
B70: 22065 | C70: DB1.DBB500 | D70: DB1.DBB509 | E70: DB2.DBB500 | F70: DB2.DBB509 | G70: DBB 504.0 - 货物检测 DBB 504.2 - 顶升高位
B71: 22066 | C71: DB1.DBB510 | D71: DB1.DBB519 | E71: DB2.DBB510 | F71: DB2.DBB519 | G71: DBB 514.0 - 货物检测 DBB 514.2 - 顶升高位
B72: 22067 | C72: DB1.DBB520 | D72: DB1.DBB529 | E72: DB2.DBB520 | F72: DB2.DBB529 | G72: DBB 524.0 - 货物检测 DBB 524.2 - 顶升高位
B73: 22068 | C73: DB1.DBB530 | D73: DB1.DBB539 | E73: DB2.DBB530 | F73: DB2.DBB539 | G73: DBB 534.0 - 货物检测 DBB 534.2 - 顶升高位
B74: 22076 | C74: DB1.DBB540 | D74: DB1.DBB549 | E74: DB2.DBB540 | F74: DB2.DBB549 | G74: DBB 544.0 - 货物检测 DBB 544.2 - 顶升高位
B75: 22077 | C75: DB1.DBB550 | D75: DB1.DBB559 | E75: DB2.DBB550 | F75: DB2.DBB559 | G75: DBB 554.0 - 货物检测 DBB 554.2 - 顶升高位
B76: 22078 | C76: DB1.DBB560 | D76: DB1.DBB569 | E76: DB2.DBB560 | F76: DB2.DBB569 | G76: DBB 564.0 - 货物检测 DBB 564.2 - 顶升高位
B77: 22079 | C77: DB1.DBB570 | D77: DB1.DBB579 | E77: DB2.DBB570 | F77: DB2.DBB579 | G77: DBB 574.0 - 货物检测 DBB 574.2 - 顶升高位
B78: 22080 | C78: DB1.DBB580 | D78: DB1.DBB589 | E78: DB2.DBB580 | F78: DB2.DBB589 | G78: DBB 584.0 - 货物检测 DBB 584.2 - 顶升高位
B79: 22081 | C79: DB1.DBB590 | D79: DB1.DBB599 | E79: DB2.DBB590 | F79: DB2.DBB599 | G79: DBB 594.0 - 货物检测 DBB 594.2 - 顶升高位
B80: 22082 | C80: DB1.DBB600 | D80: DB1.DBB609 | E80: DB2.DBB600 | F80: DB2.DBB609 | G80: DBB 604.0 - 货物检测 DBB 604.2 - 顶升高位
B81: 22083 | C81: DB1.DBB610 | D81: DB1.DBB619 | E81: DB2.DBB610 | F81: DB2.DBB619 | G81: DBB 614.0 - 货物检测 DBB 614.2 - 顶升高位
B82: 22084 | C82: DB1.DBB620 | D82: DB1.DBB629 | E82: DB2.DBB620 | F82: DB2.DBB629 | G82: DBB 624.0 - 货物检测 DBB 624.2 - 顶升高位
B83: 22085 | C83: DB1.DBB630 | D83: DB1.DBB639 | E83: DB2.DBB630 | F83: DB2.DBB639 | G83: DBB 634.0 - 货物检测 DBB 634.2 - 顶升高位
B84: 22086 | C84: DB1.DBB640 | D84: DB1.DBB649 | E84: DB2.DBB640 | F84: DB2.DBB649 | G84: DBB 644.0 - 货物检测 DBB 644.2 - 顶升高位
B85: 22087 | C85: ="DB1.DBB"&($C$5+(ROW()-20)*$C$3) -> DB1.DBB650 | D85: ="DB1.DBB"&(C$5+(ROW()-19)*C$3-1) -> DB1.DBB659 | E85: ="DB2.DBB"&($C$6+(ROW()-20)*$C$4) -> DB2.DBB650 | F85: ="DB2.DBB"&(C$5+(ROW()-19)*C$3-1) -> DB2.DBB659 | G85: DBB 654.0 - 货物检测 DBB 654.2 - 顶升高位
B86: =B85+1 -> 22088 | C86: DB1.DBB660 | D86: DB1.DBB669 | E86: DB2.DBB660 | F86: DB2.DBB669 | G86: =IF($E$8<>"","DBB "&($C$5+(ROW()-20)*$C$3+$C$7)&"."&$C$8&" - "&$E$8,"")&IF($E$9<>"",CHAR(10)&"DBB "&($C$5+(ROW()-20)*$C$3+$C$7)&"."&$C$9&" - "&$E$9,"")&IF($E$10<>"",CHAR(10)&"DBB "&($C$5+(ROW()-20)*$C$3+$C$7)&"."&$C$10&" - "&$E$10,"")&IF($E$11<>"",CHAR(10)&"DBB "&($C$5+(ROW()-20)*$C$3+$C$7)&"."&$C$11&" - "&$E$11,"")&IF($E$12<>"",CHAR(10)&"DBB "&($C$5+(ROW()-20)*$C$3+$C$7)&"."&$C$12&" - "&$E$12,"")&IF($E$13<>"",CHAR(10)&"DBB "&($C$5+(ROW()-20)*$C$3+$C$7)&"."&$C$13&" - "&$E$13,"")&IF($E$14<>"",CHAR(10)&"DBB "&($C$5+(ROW()-20)*$C$3+$C$7)&"."&$C$14&" - "&$E$14,"")&IF($E$15<>"",CHAR(10)&"DBB "&($C$5+(ROW()-20)*$C$3+$C$7)&"."&$C$15&" - "&$E$15,"") -> DBB 664.0 - 货物检测 DBB 664.2 - 顶升高位
B87: 22089 | C87: DB1.DBB670 | D87: DB1.DBB679 | E87: DB2.DBB670 | F87: DB2.DBB679 | G87: DBB 674.0 - 货物检测 DBB 674.2 - 顶升高位
B88: 22090 | C88: DB1.DBB680 | D88: DB1.DBB689 | E88: DB2.DBB680 | F88: DB2.DBB689 | G88: DBB 684.0 - 货物检测 DBB 684.2 - 顶升高位
B89: 22091 | C89: DB1.DBB690 | D89: DB1.DBB699 | E89: DB2.DBB690 | F89: DB2.DBB699 | G89: DBB 694.0 - 货物检测 DBB 694.2 - 顶升高位
B90: 22092 | C90: DB1.DBB700 | D90: DB1.DBB709 | E90: DB2.DBB700 | F90: DB2.DBB709 | G90: DBB 704.0 - 货物检测 DBB 704.2 - 顶升高位
B91: 22093 | C91: DB1.DBB710 | D91: DB1.DBB719 | E91: DB2.DBB710 | F91: DB2.DBB719 | G91: DBB 714.0 - 货物检测 DBB 714.2 - 顶升高位
B92: 22101 | C92: DB1.DBB720 | D92: DB1.DBB729 | E92: DB2.DBB720 | F92: DB2.DBB729 | G92: DBB 724.0 - 货物检测 DBB 724.2 - 顶升高位
B93: 22102 | C93: DB1.DBB730 | D93: DB1.DBB739 | E93: DB2.DBB730 | F93: DB2.DBB739 | G93: DBB 734.0 - 货物检测 DBB 734.2 - 顶升高位
B94: 22103 | C94: DB1.DBB740 | D94: DB1.DBB749 | E94: DB2.DBB740 | F94: DB2.DBB749 | G94: DBB 744.0 - 货物检测 DBB 744.2 - 顶升高位
B95: 22104 | C95: DB1.DBB750 | D95: DB1.DBB759 | E95: DB2.DBB750 | F95: DB2.DBB759 | G95: DBB 754.0 - 货物检测 DBB 754.2 - 顶升高位
B96: 22105 | C96: DB1.DBB760 | D96: DB1.DBB769 | E96: DB2.DBB760 | F96: DB2.DBB769 | G96: DBB 764.0 - 货物检测 DBB 764.2 - 顶升高位
B97: 22106 | C97: DB1.DBB770 | D97: DB1.DBB779 | E97: DB2.DBB770 | F97: DB2.DBB779 | G97: DBB 774.0 - 货物检测 DBB 774.2 - 顶升高位
B98: 22107 | C98: DB1.DBB780 | D98: DB1.DBB789 | E98: DB2.DBB780 | F98: DB2.DBB789 | G98: DBB 784.0 - 货物检测 DBB 784.2 - 顶升高位
B99: 22108 | C99: DB1.DBB790 | D99: DB1.DBB799 | E99: DB2.DBB790 | F99: DB2.DBB799 | G99: DBB 794.0 - 货物检测 DBB 794.2 - 顶升高位
B100: 22109 | C100: DB1.DBB800 | D100: DB1.DBB809 | E100: DB2.DBB800 | F100: DB2.DBB809 | G100: DBB 804.0 - 货物检测 DBB 804.2 - 顶升高位
B101: 22110 | C101: DB1.DBB810 | D101: DB1.DBB819 | E101: DB2.DBB810 | F101: DB2.DBB819 | G101: DBB 814.0 - 货物检测 DBB 814.2 - 顶升高位
B102: 22111 | C102: DB1.DBB820 | D102: DB1.DBB829 | E102: DB2.DBB820 | F102: DB2.DBB829 | G102: DBB 824.0 - 货物检测 DBB 824.2 - 顶升高位
B103: 22112 | C103: DB1.DBB830 | D103: DB1.DBB839 | E103: DB2.DBB830 | F103: DB2.DBB839 | G103: DBB 834.0 - 货物检测 DBB 834.2 - 顶升高位
B104: 22113 | C104: DB1.DBB840 | D104: DB1.DBB849 | E104: DB2.DBB840 | F104: DB2.DBB849 | G104: DBB 844.0 - 货物检测 DBB 844.2 - 顶升高位
B105: 22114 | C105: DB1.DBB850 | D105: DB1.DBB859 | E105: DB2.DBB850 | F105: DB2.DBB859 | G105: DBB 854.0 - 货物检测 DBB 854.2 - 顶升高位
B106: 22115 | C106: DB1.DBB860 | D106: DB1.DBB869 | E106: DB2.DBB860 | F106: DB2.DBB869 | G106: DBB 864.0 - 货物检测 DBB 864.2 - 顶升高位
B107: 22116 | C107: DB1.DBB870 | D107: DB1.DBB879 | E107: DB2.DBB870 | F107: DB2.DBB879 | G107: DBB 874.0 - 货物检测 DBB 874.2 - 顶升高位
B108: 22117 | C108: DB1.DBB880 | D108: DB1.DBB889 | E108: DB2.DBB880 | F108: DB2.DBB889 | G108: DBB 884.0 - 货物检测 DBB 884.2 - 顶升高位
B109: 22118 | C109: DB1.DBB890 | D109: DB1.DBB899 | E109: DB2.DBB890 | F109: DB2.DBB899 | G109: DBB 894.0 - 货物检测 DBB 894.2 - 顶升高位
B110: 22126 | C110: DB1.DBB900 | D110: ="DB1.DBB"&(C$5+(ROW()-19)*C$3-1) -> DB1.DBB909 | E110: DB2.DBB900 | F110: ="DB2.DBB"&(C$5+(ROW()-19)*C$3-1) -> DB2.DBB909 | G110: DBB 904.0 - 货物检测 DBB 904.2 - 顶升高位
B111: 22127 | C111: DB1.DBB910 | D111: DB1.DBB919 | E111: DB2.DBB910 | F111: DB2.DBB919 | G111: DBB 914.0 - 货物检测 DBB 914.2 - 顶升高位
B112: 22128 | C112: DB1.DBB920 | D112: DB1.DBB929 | E112: DB2.DBB920 | F112: DB2.DBB929 | G112: DBB 924.0 - 货物检测 DBB 924.2 - 顶升高位
B113: 22129 | C113: DB1.DBB930 | D113: DB1.DBB939 | E113: DB2.DBB930 | F113: DB2.DBB939 | G113: DBB 934.0 - 货物检测 DBB 934.2 - 顶升高位
B114: 22130 | C114: DB1.DBB940 | D114: DB1.DBB949 | E114: DB2.DBB940 | F114: DB2.DBB949 | G114: DBB 944.0 - 货物检测 DBB 944.2 - 顶升高位
B115: 22131 | C115: DB1.DBB950 | D115: DB1.DBB959 | E115: DB2.DBB950 | F115: DB2.DBB959 | G115: DBB 954.0 - 货物检测 DBB 954.2 - 顶升高位
B116: 22132 | C116: DB1.DBB960 | D116: DB1.DBB969 | E116: DB2.DBB960 | F116: DB2.DBB969 | G116: DBB 964.0 - 货物检测 DBB 964.2 - 顶升高位
B117: 22133 | C117: DB1.DBB970 | D117: DB1.DBB979 | E117: DB2.DBB970 | F117: DB2.DBB979 | G117: DBB 974.0 - 货物检测 DBB 974.2 - 顶升高位
B118: 22134 | C118: DB1.DBB980 | D118: DB1.DBB989 | E118: DB2.DBB980 | F118: DB2.DBB989 | G118: DBB 984.0 - 货物检测 DBB 984.2 - 顶升高位
B119: 22135 | C119: DB1.DBB990 | D119: DB1.DBB999 | E119: DB2.DBB990 | F119: DB2.DBB999 | G119: DBB 994.0 - 货物检测 DBB 994.2 - 顶升高位
B120: 22136 | C120: DB1.DBB1000 | D120: DB1.DBB1009 | E120: DB2.DBB1000 | F120: DB2.DBB1009 | G120: DBB 1004.0 - 货物检测 DBB 1004.2 - 顶升高位
B121: 22137 | C121: DB1.DBB1010 | D121: DB1.DBB1019 | E121: DB2.DBB1010 | F121: DB2.DBB1019 | G121: DBB 1014.0 - 货物检测 DBB 1014.2 - 顶升高位
B122: 22138 | C122: DB1.DBB1020 | D122: DB1.DBB1029 | E122: DB2.DBB1020 | F122: DB2.DBB1029 | G122: DBB 1024.0 - 货物检测 DBB 1024.2 - 顶升高位
B123: 22139 | C123: DB1.DBB1030 | D123: DB1.DBB1039 | E123: DB2.DBB1030 | F123: DB2.DBB1039 | G123: DBB 1034.0 - 货物检测 DBB 1034.2 - 顶升高位
B124: 22140 | C124: DB1.DBB1040 | D124: DB1.DBB1049 | E124: DB2.DBB1040 | F124: DB2.DBB1049 | G124: DBB 1044.0 - 货物检测 DBB 1044.2 - 顶升高位
B125: 22141 | C125: DB1.DBB1050 | D125: DB1.DBB1059 | E125: DB2.DBB1050 | F125: DB2.DBB1059 | G125: DBB 1054.0 - 货物检测 DBB 1054.2 - 顶升高位
B126: 22142 | C126: DB1.DBB1060 | D126: DB1.DBB1069 | E126: DB2.DBB1060 | F126: DB2.DBB1069 | G126: DBB 1064.0 - 货物检测 DBB 1064.2 - 顶升高位
B127: 22143 | C127: DB1.DBB1070 | D127: DB1.DBB1079 | E127: DB2.DBB1070 | F127: DB2.DBB1079 | G127: DBB 1074.0 - 货物检测 DBB 1074.2 - 顶升高位
B128: 22144 | C128: DB1.DBB1080 | D128: DB1.DBB1089 | E128: DB2.DBB1080 | F128: DB2.DBB1089 | G128: DBB 1084.0 - 货物检测 DBB 1084.2 - 顶升高位
B129: 22145 | C129: DB1.DBB1090 | D129: DB1.DBB1099 | E129: DB2.DBB1090 | F129: DB2.DBB1099 | G129: DBB 1094.0 - 货物检测 DBB 1094.2 - 顶升高位
B130: 22146 | C130: DB1.DBB1100 | D130: DB1.DBB1109 | E130: DB2.DBB1100 | F130: DB2.DBB1109 | G130: DBB 1104.0 - 货物检测 DBB 1104.2 - 顶升高位
B131: 22147 | C131: DB1.DBB1110 | D131: DB1.DBB1119 | E131: DB2.DBB1110 | F131: DB2.DBB1119 | G131: DBB 1114.0 - 货物检测 DBB 1114.2 - 顶升高位
B132: 22148 | C132: DB1.DBB1120 | D132: DB1.DBB1129 | E132: DB2.DBB1120 | F132: DB2.DBB1129 | G132: DBB 1124.0 - 货物检测 DBB 1124.2 - 顶升高位
B133: 22151 | C133: DB1.DBB1130 | D133: DB1.DBB1139 | E133: DB2.DBB1130 | F133: DB2.DBB1139 | G133: DBB 1134.0 - 货物检测 DBB 1134.2 - 顶升高位
B134: =B133+1 -> 22152 | C134: DB1.DBB1140 | D134: DB1.DBB1149 | E134: DB2.DBB1140 | F134: DB2.DBB1149 | G134: DBB 1144.0 - 货物检测 DBB 1144.2 - 顶升高位
B135: =B134+1 -> 22153 | C135: DB1.DBB1150 | D135: DB1.DBB1159 | E135: DB2.DBB1150 | F135: DB2.DBB1159 | G135: DBB 1154.0 - 货物检测 DBB 1154.2 - 顶升高位
B136: 22154 | C136: DB1.DBB1160 | D136: DB1.DBB1169 | E136: DB2.DBB1160 | F136: DB2.DBB1169 | G136: DBB 1164.0 - 货物检测 DBB 1164.2 - 顶升高位
B137: 22155 | C137: DB1.DBB1170 | D137: DB1.DBB1179 | E137: DB2.DBB1170 | F137: DB2.DBB1179 | G137: DBB 1174.0 - 货物检测 DBB 1174.2 - 顶升高位
B138: 22156 | C138: DB1.DBB1180 | D138: ="DB1.DBB"&(C$5+(ROW()-19)*C$3-1) -> DB1.DBB1189 | E138: DB2.DBB1180 | F138: ="DB2.DBB"&(C$5+(ROW()-19)*C$3-1) -> DB2.DBB1189 | G138: DBB 1184.0 - 货物检测 DBB 1184.2 - 顶升高位
B139: =B138+1 -> 22157 | C139: DB1.DBB1190 | D139: ="DB1.DBB"&(C$5+(ROW()-19)*C$3-1) -> DB1.DBB1199 | E139: DB2.DBB1190 | F139: ="DB2.DBB"&(C$5+(ROW()-19)*C$3-1) -> DB2.DBB1199 | G139: DBB 1194.0 - 货物检测 DBB 1194.2 - 顶升高位
B140: =B139+1 -> 22158 | C140: DB1.DBB1200 | D140: DB1.DBB1209 | E140: DB2.DBB1200 | F140: DB2.DBB1209 | G140: DBB 1204.0 - 货物检测 DBB 1204.2 - 顶升高位
B141: 22159 | C141: DB1.DBB1210 | D141: DB1.DBB1219 | E141: DB2.DBB1210 | F141: DB2.DBB1219 | G141: DBB 1214.0 - 货物检测 DBB 1214.2 - 顶升高位
B142: 22160 | C142: DB1.DBB1220 | D142: DB1.DBB1229 | E142: DB2.DBB1220 | F142: DB2.DBB1229 | G142: DBB 1224.0 - 货物检测 DBB 1224.2 - 顶升高位
B143: 22161 | C143: DB1.DBB1230 | D143: DB1.DBB1239 | E143: DB2.DBB1230 | F143: DB2.DBB1239 | G143: DBB 1234.0 - 货物检测 DBB 1234.2 - 顶升高位
B144: 22162 | C144: DB1.DBB1240 | D144: DB1.DBB1249 | E144: DB2.DBB1240 | F144: DB2.DBB1249 | G144: DBB 1244.0 - 货物检测 DBB 1244.2 - 顶升高位
B145: 22163 | C145: DB1.DBB1250 | D145: DB1.DBB1259 | E145: DB2.DBB1250 | F145: DB2.DBB1259 | G145: DBB 1254.0 - 货物检测 DBB 1254.2 - 顶升高位
B146: 22164 | C146: DB1.DBB1260 | D146: DB1.DBB1269 | E146: DB2.DBB1260 | F146: DB2.DBB1269 | G146: DBB 1264.0 - 货物检测 DBB 1264.2 - 顶升高位
B147: 22165 | C147: DB1.DBB1270 | D147: DB1.DBB1279 | E147: DB2.DBB1270 | F147: DB2.DBB1279 | G147: DBB 1274.0 - 货物检测 DBB 1274.2 - 顶升高位
B148: 22166 | C148: DB1.DBB1280 | D148: DB1.DBB1289 | E148: DB2.DBB1280 | F148: DB2.DBB1289 | G148: DBB 1284.0 - 货物检测 DBB 1284.2 - 顶升高位
B149: 22167 | C149: DB1.DBB1290 | D149: DB1.DBB1299 | E149: DB2.DBB1290 | F149: DB2.DBB1299 | G149: DBB 1294.0 - 货物检测 DBB 1294.2 - 顶升高位
B150: 22168 | C150: DB1.DBB1300 | D150: DB1.DBB1309 | E150: DB2.DBB1300 | F150: DB2.DBB1309 | G150: DBB 1304.0 - 货物检测 DBB 1304.2 - 顶升高位
B151: 22176 | C151: DB1.DBB1310 | D151: DB1.DBB1319 | E151: DB2.DBB1310 | F151: DB2.DBB1319 | G151: DBB 1314.0 - 货物检测 DBB 1314.2 - 顶升高位
B152: =B151+1 -> 22177 | C152: DB1.DBB1320 | D152: DB1.DBB1329 | E152: DB2.DBB1320 | F152: DB2.DBB1329 | G152: DBB 1324.0 - 货物检测 DBB 1324.2 - 顶升高位
B153: =B152+1 -> 22178 | C153: DB1.DBB1330 | D153: DB1.DBB1339 | E153: DB2.DBB1330 | F153: DB2.DBB1339 | G153: DBB 1334.0 - 货物检测 DBB 1334.2 - 顶升高位
B154: 22179 | C154: DB1.DBB1340 | D154: DB1.DBB1349 | E154: DB2.DBB1340 | F154: DB2.DBB1349 | G154: DBB 1344.0 - 货物检测 DBB 1344.2 - 顶升高位
B155: 22180 | C155: DB1.DBB1350 | D155: DB1.DBB1359 | E155: DB2.DBB1350 | F155: DB2.DBB1359 | G155: DBB 1354.0 - 货物检测 DBB 1354.2 - 顶升高位
B156: 22181 | C156: DB1.DBB1360 | D156: DB1.DBB1369 | E156: DB2.DBB1360 | F156: DB2.DBB1369 | G156: DBB 1364.0 - 货物检测 DBB 1364.2 - 顶升高位
B157: 22182 | C157: DB1.DBB1370 | D157: DB1.DBB1379 | E157: DB2.DBB1370 | F157: DB2.DBB1379 | G157: DBB 1374.0 - 货物检测 DBB 1374.2 - 顶升高位
B158: 22183 | C158: DB1.DBB1380 | D158: DB1.DBB1389 | E158: DB2.DBB1380 | F158: DB2.DBB1389 | G158: DBB 1384.0 - 货物检测 DBB 1384.2 - 顶升高位
B159: 22184 | C159: DB1.DBB1390 | D159: DB1.DBB1399 | E159: DB2.DBB1390 | F159: DB2.DBB1399 | G159: DBB 1394.0 - 货物检测 DBB 1394.2 - 顶升高位
B160: 22185 | C160: DB1.DBB1400 | D160: DB1.DBB1409 | E160: DB2.DBB1400 | F160: DB2.DBB1409 | G160: DBB 1404.0 - 货物检测 DBB 1404.2 - 顶升高位
B161: 22186 | C161: DB1.DBB1410 | D161: DB1.DBB1419 | E161: DB2.DBB1410 | F161: DB2.DBB1419 | G161: DBB 1414.0 - 货物检测 DBB 1414.2 - 顶升高位
B162: 22187 | C162: DB1.DBB1420 | D162: DB1.DBB1429 | E162: DB2.DBB1420 | F162: DB2.DBB1429 | G162: DBB 1424.0 - 货物检测 DBB 1424.2 - 顶升高位
B163: 22196 | C163: DB1.DBB1430 | D163: DB1.DBB1439 | E163: DB2.DBB1430 | F163: DB2.DBB1439 | G163: DBB 1434.0 - 货物检测 DBB 1434.2 - 顶升高位
B164: 22197 | C164: ="DB1.DBB"&($C$5+(ROW()-20)*$C$3) -> DB1.DBB1440 | D164: DB1.DBB1449 | E164: ="DB2.DBB"&($C$6+(ROW()-20)*$C$4) -> DB2.DBB1440 | F164: DB2.DBB1449 | G164: DBB 1444.0 - 货物检测 DBB 1444.2 - 顶升高位
B165: 22198 | C165: DB1.DBB1450 | D165: DB1.DBB1459 | E165: DB2.DBB1450 | F165: DB2.DBB1459 | G165: =IF($E$8<>"","DBB "&($C$5+(ROW()-20)*$C$3+$C$7)&"."&$C$8&" - "&$E$8,"")&IF($E$9<>"",CHAR(10)&"DBB "&($C$5+(ROW()-20)*$C$3+$C$7)&"."&$C$9&" - "&$E$9,"")&IF($E$10<>"",CHAR(10)&"DBB "&($C$5+(ROW()-20)*$C$3+$C$7)&"."&$C$10&" - "&$E$10,"")&IF($E$11<>"",CHAR(10)&"DBB "&($C$5+(ROW()-20)*$C$3+$C$7)&"."&$C$11&" - "&$E$11,"")&IF($E$12<>"",CHAR(10)&"DBB "&($C$5+(ROW()-20)*$C$3+$C$7)&"."&$C$12&" - "&$E$12,"")&IF($E$13<>"",CHAR(10)&"DBB "&($C$5+(ROW()-20)*$C$3+$C$7)&"."&$C$13&" - "&$E$13,"")&IF($E$14<>"",CHAR(10)&"DBB "&($C$5+(ROW()-20)*$C$3+$C$7)&"."&$C$14&" - "&$E$14,"")&IF($E$15<>"",CHAR(10)&"DBB "&($C$5+(ROW()-20)*$C$3+$C$7)&"."&$C$15&" - "&$E$15,"") -> DBB 1454.0 - 货物检测 DBB 1454.2 - 顶升高位
B166: 22199 | C166: DB1.DBB1460 | D166: DB1.DBB1469 | E166: DB2.DBB1460 | F166: DB2.DBB1469 | G166: DBB 1464.0 - 货物检测 DBB 1464.2 - 顶升高位
B167: 22200 | C167: DB1.DBB1470 | D167: DB1.DBB1479 | E167: DB2.DBB1470 | F167: DB2.DBB1479 | G167: DBB 1474.0 - 货物检测 DBB 1474.2 - 顶升高位
B168: =B167+1 -> 22201 | C168: DB1.DBB1480 | D168: ="DB1.DBB"&(C$5+(ROW()-19)*C$3-1) -> DB1.DBB1489 | E168: DB2.DBB1480 | F168: ="DB2.DBB"&(C$5+(ROW()-19)*C$3-1) -> DB2.DBB1489 | G168: DBB 1484.0 - 货物检测 DBB 1484.2 - 顶升高位
B169: 22202 | C169: DB1.DBB1490 | D169: DB1.DBB1499 | E169: DB2.DBB1490 | F169: DB2.DBB1499 | G169: DBB 1494.0 - 货物检测 DBB 1494.2 - 顶升高位
B170: 22203 | C170: DB1.DBB1500 | D170: DB1.DBB1509 | E170: DB2.DBB1500 | F170: DB2.DBB1509 | G170: DBB 1504.0 - 货物检测 DBB 1504.2 - 顶升高位
B171: 22204 | C171: DB1.DBB1510 | D171: DB1.DBB1519 | E171: DB2.DBB1510 | F171: DB2.DBB1519 | G171: DBB 1514.0 - 货物检测 DBB 1514.2 - 顶升高位
B172: 22205 | C172: DB1.DBB1520 | D172: DB1.DBB1529 | E172: DB2.DBB1520 | F172: DB2.DBB1529 | G172: DBB 1524.0 - 货物检测 DBB 1524.2 - 顶升高位
B173: 22206 | C173: DB1.DBB1530 | D173: DB1.DBB1539 | E173: DB2.DBB1530 | F173: DB2.DBB1539 | G173: DBB 1534.0 - 货物检测 DBB 1534.2 - 顶升高位
B174: 22207 | C174: DB1.DBB1540 | D174: DB1.DBB1549 | E174: DB2.DBB1540 | F174: DB2.DBB1549 | G174: DBB 1544.0 - 货物检测 DBB 1544.2 - 顶升高位
B175: 22208 | C175: DB1.DBB1550 | D175: DB1.DBB1559 | E175: DB2.DBB1550 | F175: DB2.DBB1559 | G175: DBB 1554.0 - 货物检测 DBB 1554.2 - 顶升高位
B176: 22209 | C176: DB1.DBB1560 | D176: DB1.DBB1569 | E176: DB2.DBB1560 | F176: DB2.DBB1569 | G176: DBB 1564.0 - 货物检测 DBB 1564.2 - 顶升高位
B177: 22210 | C177: DB1.DBB1570 | D177: DB1.DBB1579 | E177: DB2.DBB1570 | F177: DB2.DBB1579 | G177: DBB 1574.0 - 货物检测 DBB 1574.2 - 顶升高位
B178: 22211 | C178: DB1.DBB1580 | D178: DB1.DBB1589 | E178: DB2.DBB1580 | F178: DB2.DBB1589 | G178: DBB 1584.0 - 货物检测 DBB 1584.2 - 顶升高位
B179: 22212 | C179: DB1.DBB1590 | D179: DB1.DBB1599 | E179: DB2.DBB1590 | F179: DB2.DBB1599 | G179: DBB 1594.0 - 货物检测 DBB 1594.2 - 顶升高位
B180: 22213 | C180: DB1.DBB1600 | D180: DB1.DBB1609 | E180: DB2.DBB1600 | F180: DB2.DBB1609 | G180: DBB 1604.0 - 货物检测 DBB 1604.2 - 顶升高位
B181: 22214 | C181: DB1.DBB1610 | D181: DB1.DBB1619 | E181: DB2.DBB1610 | F181: DB2.DBB1619 | G181: DBB 1614.0 - 货物检测 DBB 1614.2 - 顶升高位
B182: 22215 | C182: DB1.DBB1620 | D182: DB1.DBB1629 | E182: DB2.DBB1620 | F182: DB2.DBB1629 | G182: DBB 1624.0 - 货物检测 DBB 1624.2 - 顶升高位
B183: 22216 | C183: DB1.DBB1630 | D183: DB1.DBB1639 | E183: DB2.DBB1630 | F183: DB2.DBB1639 | G183: DBB 1634.0 - 货物检测 DBB 1634.2 - 顶升高位
B184: 22217 | C184: DB1.DBB1640 | D184: DB1.DBB1649 | E184: DB2.DBB1640 | F184: DB2.DBB1649 | G184: DBB 1644.0 - 货物检测 DBB 1644.2 - 顶升高位
B185: 22218 | C185: DB1.DBB1650 | D185: DB1.DBB1659 | E185: DB2.DBB1650 | F185: DB2.DBB1659 | G185: DBB 1654.0 - 货物检测 DBB 1654.2 - 顶升高位
B186: 22219 | C186: DB1.DBB1660 | D186: DB1.DBB1669 | E186: DB2.DBB1660 | F186: DB2.DBB1669 | G186: DBB 1664.0 - 货物检测 DBB 1664.2 - 顶升高位
B187: 22220 | C187: DB1.DBB1670 | D187: DB1.DBB1679 | E187: DB2.DBB1670 | F187: DB2.DBB1679 | G187: DBB 1674.0 - 货物检测 DBB 1674.2 - 顶升高位
B188: 22221 | C188: DB1.DBB1680 | D188: DB1.DBB1689 | E188: DB2.DBB1680 | F188: DB2.DBB1689 | G188: DBB 1684.0 - 货物检测 DBB 1684.2 - 顶升高位
B189: 22222 | C189: DB1.DBB1690 | D189: DB1.DBB1699 | E189: DB2.DBB1690 | F189: DB2.DBB1699 | G189: DBB 1694.0 - 货物检测 DBB 1694.2 - 顶升高位
B190: =B189+1 -> 22223 | C190: DB1.DBB1700 | D190: ="DB1.DBB"&(C$5+(ROW()-19)*C$3-1) -> DB1.DBB1709 | E190: DB2.DBB1700 | F190: ="DB2.DBB"&(C$5+(ROW()-19)*C$3-1) -> DB2.DBB1709 | G190: DBB 1704.0 - 货物检测 DBB 1704.2 - 顶升高位
B191: 22224 | C191: DB1.DBB1710 | D191: DB1.DBB1719 | E191: DB2.DBB1710 | F191: DB2.DBB1719 | G191: DBB 1714.0 - 货物检测 DBB 1714.2 - 顶升高位
B192: 22225 | C192: DB1.DBB1720 | D192: DB1.DBB1729 | E192: DB2.DBB1720 | F192: DB2.DBB1729 | G192: DBB 1724.0 - 货物检测 DBB 1724.2 - 顶升高位
B193: 22226 | C193: DB1.DBB1730 | D193: DB1.DBB1739 | E193: DB2.DBB1730 | F193: DB2.DBB1739 | G193: DBB 1734.0 - 货物检测 DBB 1734.2 - 顶升高位
B194: 22227 | C194: DB1.DBB1740 | D194: DB1.DBB1749 | E194: DB2.DBB1740 | F194: DB2.DBB1749 | G194: DBB 1744.0 - 货物检测 DBB 1744.2 - 顶升高位
B195: 22228 | C195: DB1.DBB1750 | D195: DB1.DBB1759 | E195: DB2.DBB1750 | F195: DB2.DBB1759 | G195: DBB 1754.0 - 货物检测 DBB 1754.2 - 顶升高位
B196: 22229 | C196: DB1.DBB1760 | D196: DB1.DBB1769 | E196: DB2.DBB1760 | F196: DB2.DBB1769 | G196: DBB 1764.0 - 货物检测 DBB 1764.2 - 顶升高位
B197: 22230 | C197: DB1.DBB1770 | D197: DB1.DBB1779 | E197: DB2.DBB1770 | F197: DB2.DBB1779 | G197: DBB 1774.0 - 货物检测 DBB 1774.2 - 顶升高位
B198: 22231 | C198: DB1.DBB1780 | D198: DB1.DBB1789 | E198: DB2.DBB1780 | F198: DB2.DBB1789 | G198: DBB 1784.0 - 货物检测 DBB 1784.2 - 顶升高位
B199: 24101 | C199: DB1.DBB1790 | D199: ="DB1.DBB"&(C$5+(ROW()-19)*C$3-1) -> DB1.DBB1799 | E199: DB2.DBB1790 | F199: ="DB2.DBB"&(C$5+(ROW()-19)*C$3-1) -> DB2.DBB1799 | G199: DBB 1794.0 - 货物检测 DBB 1794.2 - 顶升高位 | H199: 出库模式空托盘缩回后PLC报完成，下达空托盘回收至叠盘机任务
B200: 24102 | C200: DB1.DBB1800 | D200: ="DB1.DBB"&(C$5+(ROW()-19)*C$3-1) -> DB1.DBB1809 | E200: DB2.DBB1800 | F200: ="DB2.DBB"&(C$5+(ROW()-19)*C$3-1) -> DB2.DBB1809 | G200: DBB 1804.0 - 货物检测 DBB 1804.2 - 顶升高位
B201: 24103 | C201: DB1.DBB1810 | D201: DB1.DBB1819 | E201: DB2.DBB1810 | F201: DB2.DBB1819 | G201: DBB 1814.0 - 货物检测 DBB 1814.2 - 顶升高位
... 94 more rows

Sheet 条码扫描数据区
A1: 设备类型 | B1: 字节索引 | C1: 代表意义 | D1: 取值 | E1: 值含义 | F1: 备注
A2: 单母托条码扫描只有上行消息：PLC->PC | B2: 条码扫描器类设备包括：单个条码扫描，条码群读和RFID
A3: 条码DB2 | B3: 0 | C3: 读/写标志位 | D3: 1 | E3: 写入数据 | F3: PLC上报新条码时候写1；
D4: 2 | E4: 读出数据正确 | F4: 调度读取成功后写2；
B5: 1 | C5: 箱数/高度 | D5: 1 | E5: 空托盘
D6: 2 | E6: 高1
D7: 3 | E7: 高2
D8: 4 | E8: 高3
D9: >30 | E9: 故障（超高、超宽、坍塌、、、、根据现场实际情况来定）
B10: 2~9 | C10: 条码
B11: 10~15 | C11: 预留
A13: 入库申请时：如果下位机未读到条码或读到的是残码，读/写标志位仍然要写为1，条码信息对应的字节全部写入1，电气自动回退，并把错误信息上报调度软件。上位机读到条码后将DB2中读/写标志位字节改为2，本次上报完成。
A15: 设备类型 | B15: 字节索引 | C15: 代表意义 | D15: 取值 | E15: 值含义 | F15: 备注
A16: 子母托条码扫描只有上行消息：PLC->PC | B16: 条码扫描器类设备包括：单个条码扫描，条码群读和RFID
A17: 条码DB2 | B17: 0 | C17: 读/写标志位 | D17: 1 | E17: 写入数据 | F17: PLC上报新条码时候写1；
D18: 2 | E18: 读出数据正确 | F18: 调度读取成功后写2；
B19: 1 | C19: 箱数/高度 | D19: 1 | E19: 空托盘
D20: 2 | E20: 高1
D21: 3 | E21: 高2
D22: 4 | E22: 高3
D23: >30 | E23: 故障（超高、超宽、坍塌、、、、根据现场实际情况来定）
B24: 2~9 | C24: 母托条码
B25: 10~15 | C25: 预留
B26: 16~165 | C26: 子托条码
A28: 入库申请时：如果下位机未读到条码或读到的是残码，读/写标志位仍然要写为1，条码信息对应的字节全部写入1，电气自动回退，并把错误信息上报调度软件。上位机读到条码后将DB2中读/写标志位字节改为2，本次上报完成。
A29: RFID由管理系统做接口，读取数据，不通过电气和调度交互。
A30: 设备名称 | B30: 所在输送设备 | C30: DB2起始地址 | D30: DB2结束地址 | E30: 子母托扫码（待电气确认） | F30: 归属PLC（待电气确认）
A31: 16001 | B31: 12002 | C31: DB2.DBB5000 | D31: DB2.DBB5015 | E31: 母 | F31: 原料常温库前输送机主站
A32: 16002 | B32: 12008 | C32: DB2.DBB5020 | D32: DB2.DBB5035 | E32: 母
A33: 16003 | B33: 12015 | C33: DB2.DBB5040 | D33: DB2.DBB5055 | E33: 母
A34: 16004 | B34: 12021 | C34: DB2.DBB5060 | D34: DB2.DBB5075 | E34: 母
A35: 16005 | B35: 12028 | C35: DB2.DBB5080 | D35: DB2.DBB5095 | E35: 母
A36: 16006 | B36: 12034 | C36: DB2.DBB5100 | D36: DB2.DBB5115 | E36: 母
A37: 16007 | B37: 12041 | C37: DB2.DBB5120 | D37: DB2.DBB5135 | E37: 母
A38: 16008 | B38: 12047 | C38: DB2.DBB5140 | D38: DB2.DBB5155 | E38: 母
A39: 16009 | B39: 12054 | C39: DB2.DBB5160 | D39: DB2.DBB5175 | E39: 母
A40: 16010 | B40: 12061 | C40: DB2.DBB5180 | D40: DB2.DBB5195 | E40: 母
A41: 16011 | B41: 12070 | C41: DB2.DBB5200 | D41: DB2.DBB5215 | E41: 母
A42: 16012 | B42: 12077 | C42: DB2.DBB5220 | D42: DB2.DBB5235 | E42: 母
A43: 16013 | B43: 12086 | C43: DB2.DBB5240 | D43: DB2.DBB5255 | E43: 母
A44: 16014 | B44: 12093 | C44: DB2.DBB5260 | D44: DB2.DBB5275 | E44: 母
A45: 16015 | B45: 12211 | C45: DB2.DBB5280 | D45: DB2.DBB5295 | E45: 母
A46: 16016 | B46: 12230 | C46: DB2.DBB5300 | D46: DB2.DBB5315 | E46: 母
A47: 16017 | B47: 12235 | C47: DB2.DBB5000 | D47: DB2.DBB5015 | E47: 母 | F47: 原料恒温库前输送机主站
A48: 16018 | B48: 12237 | C48: DB2.DBB5020 | D48: DB2.DBB5035 | E48: 母
A49: 16019 | B49: 12239 | C49: DB2.DBB5040 | D49: DB2.DBB5055 | E49: 母
A50: 16020 | B50: 12241 | C50: DB2.DBB5060 | D50: DB2.DBB5075 | E50: 母
A51: 16021 | B51: 12248 | C51: DB2.DBB5080 | D51: DB2.DBB5095 | E51: 母
A52: 16022 | B52: 12257 | C52: DB2.DBB5100 | D52: DB2.DBB5115 | E52: 母
A53: 16023 | B53: 12264 | C53: DB2.DBB5120 | D53: DB2.DBB5135 | E53: 母
A54: 16024 | B54: 12273 | C54: DB2.DBB5140 | D54: DB2.DBB5155 | E54: 母
A55: 16025 | B55: 12280 | C55: DB2.DBB5160 | D55: DB2.DBB5175 | E55: 母
A56: 16026 | B56: 12289 | C56: DB2.DBB5180 | D56: DB2.DBB5195 | E56: 母
A57: 16027 | B57: 12296 | C57: DB2.DBB5200 | D57: DB2.DBB5215 | E57: 母
A58: 16028 | B58: 12305 | C58: DB2.DBB5220 | D58: DB2.DBB5235 | E58: 母
A59: 16029 | B59: 12312 | C59: DB2.DBB5240 | D59: DB2.DBB5255 | E59: 母
A60: 16030 | B60: 12551 | C60: DB2.DBB5260 | D60: DB2.DBB5275 | E60: 母
A61: 16031 | B61: 12584 | C61: DB2.DBB5280 | D61: DB2.DBB5295 | E61: 母
A62: 16032 | B62: 12581 | C62: DB2.DBB5300 | D62: DB2.DBB5315 | E62: 母
A63: 16033 | B63: 12565 | C63: DB2.DBB5320 | D63: DB2.DBB5335 | E63: 母
A64: 16034 | B64: 12568 | C64: DB2.DBB5340 | D64: DB2.DBB5355 | E64: 母
A66: 26001 | B66: 22003 | C66: DB2.DBB3000 | D66: DB2.DBB3015 | E66: 母 | F66: 组件车间输送机主站 出库模式不扫码，入库模式扫码 实盘扫码申请入库任务时，生成拆空托盘任务
A67: 26002 | B67: 22012 | C67: DB2.DBB3020 | D67: DB2.DBB3035 | E67: 母
A68: 26003 | B68: 22103 | C68: DB2.DBB3040 | D68: DB2.DBB3055 | E68: 母
A69: 26004 | B69: 22112 | C69: DB2.DBB3060 | D69: DB2.DBB3075 | E69: 母
A70: 26005 | B70: 22133 | C70: DB2.DBB3080 | D70: DB2.DBB3095 | E70: 母
A71: 26006 | B71: 22152 | C71: DB2.DBB3100 | D71: DB2.DBB3115 | E71: 母
A72: 26007 | B72: 22202 | C72: DB2.DBB3120 | D72: DB2.DBB3135 | E72: 母
A73: 26008 | B73: 22223 | C73: DB2.DBB3140 | D73: DB2.DBB3155 | E73: 母

Sheet 触摸屏申请
A1: 设备类型 | B1: 字节索引 | C1: 代表意义 | D1: 取值 | E1: 值含义 | F1: 备注
A2: 触摸屏下行消息：PC->PLC
A3: 触摸屏DB1：共12字节 | B3: 0 | C3: 读/写标志位 | D3: 1 | E3: 写入数据
D4: 2 | E4: 读出数据正确
B5: 1 | C5: 指令 | D5: 6 | E5: 送出
B6: 2 | C6: 任务号
B7: 3
B8: 4 | C8: 起始设备编号
B9: 5
B10: 6
B11: 7
B12: 8 | C12: 目标设备编号
B13: 9
B14: 10
B15: 11
A16: 触摸屏上行消息：PLC->PC
A17: 触摸屏DB2：共8+条码数*n个字节 | B17: 0 | C17: 读/写标志位 | D17: 1 | E17: 写入数据 | F17: PLC上报新条码时候写1；
D18: 2 | E18: 读出数据正确
B19: 1 | C19: 申请指令 | D19: 1 | E19: 重发当前设备指令
D20: 2 | E20: 申请修改当前设备所执行任务的目标位置
D21: 3 | E21: 报告当前设备所执行的任务完成
D22: 4 | E22: 删除当前设备所执行的任务（托盘拿走）
B23: 2 | C23: 设备编号（当前申请设备的设备编号）
B24: 3
B25: 4
B26: 5
B27: 6 | C27: 任务号（需要修改目标位置的任务号）
B28: 7
B29: 8～n | C29: 条码
A31: 注：上位机读到申请信号上报完成后将DB2中的读/写标志位字节改为2，读到申请信号上报删除改成3，读到重发当前设备指令改成4，在接到应答后下位机将该值清零。 触摸屏申请产生的故障代码由调度系统写到DB2中上述标志位字节： 30申请的条形码不存在 31申请的任务号不存在 32申请的任务号和条形码都不存在 33申请重发的设备号不在调度规划的路径上 34申请修改当前设备所执行任务的目标位置被调度拒绝 35申请的设备号和条形码不匹配 36申请的设备号和任务号不匹配

Sheet 堆垛机报警码
A1: F_DeviceKindIndex | B1: F_DeviceErrorIndex | C1: F_ErrorName | D1: F_ErrorReasons | E1: F_ErrorSolutions
A2: 1 | B2: 30 | C2: 手动 | D2: 1.操作员将设备设为手动 | E2: 1.将手动/本机/联机开关切换到联机
A3: 1 | B3: 31 | C3: 急停 | D3: 1.急停按钮被按下； | E3: 1.将急停按钮复位；2.恢复线路
A4: 1 | D4: 2.接线故障。
A5: 1 | B5: 32 | C5: 行走伺服或变频器故障 | D5: 1.查看故障代码，对照操作手册，找出故障原因 | E5: 1.对应故障码，参照手册解决
A6: 1 | B6: 33 | C6: 升降伺服或变频器故障 | D6: 1.查看故障代码，对照操作手册，找出故障原因 | E6: 1.对应故障码，参照手册解决
A7: 1 | B7: 34 | C7: 货叉伺服或变频器故障 | D7: 1.查看故障代码，对照操作手册，找出故障原因 | E7: 1.对应故障码，参照手册解决
A8: 1 | B8: 35 | C8: 取货后堆垛机近叉无货 | D8: 1.取货时货架货位内无货； | E8: 1.选择其它货位；
A9: 1 | D9: 2.探物光电位置变动； | E9: 2.调整光电位置；
A10: 1 | D10: 3.探物光电损坏； | E10: 3.更换探物光电；
A11: 1 | D11: 4.探物光电线路故障 | E11: 4.修复接线
A12: 1 | B12: 36 | C12: 放货时近叉货架有货 | D12: 1.送货时所送的货架货位内有货物； | E12: 1.重新选择货位；
A13: 1 | D13: 2.探物光电位置变动； | E13: 2.调整光电位置；
A14: 1 | D14: 3.探物光电损坏； | E14: 3.更换探物光电；
A15: 1 | D15: 4.探物光电线路故障 | E15: 4.修复接线
A16: 1 | B16: 37 | C16: 放货后堆垛机近叉有货 | D16: 1.送货时所送的货没有送到指定货位； | E16: 1.对应层定位控制故障，重新调整该层定位控制；2.调整光电位置；
A17: 1 | D17: 2.探物光电位置变动； | E17: 3.更换探物光电；
A18: 1 | D18: 3.探物光电损坏； | E18: 4.修复接线
A19: 1 | D19: 4.探物光电线路故障
A20: 1 | B20: 38 | C20: 取货时堆垛机近叉有货 | D20: 1.堆垛机执行取货任务时，载货台上有货； | E20: 1.重新执行放货任务；
A21: 1 | D21: 2.货物有无检测传感器损坏； | E21: 2.更换传感器；
A22: 1 | D22: 3.货有无传感器位置变动； | E22: 3.调整传感器位置，将其校正；
A23: 1 | D23: 4.传感器线路故障 | E23: 4.修复接线
A24: 1 | B24: 39 | C24: 放货时堆垛机近叉无货 | D24: 1.堆垛机执行放货任务时，载货台上无货； | E24: 1.重新执行取货任务；
A25: 1 | D25: 2.货物有无检测传感器损坏； | E25: 2.更换传感器；
A26: 1 | D26: 3.货有无传感器位置变动； | E26: 3.调整传感器位置，将其校正；
A27: 1 | D27: 4.传感器线路故障 | E27: 4.修复接线
A28: 1 | B28: 40 | C28: 源地址错误 | D28: 1.设定层列数超过系统规定值； | E28: 1.重新输入正确参数；
A29: 1 | B29: 41 | C29: 目地址错误 | D29: 1.设定层列数超过系统规定值； | E29: 1.重新输入正确参数；
A30: 1 | B30: 42 | C30: 高货低送报警 | D30: 1.货物被指定到低货格位置； | E30: 1.请重新分配正常高度的货格；
A31: 1 | D31: 2.判断高度传感器损坏； | E31: 2. 更换开关；
A32: 1 | D32: 3.判断高度传感器位置变动； | E32: 3.调整传感器位置，将其校正；
A33: 1 | D33: 4.传感器线路故障 | E33: 4.修复接线
A34: 1 | B34: 43 | C34: 货物超高 | D34: 1.取货后货物超高； | E34: 1.调整货物高度；
A35: 1 | D35: 2.超高检测传感器损坏； | E35: 2.更换开关；
A36: 1 | D36: 3.超高检测传感器位置变动； | E36: 3.调整传感器位置，将其校正；
A37: 1 | D37: 4.传感器线路故障 | E37: 4.修复接线
A38: 1 | B38: 44 | C38: 货物超宽 | D38: 1.取货时，货物超宽； | E38: 1.调整货物宽度；
A39: 1 | D39: 2.超高检测传感器损坏； | E39: 2.更换开关；
A40: 1 | D40: 3.超高检测传感器位置变动； | E40: 3.调整传感器位置，将其校正；
A41: 1 | D41: 4.传感器线路故障 | E41: 4.修复接线
A42: 1 | B42: 45 | C42: 货物超界 | D42: 1.取货后，货物超界； | E42: 1.调整货物长度方向；
A43: 1 | D43: 2.超高检测传感器损坏； | E43: 2.更换开关；
A44: 1 | D44: 3.超高检测传感器位置变动； | E44: 3.调整传感器位置，将其校正；
A45: 1 | D45: 4.传感器线路故障 | E45: 4.修复接线
A46: 1 | B46: 46 | C46: 叉不居中 | D46: 1.初次上电货叉伸出； | E46: 1.手动将货叉回到中位；
A47: 1 | D47: 2.货叉未在中位； | E47: 2.手动将货叉回中；
A48: 1 | D48: 3.居中传感器是否损坏； | E48: 3.更换开关；
A49: 1 | D49: 4.居中开关位置变动； | E49: 4.调整开关位置；
A50: 1 | D50: 5.传感器线路故障 | E50: 5.修复接线
A51: 1 | B51: 47 | C51: 货叉左侧运行时检测信号丢失 | D51: 1.左居中传感器损坏； | E51: 1. 更换开关；
A52: 1 | D52: 2.左居中开关位置变动； | E52: 2.调整开关位置；
A53: 1 | D53: 3.传感器线路故障 | E53: 3.修复接线
A54: 1 | B54: 48 | C54: 货叉右侧运行时检测信号丢失 | D54: 1.右居中传感器损坏； | E54: 1.更换开关；
A55: 1 | D55: 2.右居中开关位置变动； | E55: 2.调整开关位置；
A56: 1 | D56: 3.传感器线路故障 | E56: 3.修复接线
A57: 1 | B57: 49 | C57: 货叉左到位丢失 | D57: 1.左到位传感器损坏； | E57: 1.更换开关；
A58: 1 | D58: 2.左到位开关位置变动； | E58: 2.调整开关位置；
A59: 1 | D59: 3.传感器线路故障 | E59: 3.修复接线
A60: 1 | B60: 50 | C60: 货叉右到位丢失 | D60: 1.右到位传感器损坏； | E60: 1.更换光电传感器；
A61: 1 | D61: 2.右到位开关位置变动； | E61: 2.调整开关位置；
A62: 1 | D62: 3.传感器线路故障 | E62: 3.修复接线
A63: 1 | B63: 51 | C63: 货叉运行超时 | D63: 1.居中或到位开关损坏； | E63: 1.更换光电传感器；
A64: 1 | D64: 2.居中或到位开关位置变动； | E64: 2.调整开关位置；
A65: 1 | D65: 3.居中或到位开关传感器线路故障 | E65: 3.修复接线
A66: 1 | B66: 52 | C66: 取货时货叉提货超时 | D66: 1.取货时货叉到位后，向上提货时卡住 | E66: 1.检查卡住原因后修复
A67: 1 | B67: 53 | C67: 送货时货叉放货超时 | D67: 1.放货时货叉到位后，向下放货时卡住 | E67: 1.检查卡住原因后修复
A68: 1 | B68: 54 | C68: 超载 | D68: 1.所取的货物超过系统规定的重量； | E68: 1.减轻货物重量；
A69: 1 | D69: 2.传感器损坏； | E69: 2.更换开关；
A70: 1 | D70: 3.传感器线路故障 | E70: 3.修复线路
A71: 1 | B71: 55 | C71: 松绳 | D71: 1.钢丝绳太松； | E71: 1.重新绕紧，检查垂直原点行程开关工作是否正常；
A72: 1 | D72: 2.钢丝绳已断； | E72: 2.更换钢丝绳；
A73: 1 | D73: 3.传感器损坏； | E73: 3.更换开关；
A74: 1 | D74: 4.传感器线路故障 | E74: 4.修复线路
A75: 1 | B75: 56 | C75: 上限位停车 | D75: 1.限位开关被压下，系统进入保护状态； | E75: 1.将手动操作堆垛机退出限位停车位置；
A76: 1 | D76: 2.限位开关损坏； | E76: 2.更换开关；
A77: 1 | D77: 3.限位开关线路故障 | E77: 3.修复线路；
A78: 1 | B78: 57 | C78: 下限位停车 | D78: 1.限位开关被压下，系统进入保护状态； | E78: 1.将手动操作堆垛机退出限位停车位置；
A79: 1 | D79: 2.限位开关损坏； | E79: 2.更换开关；
A80: 1 | D80: 3.限位开关线路故障 | E80: 3.修复线路；
A81: 1 | B81: 58 | C81: 前限位停车 | D81: 1.极限开关被压下，系统进入保护状态； | E81: 1.将手动操作堆垛机退出限位停车位置；
A82: 1 | D82: 2.限位开关损坏； | E82: 2.更换开关；
A83: 1 | D83: 3.限位开关线路故障传感器 | E83: 3.修复线路；
A84: 1 | B84: 59 | C84: 后限位停车 | D84: 1.限位开关被压下，系统进入保护状态； | E84: 1.将手动操作堆垛机退出限位停车位置；
A85: 1 | D85: 2.限位开关损坏； | E85: 2.更换开关；
A86: 1 | D86: 3.限位开关线路故障 | E86: 3.修复线路；
A87: 1 | B87: 60 | C87: 目标地址未设 | D87: 1.执行任务前，判断目标位置未零时报警 | E87: 1.请将正确值写入正确目标位置。注：需专业授权人员
A88: 1 | B88: 61 | C88: 行走测距故障 | D88: 1.条码读头与条码带之间被遮挡（激光测距读头与反光板之间被遮挡）； | E88: 1.将遮挡物移除；
A89: 1 | D89: 2.条码读头位置变动（测距读头位置变动）； | E89: 2.恢复条码读头位置（恢复测距读头位置）
A90: 1 | D90: 3.条码读头损坏（光测距读头损坏）； | E90: 3.更换条码读头（更换测距读头）；
A91: 1 | D91: 4.条码带损坏（反光板损坏）； | E91: 4.更换条码带（更换反光板）；
A92: 1 | D92: 5.反光板位置移动. | E92: 5.恢复反光板位置
A93: 1 | B93: 62 | C93: 升降测距故障 | D93: 1.条码读头与条码带之间被遮挡（激光测距读头与反光板之间被遮挡）； | E93: 1.将遮挡物移除；
A94: 1 | D94: 2.条码读头位置变动（测距读头位置变动）； | E94: 2.恢复条码读头位置（恢复测距读头位置）；
A95: 1 | D95: 3.条码读头损坏（光测距读头损坏）； | E95: 3.更换条码读头（更换测距读头）；
A96: 1 | D96: 4.条码带损坏（反光板损坏）； | E96: 4.更换条码带（更换反光板）；
A97: 1 | D97: 5.反光板位置移动 | E97: 5.恢复反光板位置
A98: 1 | B98: 63 | C98: 行走停过界 | D98: 1.控制器减速斜坡过短 | E98: 1.增加控制器减速斜坡。注：需专业授权人员
A99: 1 | B99: 64 | C99: 升降停过界 | D99: 1.控制器减速斜坡过短 | E99: 1.增加控制器减速斜坡。注：需专业授权人员
A100: 1 | B100: 65 | C100: 升降失速 | D100: 1.失速开关被激活 | E100: 1.复位失速开关
A101: 1 | B101: 66 | C101: 升降时测距值未变 | D101: 1.升降时，载货台卡住； | E101: 1.检查载货台卡住原因后修复；
A102: 1 | B102: 67 | C102: 行走时测距值未变 | D102: 1.行走时，堆垛机卡住； | E102: 1.检查堆垛机卡住原因后修复；
A103: 1 | B103: 68 | C103: 升降目标超限 | D103: 1.纵向坐标位置目标值超出正常值 | E103: 1.修订正确目标位置；注：需专业授权人员
A104: 1 | B104: 69 | C104: 行走目标超限 | D104: 1.横向坐标位置目标值超出正常值 | E104: 1.修订正确目标位置；注：需专业授权人员
A105: 1 | B105: 70 | C105: 升降速度异常 | D105: 1.控制器失控； | E105: 1.检查控制器；
A106: 1 | D106: 2.条码读头异常； | E106: 2.确认条码读头是否异常，修复或更换；
A107: 1 | D107: 3.认址条码带异常。 | E107: 3.确认条码带是否异常，修复或更换
A108: 1 | B108: 71 | C108: 行走速度异常 | D108: 1.控制器失控； | E108: 1.检查控制器；
A109: 1 | D109: 2.条码读头异常； | E109: 2.确认条码读头是否异常，修复或更换；
A110: 1 | D110: 3.认址条码带异常。 | E110: 3.确认条码带是否异常，修复或更换
A111: 1 | B111: 72 | C111: 升降未在正常范围值内 | D111: 1.载货台停止极限坐标位置 | E111: 1.手动将载货台调整到正常范围位置
A112: 1 | B112: 73 | C112: 行走未在正常范围值内 | D112: 1.堆垛机停止极限坐标位置 | E112: 1.手动将堆垛机调整到正常范围位置
A113: 1 | B113: 74 | C113: 光通讯断 | D113: 1.异物遮挡； | E113: 1.移除异物；
A114: 1 | D114: 2.设备损坏； | E114: 2.更换设备；
A115: 1 | D115: 3.线路问题 | E115: 3.修复线路
A116: 1 | B116: 75 | C116: 取货时站台未就绪 | D116: 1.取货站台未停在高位； | E116: 1.将取货站台恢复到高位；
A117: 1 | D117: 2.取货站台报警 | E117: 2.将取货站台报警复位
A118: 1 | B118: 76 | C118: 放货时站台未就绪 | D118: 1.放货站台未停在高位； | E118: 1.将放货站台恢复到高位；
A119: 1 | D119: 2.放货站台上有货； | E119: 2.处理放货站台货物；
A120: 1 | D120: 3.放货站台报警 | E120: 3.将放货站台报警复位
A121: 1 | B121: 77 | C121: 制动电阻过热 | D121: 1.制动电阻工作时间过长； | E121: 1.停止设备运行，待制动电阻正常后恢复；
A122: 1 | D122: 2.制动电阻损坏； | E122: 2.更换制动电阻；
A123: 1 | D123: 3.线路问题 | E123: 3.修复线路
A124: 1 | B124: 78 | C124: 运动时切换模式 | D124: 1.执行任务时，操作模式被切换 | E124: 1.人为错误，执行任务时禁止切换
A125: 1 | B125: 79 | C125: 行走校验错 | D125: 1.减速传感器位置变动； | E125: 1.调整减速传感器位置；
A126: 1 | D126: 2.减速板位置变动； | E126: 2.调整减速板位置；
A127: 1 | D127: 3.传感器损坏； | E127: 3.更换传感器；
A128: 1 | D128: 4.传感器线路故障 | E128: 4.修复线路
A129: 1 | B129: 80 | C129: 升降校验错 | D129: 1.减速传感器位置变动； | E129: 1.调整减速传感器位置；
A130: 1 | D130: 2.减速板位置变动； | E130: 2.调整减速板位置；
A131: 1 | D131: 3.传感器损坏； | E131: 3.更换传感器；
A132: 1 | D132: 4.传感器线路故障 | E132: 4.修复线路
A133: 1 | B133: 81 | C133: 取货后中叉无货 | D133: 1.取货时货架货位内无货； | E133: 1.选择其它货位；
A134: 1 | D134: 2.探物光电位置变动； | E134: 2.调整光电位置；
A135: 1 | D135: 3.探物光电损坏； | E135: 3.更换探物光电；
A136: 1 | D136: 4.探物光电线路故障 | E136: 4.修复接线
A137: 1 | B137: 82 | C137: 放货时中叉货架有货 | D137: 1.送货时所送的货架货位内有货物； | E137: 1.重新选择货位；
A138: 1 | D138: 2.探物光电位置变动； | E138: 2.调整光电位置；
A139: 1 | D139: 3.探物光电损坏； | E139: 3.更换探物光电；
A140: 1 | D140: 4.探物光电线路故障 | E140: 4.修复接线
A141: 1 | B141: 83 | C141: 取货时中叉有货 | D141: 1.送货时所送的货没有送到指定货位； | E141: 1.对应层定位控制故障，重新调整该层定位控制；2.调整光电位置；
A142: 1 | D142: 2.探物光电位置变动； | E142: 3.更换探物光电；
A143: 1 | D143: 3.探物光电损坏； | E143: 4.修复接线
A144: 1 | D144: 4.探物光电线路故障
A145: 1 | B145: 84 | C145: 放货时中叉无货 | D145: 1.堆垛机执行取货任务时，载货台上有货； | E145: 1.重新执行放货任务；
A146: 1 | D146: 2.货物有无检测传感器损坏； | E146: 2.更换传感器；
A147: 1 | D147: 3.货有无传感器位置变动； | E147: 3.调整传感器位置，将其校正；
A148: 1 | D148: 4.传感器线路故障 | E148: 4.修复接线
A149: 1 | B149: 85 | C149: 放货时中叉货架有货 | D149: 1.堆垛机执行放货任务时，载货台上无货； | E149: 1.重新执行取货任务；
A150: 1 | D150: 2.货物有无检测传感器损坏； | E150: 2.更换传感器；
A151: 1 | D151: 3.货有无传感器位置变动； | E151: 3.调整传感器位置，将其校正；
A152: 1 | D152: 4.传感器线路故障 | E152: 4.修复接线
A153: 1 | B153: 86 | C153: 取货后远叉无货 | D153: 1.取货时货架货位内无货； | E153: 1.选择其它货位；
A154: 1 | D154: 2.探物光电位置变动； | E154: 2.调整光电位置；
A155: 1 | D155: 3.探物光电损坏； | E155: 3.更换探物光电；
A156: 1 | D156: 4.探物光电线路故障 | E156: 4.修复接线
A157: 1 | B157: 87 | C157: 放货后远叉有货 | D157: 1.送货时所送的货架货位内有货物； | E157: 1.重新选择货位；
A158: 1 | D158: 2.探物光电位置变动； | E158: 2.调整光电位置；
A159: 1 | D159: 3.探物光电损坏； | E159: 3.更换探物光电；
A160: 1 | D160: 4.探物光电线路故障 | E160: 4.修复接线
A161: 1 | B161: 88 | C161: 取货时远叉有货 | D161: 1.送货时所送的货没有送到指定货位； | E161: 1.对应层定位控制故障，重新调整该层定位控制；2.调整光电位置；
A162: 1 | D162: 2.探物光电位置变动； | E162: 3.更换探物光电；
A163: 1 | D163: 3.探物光电损坏； | E163: 4.修复接线
A164: 1 | D164: 4.探物光电线路故障
A165: 1 | B165: 89 | C165: 放货时远叉无货 | D165: 1. 堆垛机执行取货任务时，载货台上有货； | E165: 1.重新执行放货任务；
A166: 1 | D166: 2.货物有无检测传感器损坏； | E166: 2.更换传感器；
A167: 1 | D167: 3.货有无传感器位置变动； | E167: 3.调整传感器位置，将其校正；
A168: 1 | D168: 4.传感器线路故障 | E168: 4.修复接线
A169: 1 | B169: 90 | C169: 放货时远叉货架有货 | D169: 1. 堆垛机执行放货任务时，载货台上无货； | E169: 1.重新执行取货任务；
A170: 1 | D170: 2.货物有无检测传感器损坏； | E170: 2.更换传感器；
A171: 1 | D171: 3.货有无传感器位置变动； | E171: 3.调整传感器位置，将其校正；
A172: 1 | D172: 4.传感器线路故障 | E172: 4.修复接线
A173: 1 | B173: 91 | C173: 升降计数器错 | D173: 1.升降计数器校验错误； | E173: 1.手动将载货台降到纵原点开关后恢复自动；
A174: 1 | D174: 2.认址传感器损坏 | E174: 2.更换传感器
A175: 1 | B175: 92 | C175: 行走计数器错 | D175: 1.行走计数器校验错误； | E175: 1.手动将堆垛机运行到横向原点开关后恢复自动；
A176: 1 | D176: 2.认址传感器损坏 | E176: 2.更换传感器
A177: 1 | B177: 93 | C177: 拨叉动作超时 | D177: 1.拨叉卡住； | E177: 1.检查卡住原因，修复；
A178: 1 | D178: 2.检测开关位置变动； | E178: 2.校正传感器位置；
A179: 1 | D179: 3.传感器损坏； | E179: 3.更换传感器；
A180: 1 | D180: 4.传感器线路故障 | E180: 4.修复线路
A181: 1 | B181: 94 | C181: 拨叉未停在正确位置 | D181: 1.检测开关位置变动； | E181: 1.校正传感器位置；
A182: 1 | D182: 2.传感器损坏； | E182: 2.更换传感器；
A183: 1 | D183: 3.传感器线路故障 | E183: 3.修复线路
A184: 1 | B184: 95 | C184: 取远端货时近端有货 | D184: 1.近端货架位置有货； | E184: 1.选择新的位置取货；
A185: 1 | D185: 2.检测开关位置变动； | E185: 2.校正传感器位置；
A186: 1 | D186: 3.传感器损坏； | E186: 3.更换传感器；
A187: 1 | D187: 4.传感器线路故障 | E187: 4.修复线路
A188: 1 | B188: 96 | C188: 放远端货时近端有货 | D188: 1.近端货架位置有货； | E188: 1.选择新的位置放货；
A189: 1 | D189: 2.检测开关位置变动； | E189: 2.校正传感器位置；
A190: 1 | D190: 3.传感器损坏； | E190: 3.更换传感器；
A191: 1 | D191: 4.传感器线路故障 | E191: 4.修复线路
A192: 1 | B192: 97 | C192: 取货时托盘类型不符 | D192: 1.取货时，所取货位上的托盘类型与下发命令的托盘类型不一致； | E192: 1.下发新的命令；
A193: 1 | D193: 2.检测开关位置变动； | E193: 2.校正传感器位置；
A194: 1 | D194: 3.传感器损坏； | E194: 3.更换传感器；
A195: 1 | D195: 4.传感器线路故障 | E195: 4.修复线路
A196: 1 | B196: 98 | C196: 放货时托盘类型不符 | D196: 1.放货时，所执行放货的托盘与下发命令的托盘类型不符； | E196: 1.下发新的命令；
A197: 1 | D197: 2.检测开关位置变动； | E197: 2.校正传感器位置；
A198: 1 | D198: 3.传感器损坏； | E198: 3.更换传感器；
A199: 1 | D199: 4.传感器线路故障 | E199: 4.修复线路
A200: 1 | B200: 99 | C200: 中叉伺服或变频器故障 | D200: 1.查看故障代码，对照操作手册，找出故障原因 | E200: 1.对应故障码，参照手册解决
... 19 more rows

Sheet 输送线类报警码
A1: F_DeviceKindIndex | B1: F_DeviceErrorIndex | C1: F_ErrorName | D1: F_ErrorReasons | E1: F_ErrorSolutions
A2: 2 | B2: 30 | C2: 手动 | D2: 1.操作员将设备设为手动 | E2: 1.恢复自动
A3: 2 | B3: 31 | C3: 急停 | D3: 1.急停按钮被按下； | E3: 1.将急停按钮复位；
A4: 2 | D4: 2.接线故障 | E4: 2.恢复线路
A5: 2 | B5: 32 | C5: 变频器报警 | D5: 1.查看故障代码，对照操作手册，找出故障原因 | E5: 1.对应故障码，参照手册解决
A6: 2 | B6: 33 | C6: 热继电器报警 | D6: 1.输送物料时卡盘； | E6: 1.按下热继电器复位按钮，校正物料；
A7: 2 | D7: 2.接线故障； | E7: 2.恢复线路；
A8: 2 | D8: 3.电机过载运行 | E8: 3.电机功率小或物料超重。
A9: 2 | B9: 34 | C9: 电滚筒报警 | D9: 1. 输送物料时卡盘； | E9: 1.断电后，恢复正常供电解除电滚筒报警；
A10: 2 | D10: 2.接线故障； | E10: 2.校正物料复位；
A11: 2 | D11: 3.电滚筒过载运行 | E11: 3.检查接线；4.减轻负载。
A12: 2 | B12: 35 | C12: 输送超时报警 | D12: 1.输送物料时卡盘； | E12: 1. 校正物料复位；
A13: 2 | D13: 2.设备执行任务时物料被移走； | E13: 2.在操作终端上将该物料任务删除后，复位，并且需在调度机上对该任务作出相应的处理；
A14: 2 | D14: 3.到位传感器未检测 | E14: 3.检查传感器是否正常，是否松动，检查接线。
A15: 2 | B15: 36 | C15: 升降超时报警 | D15: 1.升降时设备卡住； | E15: 1.检查机械，进行修复；
A16: 2 | D16: 2.到位传感器未检测 | E16: 2.检查传感器是否正常，是否松动，检查接线。
A17: 2 | B17: 37 | C17: 顶升高低位异常 | D17: 1.到位传感器未检测； | E17: 1.检查传感器是否正常，是否松动，检查接线，检查遮光板是否松动。
A18: 2 | B18: 38 | C18: 上位命令错 | D18: 1.上位机下发命令有误 | E18: 1.重新下发新的命令
A19: 2 | B19: 39 | C19: 外形检测超高 | D19: 1.货物超高; | E19: 1.降低货物高度；
A20: 2 | D20: 2.超高检测传感器故障 | E20: 2.检查传感器是否正常，是否松动，检查接线。
A21: 2 | B21: 40 | C21: 外形检测左超宽 | D21: 1.货物左侧超宽； | E21: 1.检查货物，调整超出货物；
A22: 2 | D22: 2.超高检测传感器故障 | E22: 2.检查传感器是否正常，是否松动，检查接线。
A23: 2 | B23: 41 | C23: 外形检测右超宽 | D23: 1.货物右侧超宽； | E23: 1.检查货物，调整超出货物；
A24: 2 | D24: 2.超高检测传感器故障 | E24: 2.检查传感器是否正常，是否松动，检查接线。
A25: 2 | B25: 42 | C25: 外形检测前超长 | D25: 1.货物前侧有货物超出； | E25: 1.检查货物，调整超出货物；
A26: 2 | D26: 2.超高检测传感器故障 | E26: 2.检查传感器是否正常，是否松动，检查接线。
A27: 2 | B27: 43 | C27: 外形检测后超长 | D27: 1.货物后侧有货物超出； | E27: 1.检查货物，调整超出货物；
A28: 2 | D28: 2.超高检测传感器故障 | E28: 2.检查传感器是否正常，是否松动，检查接线。
A29: 2 | B29: 44 | C29: 超重 | D29: 1.货物超重； | E29: 1.检查货物，调整超重；
A30: 2 | D30: 2.超重检测传感器故障 | E30: 2.检查传感器是否正常，是否松动，检查接线。
A31: 2 | B31: 45 | C31: 输送机货物超界 | D31: 1.货物遮挡超界传感器； | E31: 1.检查货物位置，调整货物；
A32: 2 | D32: 2.超界传感器故障 | E32: 2.检查传感器是否正常，是否松动，检查接线。
A33: 2 | B33: 46 | C33: 输送线安全门打开 | D33: 1.安全门打开； | E33: 1.检查安全门是否打开；
A34: 2 | D34: 2.安全门检测传感器故障 | E34: 2.检查传感器是否正常，是否松动，检查接线。
A35: 2 | B35: 47 | C35: 旋转台位置异常 | D35: 1.到位传感器未检测； | E35: 1.检查传感器是否正常，是否松动，检查接线，检查遮光板是否松动。
A36: 2 | B36: 48 | C36: 顶升上限位报警 | D36: 1.顶升升到上限位位置； | E36: 1.手动将顶升降到正常位置；
A37: 2 | D37: 2.限位开关损坏; | E37: 2.限位开关更换;
A38: 2 | D38: 3.线路故障 | E38: 3.修复线路
A39: 2 | B39: 49 | C39: 顶升下限位报警 | D39: 1.顶升降到下限位位置； | E39: 1.手动将顶升升到正常位置；
A40: 2 | D40: 2.限位开关损坏; | E40: 2.限位开关更换;
A41: 2 | D41: 3.线路故障 | E41: 3.修复线路
A42: 2 | B42: 60 | C42: 提升机提升变频器报警 | D42: 1.查看故障代码，对照操作手册，找出故障原因 | E42: 1.对应故障码，参照手册解决
A43: 2 | B43: 61 | C43: 提升机移载变频器报警 | D43: 1.查看故障代码，对照操作手册，找出故障原因 | E43: 1.对应故障码，参照手册解决
A44: 2 | B44: 62 | C44: 提升机上限位报警 | D44: 1.载货台升到上极限位置； | E44: 1.手动将载货台降到正常位置；
A45: 2 | D45: 2.限位开关损坏; | E45: 2.位开关更换；
A46: 2 | D46: 3.线路故障 | E46: 3.修复线路
A47: 2 | B47: 63 | C47: 提升机下限位报警 | D47: 1.载货台降到下极限位置； | E47: 1.手动将载货台升到正常位置；
A48: 2 | D48: 2.限位开关损坏; | E48: 2. 限位开关更换;
A49: 2 | D49: 3.线路故障 | E49: 3.修复线路
A50: 2 | B50: 64 | C50: 提升机移载超时报警 | D50: 1.物料卡住； | E50: 1.调整物料后恢复；
A51: 2 | D51: 2.移栽时物料被搬走。 | E51: 2.对该物料任务在操作终端上删除，且在调度机上进行相应处理。
A52: 2 | B52: 65 | C52: 提升机升降超时报警 | D52: 1.升降时载货台卡住 | E52: 1.检查卡住原因，修复后恢复；
A53: 2 | B53: 66 | C53: 提升机升降位置异常 | D53: 1.载货台未停留在正确位置； | E53: 1.将载货台手动运行到正确位置；
A54: 2 | D54: 2.传感器未感应 | E54: 2.检查传感器是否正常，是否松动，检查接线。
A55: 2 | B55: 67 | C55: 提升机货物超界报警 | D55: 1.载货台上物料外形不合格； | E55: 1.调整物料后恢复；
A56: 2 | D56: 2.传感器故障 | E56: 2.检查传感器是否正常，是否松动，检查接线。
A57: 2 | B57: 68 | C57: 升降速度异常 | D57: 1.控制器失控； | E57: 1.检查控制器；
A58: 2 | D58: 2.条码读头异常； | E58: 2.确认条码读头是否异常，修复或更换；
A59: 2 | D59: 3.认址条码带异常。 | E59: 3.确认条码带是否异常，修复或更换
A60: 2 | B60: 69 | C60: 升降时码值未变 | D60: 1.升降时载货台卡住； | E60: 1.检查卡住原因，修复后恢复；
A61: 2 | D61: 2.条码读头异常； | E61: 2.确认条码读头是否异常，修复或更换；
A62: 2 | D62: 3.认址条码带异常。 | E62: 3.确认条码带是否异常，修复或更换
A63: 2 | B63: 70 | C63: 提升机左配重检测报警 | D63: 1.提升机左侧配重掉落； | E63: 1.修复该配重；
A64: 2 | D64: 2.传感器故障 | E64: 2.检查传感器是否正常，是否松动，检查接线。
A65: 2 | B65: 71 | C65: 提升机右配重检测报警 | D65: 1.提升机右侧配重掉落； | E65: 1.修复该配重；
A66: 2 | D66: 2.传感器故障 | E66: 2.检查传感器是否正常，是否松动，检查接线。
A67: 2 | B67: 72 | C67: 提升机左断链检测报警 | D67: 1.提升机左侧链条断； | E67: 1.修复左侧提升链条；
A68: 2 | D68: 2.传感器故障 | E68: 2.检查传感器是否正常，是否松动，检查接线。
A69: 2 | B69: 73 | C69: 提升机右断链检测报警 | D69: 1.提升机右侧链条断； | E69: 1.修复左侧提升链条；
A70: 2 | D70: 2.传感器故障 | E70: 2.检查传感器是否正常，是否松动，检查接线。
A71: 2 | B71: 74 | C71: 提升机升降失速 | D71: 1.失速开关被激活 | E71: 1.复位失速开关
A72: 2 | B72: 75 | C72: 提升机输送方向超界 | D72: 1.载货台上输送方向超界开关被遮挡； | E72: 1.调整物料后恢复；
A73: 2 | D73: 2.传感器故障 | E73: 2.检查传感器是否正常，是否松动，检查接线。
B74: 90 | C74: 叠拆盘机升降变频报警 | D74: 1.查看故障代码，对照操作手册，找出故障原因 | E74: 1.对应故障码，参照手册解决
B75: 91 | C75: 叠拆盘机侧推电机过热 | D75: 1.侧推机构运行时卡盘； | E75: 1.检测卡住原因后修复；
D76: 2.接线故障； | E76: 2.恢复线路；
D77: 3.电机过载运行 | E77: 3.电机功率小或机械有阻力。
B78: 92 | C78: 叠拆盘机升降上限位报警 | D78: 1.叠拆盘机停在上极限位置； | E78: 1.手动将升降台降到正常位置；
D79: 2.限位开关损坏; | E79: 2.限位开关更换；
D80: 3.限位开关线路故障 | E80: 3.修复线路
B81: 93 | C81: 叠拆盘机升降下限位报警 | D81: 1叠拆盘机停在上极限位置； | E81: 1.手动将升降台升到正常位置；
D82: 2.限位开关损坏; | E82: 2.限位开关更换；
D83: 3.限位开关线路故障 | E83: 3.修复线路
B84: 94 | C84: 叠拆盘机侧推机构未就位 | D84: 1.叠拆盘机自动时侧推机构未停在正确位置； | E84: 1.手动将侧推机构停到正确位置上；
D85: 2.传感器故障 | E85: 2.检查传感器是否正常，是否松动，检查接线。
B86: 95 | C86: 叠拆盘机拨叉机构未就位 | D86: 1.叠拆盘机自动时侧推机构未停在正确位置； | E86: 1.手动将侧拨叉停到正确位置上；
D87: 2.传感器故障 | E87: 2.检查传感器是否正常，是否松动，检查接线。
B88: 96 | C88: 叠拆盘机升降位置异常 | D88: 1.叠拆盘机自动时升降台未停在正确位置； | E88: 1.手动将升降台到正确位置上；
D89: 2.传感器故障 | E89: 2.检查传感器是否正常，是否松动，检查接线。
B90: 97 | C90: 叠拆盘机超高报警 | D90: 1.叠拆盘机自动时传感器被遮挡； | E90: 1.检查叠拆盘机内的盘高度；
D91: 2.传感器故障 | E91: 2.检查传感器是否正常，是否松动，检查接线。
B92: 98 | C92: 叠拆盘机升降超时 | D92: 1.叠拆盘机升降台运行时卡住； | E92: 1.检查卡住原因后修复；
D93: 2.传感器故障 | E93: 2.检查传感器是否正常，是否松动，检查接线。
B94: 99 | C94: 叠拆盘机拨叉超时 | D94: 1.叠拆盘机拨叉运行时卡住； | E94: 1.检查卡住原因后修复；
D95: 2.传感器故障 | E95: 2.检查传感器是否正常，是否松动，检查接线。
B96: 100 | C96: 叠拆盘机侧推超时 | D96: 1.叠拆盘机侧推运行时卡住； | E96: 1.检查卡住原因后修复；
D97: 2.传感器故障 | E97: 2.检查传感器是否正常，是否松动，检查接线。
B98: 101 | C98: 叠拆盘机升降热继电器报警 | D98: 1.升降机构运行时卡住； | E98: 1.检测卡住原因后修复；
D99: 2.接线故障； | E99: 2.恢复线路；
D100: 3.电机过载运行 | E100: 3.电机功率小或机械有阻力。
B101: 102 | C101: 叠拆盘机拨叉热继电器报警 | D101: 1.升降机构运行时卡住； | E101: 1.检测卡住原因后修复；
D102: 2.接线故障； | E102: 2.恢复线路；
D103: 3.电机过载运行 | E103: 3.电机功率小或机械有阻力。
B104: 103 | C104: 叠拆盘机阻挡器位置错 | D104: 1.叠拆盘机自动时阻挡机构未停在正确位置； | E104: 1.手动将阻挡停到正确位置上；
D105: 2.传感器故障 | E105: 2.检查传感器是否正常，是否松动，检查接线。

Sheet 穿梭车报警码
A1: F_DeviceKindIndex | B1: F_DeviceErrorIndex | C1: F_ErrorName | D1: F_ErrorReasons | E1: F_ErrorSolutions
A2: 4 | B2: 30 | C2: 手动 | D2: 1.手动/自动开关位于手动 | E2: 1.将手动/自动开关切换到自动
A3: 4 | B3: 31 | C3: 急停 | D3: 1.急停按钮被按下；2.接线故障。 | E3: 1.将急停按钮复位；2.恢复线路
A4: 4 | B4: 32 | C4: 行走变频或伺服故障 | D4: 1.查看故障代码，对照操作手册，找出故障原因 | E4: 1.对应故障码，参照手册解决
A5: 4 | B5: 33 | C5: 移载变频故障（变频器控制） | D5: 1.查看故障代码，对照操作手册，找出故障原因 | E5: 1.对应故障码，参照手册解决
A6: 4 | B6: 34 | C6: 热继故障 | D6: 1.输送物料时卡盘； | E6: 1.按下热继电器复位按钮，校正物料；
A7: 4 | D7: 2.接线故障； | E7: 2.恢复线路；
A8: 4 | D8: 3.电机过载运行 | E8: 3.电机功率小或物料超重。
A9: 4 | B9: 35 | C9: 行走坐标超限 | D9: 1.穿梭车停止极限坐标位置 | E9: 1.手动将穿梭车调整到正常范围位置
A10: 4 | B10: 36 | C10: 行走时货物超界 | D10: 1.行走时，超出开关被遮挡； | E10: 1.校正穿梭车上物料；
A11: 4 | D11: 2.超出传感器损坏； | E11: 2.更换传感器；
A12: 4 | D12: 3.超出传感器线路问题 | E12: 3.修复线路
A13: 4 | B13: 37 | C13: 行走限位报警 | D13: 1.限位开关被压下，系统进入保护状态； | E13: 1.将手动操作堆垛机退出限位停车位置；
A14: 4 | D14: 2.检查传感器是否损坏； | E14: 2.更换传感器；
A15: 4 | D15: 3.传感器位置被移动； | E15: 3.调整开关位置；
A16: 4 | D16: 4.传感器线路问题 | E16: 4.修复线路；
A17: 4 | B17: 38 | C17: 行走测距故障 | D17: 1.条码读头与条码带之间被遮挡（激光测距读头与反光板之间被遮挡）； | E17: 1.将遮挡物移除；
A18: 4 | D18: 2.条码读头位置变动（测距读头位置变动）； | E18: 2.恢复条码读头位置（恢复测距读头位置）；
A19: 4 | D19: 3.条码读头损坏（光测距读头损坏）；4.条码带损坏（反光板损坏）； | E19: 3.更换条码读头（更换测距读头）；
A20: 4 | D20: 4.反光板位置移动 | E20: 4.更换条码带（更换反光板）；
A21: 4 | B21: 39 | C21: 通讯故障 | D21: 1.异物遮挡； | E21: 1.移除异物；
A22: 4 | D22: 2.设备损坏； | E22: 2.更换设备；
A23: 4 | D23: 3.线路问题 | E23: 3.修复线路
A24: 4 | B24: 40 | C24: 上位命令错误 | D24: 1.上位机下发命令有误 | E24: 1.重新下发新的命令
A25: 4 | B25: 41 | C25: 行走停过界 | D25: 1.控制器减速斜坡过短 | E25: 1.增加控制器减速斜坡；注：需专业授权人员
A26: 4 | B26: 42 | C26: 接货时穿梭车上有货 | D26: 1.接货时，穿梭车上有货； | E26: 1.将货物卸下；
A27: 4 | D27: 2.货有无传感器损坏； | E27: 2.更换传感器；
A28: 4 | D28: 3.传感器线路问题 | E28: 3.修复线路
A29: 4 | B29: 43 | C29: 送货穿梭车上无货 | D29: 1.送货时，穿梭车上无货； | E29: 1.将相应货物移至车上或下发新的命令；
A30: 4 | D30: 2.货有无传感器损坏； | E30: 2.更换传感器；
A31: 4 | D31: 3.传感器线路问题 | E31: 3.修复线路
A32: 4 | B32: 44 | C32: 穿梭车接货超时 | D32: 1.接货时，物料卡住； | E32: 1.校正物料；
A33: 4 | D33: 2.到位传感器损坏； | E33: 2.更换传感器；
A34: 4 | D34: 3.到位传感器线路问题 | E34: 3.修复线路
A35: 4 | B35: 45 | C35: 穿梭车送货超时 | D35: 1.送货时，物料卡住 | E35: 1.校正物料
A36: 4 | B36: 46 | C36: 行走速度异常 | D36: 1.控制器失控； | E36: 1.检查控制器；
A37: 4 | D37: 2.条码读头异常； | E37: 2.确认条码读头是否异常，修复或更换；
A38: 4 | D38: 3.认址条码带异常。 | E38: 3.确认条码带是否异常，修复或更换
A39: 4 | B39: 47 | C39: 未在站点停靠 | D39: 1.取货或放货时，未停靠在正确的取放货站点上 | E39: 1.将穿梭车运行到正确的取放货站点上
A40: 4 | B40: 48 | C40: 行走测距值未变 | D40: 1.行走时，穿梭车卡住； | E40: 1.检查穿梭车卡住原因后修复；
A41: 4 | B41: 49 | C41: 取货时对接输送机无货 | D41: 1.取货时，对应输送机上没无货 | E41: 1.在调度机上对该任务作处理
A42: 4 | B42: 50 | C42: 放货时对接输送机上有货 | D42: 1.放货时，对应输送机上没有货 | E42: 1.在调度机上对该任务作处理
A43: 4 | B43: 51 | C43: 送货时对接输送机未动作 | D43: 1.送货时，对应输送机未动作 | E43: 1.检查对应该输送机状态
A44: 4 | B44: 52 | C44: 货物不居中 | D44: 1.行走时，货物居中开关未被遮挡； | E44: 1.校正货物；
A45: 4 | D45: 2.居中传感器损坏； | E45: 2.更换传感器；
A46: 4 | D46: 3.居中传感器线路问题 | E46: 3.修复线路
A47: 4 | B47: 53 | C47: 输送机超界 | D47: 1.行走时，输送机坍塌开关被遮挡 | E47: 1.移除遮挡输送机遮挡坍塌物料
A48: 4 | B48: 54 | C48: 安全门打开 | D48: 1.安全门被打开； | E48: 1.安全门合上；
A49: 4 | D49: 2.安全门锁损坏； | E49: 2.更换安全门锁；
A50: 4 | D50: 3.线路问题 | E50: 3.修复线路
A51: 4 | B51: 55 | C51: 区域防护急停 | D51: 1.急停区域内有异物； | E51: 1.清除异物；
A52: 4 | D52: 2.传感器损坏； | E52: 2.更换区域防护传感器；
A53: 4 | D53: 3.线路问题 | E53: 3.修复线路

Sheet 拆叠盘机说明
A1: 叠盘机 DB2:调度 | B1: 0 | C1: 读/写标志位 | D1: 1 | E1: 写入数据 | F1: 虚拟站台只用到该读/写标志位字节，即上位机对下位机上报完成的应答，其它字节备用。
D2: 2 | E2: 读出数据正确 | F2: 上位机对下位机上报状态的应答或是用于清除设备故障
B3: 1 | C3: 设备状态 | D3: 0 | E3: 设备空闲
D4: 1 | E4: 任务执行
D5: 2 | E5: 任务完成 | F5: 送出命令，只有在目标(终点)输送设备上才报告完成
D6: other | E6: 设备故障 | F6: 具体参见故障代码
A7: 叠盘机 DB2:追加 | B7: 2 | C7: 运行状态 （运行起来后的字节:10101010210101010） | D7: 0 | F7: 不动（只有在高位的时候为0）
D8: 1 | F8: 取走一个货物或者托盘（叠一个货物或者托盘的时候的时候）
D9: 2 | F9: 放下所有托盘或者货物(落下的时候写2)
A10: 拆盘机 DB2:调度 | B10: 0 | C10: 读/写标志位 | D10: 1 | E10: 写入数据 | F10: 虚拟站台只用到该读/写标志位字节，即上位机对下位机上报完成的应答，其它字节备用。
D11: 2 | E11: 读出数据正确 | F11: 上位机对下位机上报状态的应答或是用于清除设备故障
B12: 1 | C12: 设备状态 | D12: 0 | E12: 设备空闲
D13: 1 | E13: 任务执行
D14: 2 | E14: 任务完成 | F14: 送出命令，只有在目标(终点)输送设备上才报告完成
D15: other | E15: 设备故障 | F15: 具体参见故障代码
A16: 拆盘机 DB2:追加 | B16: 2 | C16: 运行状态 （运行起来后的字节:2020202012020202020） | D16: 0 | F16: 不动（只有在高位的时候为0）
D17: 1 | F17: 取走一垛托盘（会留一个）（一垛进去的时候写）
D18: 2 | F18: 放下一个托盘(每次单独拆盘的时候,写2)

Sheet 环穿数据区
A1: 设备编号 | B1: 设备名称 | C1: DB1起始地址 | D1: 长度 | E1: DB2起始地址 | F1: 长度
A2: 15100 | B2: 15100-原料常温入库环穿1#主站15100 | C2: 2 | D2: 10 | E2: 2 | F2: 10
A3: 15101 | B3: 15101-原料常温入库环穿1#15101 | C3: 12 | D3: 2 | E3: 12 | F3: 12
A4: 15102 | B4: 15102-原料常温入库环穿1#15102 | C4: 14 | D4: 2 | E4: 24 | F4: 12
A5: 15103 | B5: 15103-原料常温入库环穿1#15103 | C5: 16 | D5: 2 | E5: 36 | F5: 12
A6: 15104 | B6: 15104-原料常温入库环穿1#15104 | C6: 18 | D6: 2 | E6: 48 | F6: 12
A7: 15105 | B7: 15105-原料常温入库环穿1#15105 | C7: 20 | D7: 2 | E7: 60 | F7: 12
A8: 15106 | B8: 15106-原料常温入库环穿1#15106 | C8: 22 | D8: 2 | E8: 72 | F8: 12
A9: 15107 | B9: 15107-原料常温入库环穿1#15107 | C9: 24 | D9: 2 | E9: 84 | F9: 12
A10: 15108 | B10: 15108-原料常温入库环穿1#15108 | C10: 26 | D10: 2 | E10: 96 | F10: 12
A11: 15109 | B11: 15109-原料常温入库环穿1#15109 | C11: 28 | D11: 2 | E11: 108 | F11: 12
A12: 15110 | B12: 15110-原料常温入库环穿1#15110 | C12: 30 | D12: 2 | E12: 120 | F12: 12
A13: 15111 | B13: 15111-原料常温入库环穿1#15111 | C13: 32 | D13: 2 | E13: 132 | F13: 12
A14: 15112 | B14: 15112-原料常温入库环穿1#15112 | C14: 34 | D14: 2 | E14: 144 | F14: 12
A15: 15113 | B15: 15113-原料常温入库环穿1#15113 | C15: 36 | D15: 2 | E15: 156 | F15: 12
A16: 15114 | B16: 15114-原料常温入库环穿1#15114 | C16: 38 | D16: 2 | E16: 168 | F16: 12
A17: 15115 | B17: 15115-原料常温入库环穿1#15115 | C17: 40 | D17: 2 | E17: 180 | F17: 12
A18: 15116 | B18: 15116-原料常温入库环穿1#15116 | C18: 42 | D18: 2 | E18: 192 | F18: 12
A19: 15117 | B19: 15117-原料常温入库环穿1#15117 | C19: 44 | D19: 2 | E19: 204 | F19: 12
A20: 15118 | B20: 15118-原料常温入库环穿1#15118 | C20: 46 | D20: 2 | E20: 216 | F20: 12
A21: 15119 | B21: 15119-原料常温入库环穿1#15119 | C21: 48 | D21: 2 | E21: 228 | F21: 12
A22: 15120 | B22: 15120-原料常温入库环穿1#15120 | C22: 50 | D22: 2 | E22: 240 | F22: 12
A23: 15121 | B23: 15121-原料常温入库环穿1#15121 | C23: 52 | D23: 2 | E23: 252 | F23: 12
A24: 15122 | B24: 15122-原料常温入库环穿1#15122 | C24: 54 | D24: 2 | E24: 264 | F24: 12
A25: 15123 | B25: 15123-原料常温入库环穿1#15123 | C25: 56 | D25: 2 | E25: 276 | F25: 12
A26: 15124 | B26: 15124-原料常温入库环穿1#15124 | C26: 58 | D26: 2 | E26: 288 | F26: 12
A27: 15125 | B27: 15125-原料常温入库环穿1#15125 | C27: 60 | D27: 2 | E27: 300 | F27: 12
A28: 15126 | B28: 15126-原料常温入库环穿1#15126 | C28: 62 | D28: 2 | E28: 312 | F28: 12
A29: 15127 | B29: 15127-原料常温入库环穿1#15127 | C29: 64 | D29: 2 | E29: 324 | F29: 12
A30: 15128 | B30: 15128-原料常温入库环穿1#15128 | C30: 66 | D30: 2 | E30: 336 | F30: 12
A31: 15129 | B31: 15129-原料常温入库环穿1#15129 | C31: 68 | D31: 2 | E31: 348 | F31: 12
A33: 15200 | B33: 15200-原料恒温入库环穿2#主站15200 | C33: 2 | D33: 10 | E33: 2 | F33: 10
A34: 15201 | B34: 15201-原料恒温入库环穿2#15201 | C34: 12 | D34: 2 | E34: 12 | F34: 12
A35: 15202 | B35: 15202-原料恒温入库环穿2#15202 | C35: 14 | D35: 2 | E35: 24 | F35: 12
A36: 15203 | B36: 15203-原料恒温入库环穿2#15203 | C36: 16 | D36: 2 | E36: 36 | F36: 12
A37: 15204 | B37: 15204-原料恒温入库环穿2#15204 | C37: 18 | D37: 2 | E37: 48 | F37: 12
A38: 15205 | B38: 15205-原料恒温入库环穿2#15205 | C38: 20 | D38: 2 | E38: 60 | F38: 12
A39: 15206 | B39: 15206-原料恒温入库环穿2#15206 | C39: 22 | D39: 2 | E39: 72 | F39: 12
A40: 15207 | B40: 15207-原料恒温入库环穿2#15207 | C40: 24 | D40: 2 | E40: 84 | F40: 12
A41: 15208 | B41: 15208-原料恒温入库环穿2#15208 | C41: 26 | D41: 2 | E41: 96 | F41: 12
A42: 15209 | B42: 15209-原料恒温入库环穿2#15209 | C42: 28 | D42: 2 | E42: 108 | F42: 12
A43: 15210 | B43: 15210-原料恒温入库环穿2#15210 | C43: 30 | D43: 2 | E43: 120 | F43: 12
A44: 15211 | B44: 15211-原料恒温入库环穿2#15211 | C44: 32 | D44: 2 | E44: 132 | F44: 12
A45: 15212 | B45: 15212-原料恒温入库环穿2#15212 | C45: 34 | D45: 2 | E45: 144 | F45: 12
A46: 15213 | B46: 15213-原料恒温入库环穿2#15213 | C46: 36 | D46: 2 | E46: 156 | F46: 12
A47: 15214 | B47: 15214-原料恒温入库环穿2#15214 | C47: 38 | D47: 2 | E47: 168 | F47: 12
A48: 15215 | B48: 15215-原料恒温入库环穿2#15215 | C48: 40 | D48: 2 | E48: 180 | F48: 12
A49: 15216 | B49: 15216-原料恒温入库环穿2#15216 | C49: 42 | D49: 2 | E49: 192 | F49: 12
A50: 15217 | B50: 15217-原料恒温入库环穿2#15217 | C50: 44 | D50: 2 | E50: 204 | F50: 12
A51: 15218 | B51: 15218-原料恒温入库环穿2#15218 | C51: 46 | D51: 2 | E51: 216 | F51: 12
A52: 15219 | B52: 15219-原料恒温入库环穿2#15219 | C52: 48 | D52: 2 | E52: 228 | F52: 12
A54: 15300 | B54: 15300-原料恒温出库环穿3#主站15300 | C54: 2 | D54: 10 | E54: 2 | F54: 10
A55: 15301 | B55: 15301-原料恒温出库环穿3#15301 | C55: 12 | D55: 2 | E55: 12 | F55: 12
A56: 15302 | B56: 15302-原料恒温出库环穿3#15302 | C56: 14 | D56: 2 | E56: 24 | F56: 12
A57: 15303 | B57: 15303-原料恒温出库环穿3#15303 | C57: 16 | D57: 2 | E57: 36 | F57: 12
A58: 15304 | B58: 15304-原料恒温出库环穿3#15304 | C58: 18 | D58: 2 | E58: 48 | F58: 12
A59: 15305 | B59: 15305-原料恒温出库环穿3#15305 | C59: 20 | D59: 2 | E59: 60 | F59: 12
A60: 15306 | B60: 15306-原料恒温出库环穿3#15306 | C60: 22 | D60: 2 | E60: 72 | F60: 12
A61: 15307 | B61: 15307-原料恒温出库环穿3#15307 | C61: 24 | D61: 2 | E61: 84 | F61: 12
A62: 15308 | B62: 15308-原料恒温出库环穿3#15308 | C62: 26 | D62: 2 | E62: 96 | F62: 12
A63: 15309 | B63: 15309-原料恒温出库环穿3#15309 | C63: 28 | D63: 2 | E63: 108 | F63: 12
A64: 15310 | B64: 15310-原料恒温出库环穿3#15310 | C64: 30 | D64: 2 | E64: 120 | F64: 12
A66: 25100 | B66: 25100-组件车间环穿4#主站25100 | C66: 2 | D66: 10 | E66: 2 | F66: 10
A67: 25101 | B67: 25101-组件车间环穿4#25101 | C67: 12 | D67: 2 | E67: 12 | F67: 12
A68: 25102 | B68: 25102-组件车间环穿4#25102 | C68: 14 | D68: 2 | E68: 24 | F68: 12
A69: 25103 | B69: 25103-组件车间环穿4#25103 | C69: 16 | D69: 2 | E69: 36 | F69: 12
A70: 25104 | B70: 25104-组件车间环穿4#25104 | C70: 18 | D70: 2 | E70: 48 | F70: 12
A71: 25105 | B71: 25105-组件车间环穿4#25105 | C71: 20 | D71: 2 | E71: 60 | F71: 12
A72: 25106 | B72: 25106-组件车间环穿4#25106 | C72: 22 | D72: 2 | E72: 72 | F72: 12
A73: 25107 | B73: 25107-组件车间环穿4#25107 | C73: 24 | D73: 2 | E73: 84 | F73: 12
A74: 25108 | B74: 25108-组件车间环穿4#25108 | C74: 26 | D74: 2 | E74: 96 | F74: 12
A75: 25109 | B75: 25109-组件车间环穿4#25109 | C75: 28 | D75: 2 | E75: 108 | F75: 12
A76: 25110 | B76: 25110-组件车间环穿4#25110 | C76: 30 | D76: 2 | E76: 120 | F76: 12
A77: 25111 | B77: 25111-组件车间环穿4#25111 | C77: 32 | D77: 2 | E77: 132 | F77: 12
A78: 25112 | B78: 25112-组件车间环穿4#25112 | C78: 34 | D78: 2 | E78: 144 | F78: 12
A79: 25113 | B79: 25113-组件车间环穿4#25113 | C79: 36 | D79: 2 | E79: 156 | F79: 12
A80: 25114 | B80: 25114-组件车间环穿4#25114 | C80: 38 | D80: 2 | E80: 168 | F80: 12
A81: 25115 | B81: 25115-组件车间环穿4#25115 | C81: 40 | D81: 2 | E81: 180 | F81: 12
A82: 25116 | B82: 25116-组件车间环穿4#25116 | C82: 42 | D82: 2 | E82: 192 | F82: 12
A83: 25117 | B83: 25117-组件车间环穿4#25117 | C83: 44 | D83: 2 | E83: 204 | F83: 12
A84: 25118 | B84: 25118-组件车间环穿4#25118 | C84: 46 | D84: 2 | E84: 216 | F84: 12
A85: 25119 | B85: 25119-组件车间环穿4#25119 | C85: 48 | D85: 2 | E85: 228 | F85: 12
A86: 25120 | B86: 25120-组件车间环穿4#25120 | C86: 50 | D86: 2 | E86: 240 | F86: 12
A87: 25121 | B87: 25121-组件车间环穿4#25121 | C87: 52 | D87: 2 | E87: 252 | F87: 12
A88: 25122 | B88: 25122-组件车间环穿4#25122 | C88: 54 | D88: 2 | E88: 264 | F88: 12
A89: 25123 | B89: 25123-组件车间环穿4#25123 | C89: 56 | D89: 2 | E89: 276 | F89: 12
A90: 25124 | B90: 25124-组件车间环穿4#25124 | C90: 58 | D90: 2 | E90: 288 | F90: 12
A91: 25125 | B91: 25125-组件车间环穿4#25125 | C91: 60 | D91: 2 | E91: 300 | F91: 12
A92: 25126 | B92: 25126-组件车间环穿4#25126 | C92: 62 | D92: 2 | E92: 312 | F92: 12
A93: 151001 | B93: 151001-原料常温入库环穿1#主站心跳151001 | C93: 0 | D93: 2 | E93: 0 | F93: 2
A94: 152001 | B94: 152001-原料恒温入库环穿2#主站心跳152001 | C94: 0 | D94: 2 | E94: 0 | F94: 2
A95: 153001 | B95: 153001-原料恒温出库环穿3#主站心跳153001 | C95: 0 | D95: 2 | E95: 0 | F95: 2
A96: 251001 | B96: 251001-组件车间环穿4#主站心跳251001 | C96: 0 | D96: 2 | E96: 0 | F96: 2

Sheet IP分配
B1: 东台晶澳恒温库堆垛机 | G1: 东台晶澳恒温库调试IP
A2: 序号 | B2: 设备名称 | C2: IP地址 | D2: 备注 | G2: 序号 | H2: 设备名称 | I2: IP地址 | J2: 备注
A3: 1 | B3: 11201堆垛机CPU | C3: 10.52.34.12 | G3: 1 | H3: 调试电脑1 | I3: 10.52.34.240
A4: 2 | B4: 11201堆垛机行走 | C4: 10.52.34.13 | G4: 2 | H4: 调试电脑2 | I4: 10.52.34.241
A5: 3 | B5: 11201堆垛机提升 | C5: 10.52.34.14 | G5: 3 | H5: 调试电脑3 | I5: 10.52.34.242
A6: 4 | B6: 11201堆垛机货叉 | C6: 10.52.34.15 | G6: 4 | H6: 调试电脑4 | I6: 10.52.34.243
A7: 5 | B7: 11201堆垛机货叉编码器 | C7: 10.52.34.16 | G7: 5 | H7: 调试电脑5 | I7: 10.52.34.244
A8: 6 | B8: 11201堆垛机触摸屏 | C8: 10.52.34.17 | G8: 6 | H8: 调试电脑6 | I8: 10.52.34.245
A9: 7 | B9: 11201远程分站1 | C9: 10.52.34.18 | G9: 7 | H9: 调试电脑7 | I9: 10.52.34.246
A10: 8 | B10: 11201远程分站2 | C10: 10.52.34.19 | G10: 8 | H10: 调试电脑8 | I10: 10.52.34.247
A11: 9 | B11: 11202堆垛机CPU | C11: 10.52.34.22
A12: 10 | B12: 11202堆垛机行走 | C12: 10.52.34.23
A13: 11 | B13: 11202堆垛机提升 | C13: 10.52.34.24
A14: 12 | B14: 11202堆垛机货叉 | C14: 10.52.34.25
A15: 13 | B15: 11202堆垛机货叉编码器 | C15: 10.52.34.26
A16: 14 | B16: 11202堆垛机触摸屏 | C16: 10.52.34.27
A17: 15 | B17: 11202远程分站1 | C17: 10.52.34.28
A18: 16 | B18: 11202远程分站2 | C18: 10.52.34.29
A19: 17 | B19: 11203堆垛机CPU | C19: 10.52.34.32
A20: 18 | B20: 11203堆垛机行走 | C20: 10.52.34.33
A21: 19 | B21: 11203堆垛机提升 | C21: 10.52.34.34
A22: 20 | B22: 11203堆垛机货叉 | C22: 10.52.34.35
A23: 21 | B23: 11203堆垛机货叉编码器 | C23: 10.52.34.36
A24: 22 | B24: 11203堆垛机触摸屏 | C24: 10.52.34.37
A25: 23 | B25: 11203远程分站1 | C25: 10.52.34.38
A26: 24 | B26: 11203远程分站2 | C26: 10.52.34.39
A27: 25 | B27: 11204堆垛机CPU | C27: 10.52.34.42
A28: 26 | B28: 11204堆垛机行走 | C28: 10.52.34.43
A29: 27 | B29: 11204堆垛机提升 | C29: 10.52.34.44
A30: 28 | B30: 11204堆垛机货叉 | C30: 10.52.34.45
A31: 29 | B31: 11204堆垛机货叉编码器 | C31: 10.52.34.46
A32: 30 | B32: 11204堆垛机触摸屏 | C32: 10.52.34.47
A33: 31 | B33: 11204远程分站1 | C33: 10.52.34.48
A34: 32 | B34: 11204远程分站2 | C34: 10.52.34.49
A35: 33 | B35: 11205堆垛机CPU | C35: 10.52.34.52
A36: 34 | B36: 11205堆垛机行走 | C36: 10.52.34.53
A37: 35 | B37: 11205堆垛机提升 | C37: 10.52.34.54
A38: 36 | B38: 11205堆垛机货叉 | C38: 10.52.34.55
A39: 37 | B39: 11205堆垛机货叉编码器 | C39: 10.52.34.56
A40: 38 | B40: 11205堆垛机触摸屏 | C40: 10.52.34.57
A41: 39 | B41: 11205远程分站1 | C41: 10.52.34.58
A42: 40 | B42: 11205远程分站2 | C42: 10.52.34.59
A43: 41 | B43: 11206堆垛机CPU | C43: 10.52.34.62
A44: 42 | B44: 11206堆垛机行走 | C44: 10.52.34.63
A45: 43 | B45: 11206堆垛机提升 | C45: 10.52.34.64
A46: 44 | B46: 11206堆垛机货叉 | C46: 10.52.34.65
A47: 45 | B47: 11206堆垛机货叉编码器 | C47: 10.52.34.66
A48: 46 | B48: 11206堆垛机触摸屏 | C48: 10.52.34.67
A49: 47 | B49: 11206远程分站1 | C49: 10.52.34.68
A50: 48 | B50: 11206远程分站2 | C50: 10.52.34.69
A51: 49 | B51: 11207堆垛机CPU | C51: 10.52.34.72
A52: 50 | B52: 11207堆垛机行走 | C52: 10.52.34.73
A53: 51 | B53: 11207堆垛机提升 | C53: 10.52.34.74
A54: 52 | B54: 11207堆垛机货叉 | C54: 10.52.34.75
A55: 53 | B55: 11207堆垛机货叉编码器 | C55: 10.52.34.76
A56: 54 | B56: 11207堆垛机触摸屏 | C56: 10.52.34.77
A57: 55 | B57: 11207远程分站1 | C57: 10.52.34.78
A58: 56 | B58: 11207远程分站2 | C58: 10.52.34.79
A59: 57 | B59: 11208堆垛机CPU | C59: 10.52.34.82
A60: 58 | B60: 11208堆垛机行走 | C60: 10.52.34.83
A61: 59 | B61: 11208堆垛机提升 | C61: 10.52.34.84
A62: 60 | B62: 11208堆垛机货叉 | C62: 10.52.34.85
A63: 61 | B63: 11208堆垛机货叉编码器 | C63: 10.52.34.86
A64: 62 | B64: 11208堆垛机触摸屏 | C64: 10.52.34.87
A65: 63 | B65: 11208远程分站1 | C65: 10.52.34.88
A66: 64 | B66: 11208远程分站2 | C66: 10.52.34.89
A67: 65 | B67: 11209堆垛机CPU | C67: 10.52.34.92
A68: 66 | B68: 11209堆垛机行走 | C68: 10.52.34.93
A69: 67 | B69: 11209堆垛机提升 | C69: 10.52.34.94
A70: 68 | B70: 11209堆垛机货叉 | C70: 10.52.34.95
A71: 69 | B71: 11209堆垛机货叉编码器 | C71: 10.52.34.96
A72: 70 | B72: 11209堆垛机触摸屏 | C72: 10.52.34.97
A73: 71 | B73: 11209远程分站1 | C73: 10.52.34.98
A74: 72 | B74: 11209远程分站2 | C74: 10.52.34.99
A75: 73 | B75: 11210堆垛机CPU | C75: 10.52.34.102
A76: 74 | B76: 11210堆垛机行走 | C76: 10.52.34.103
A77: 75 | B77: 11210堆垛机提升 | C77: 10.52.34.104
A78: 76 | B78: 11210堆垛机货叉 | C78: 10.52.34.105
A79: 77 | B79: 11210堆垛机货叉编码器 | C79: 10.52.34.106
A80: 78 | B80: 11210堆垛机触摸屏 | C80: 10.52.34.107
A81: 79 | B81: 11210远程分站1 | C81: 10.52.34.108
A82: 80 | B82: 11210远程分站2 | C82: 10.52.34.109
A83: 81 | B83: 11211堆垛机CPU | C83: 10.52.34.112
A84: 82 | B84: 11211堆垛机行走 | C84: 10.52.34.113
A85: 83 | B85: 11211堆垛机提升 | C85: 10.52.34.114
A86: 84 | B86: 11211堆垛机货叉 | C86: 10.52.34.115
A87: 85 | B87: 11211堆垛机货叉编码器 | C87: 10.52.34.116
A88: 86 | B88: 11211堆垛机触摸屏 | C88: 10.52.34.117
A89: 87 | B89: 11211远程分站1 | C89: 10.52.34.118
A90: 88 | B90: 11211远程分站2 | C90: 10.52.34.119
A91: 89 | B91: 11212堆垛机CPU | C91: 10.52.34.122
A92: 90 | B92: 11212堆垛机行走 | C92: 10.52.34.123
A93: 91 | B93: 11212堆垛机提升 | C93: 10.52.34.124
A94: 92 | B94: 11212堆垛机货叉 | C94: 10.52.34.125
A95: 93 | B95: 11212堆垛机货叉编码器 | C95: 10.52.34.126
A96: 94 | B96: 11212堆垛机触摸屏 | C96: 10.52.34.127
A97: 95 | B97: 11212远程分站1 | C97: 10.52.34.128
A98: 96 | B98: 11212远程分站2 | C98: 10.52.34.129
A99: 97 | B99: 11213堆垛机CPU | C99: 10.52.34.132
A100: 98 | B100: 11213堆垛机行走 | C100: 10.52.34.133
A101: 99 | B101: 11213堆垛机提升 | C101: 10.52.34.134
A102: 100 | B102: 11213堆垛机货叉 | C102: 10.52.34.135
A103: 101 | B103: 11213堆垛机货叉编码器 | C103: 10.52.34.136
A104: 102 | B104: 11213堆垛机触摸屏 | C104: 10.52.34.137
A105: 103 | B105: 11213远程分站1 | C105: 10.52.34.138
A106: 104 | B106: 11213远程分站2 | C106: 10.52.34.139
A107: 105 | B107: 11214堆垛机CPU | C107: 10.52.34.142
A108: 106 | B108: 11214堆垛机行走 | C108: 10.52.34.143
A109: 107 | B109: 11214堆垛机提升 | C109: 10.52.34.144
A110: 108 | B110: 11214堆垛机货叉 | C110: 10.52.34.145
A111: 109 | B111: 11214堆垛机货叉编码器 | C111: 10.52.34.146
A112: 110 | B112: 11214堆垛机触摸屏 | C112: 10.52.34.147
A113: 111 | B113: 11214远程分站1 | C113: 10.52.34.148
A114: 112 | B114: 11214远程分站2 | C114: 10.52.34.149
A118: 东台晶澳常温库堆垛机IP | G118: 东台晶澳常温库调试IP
A119: 序号 | B119: 设备名称 | C119: IP地址 | D119: 备注 | G119: 序号 | H119: 设备名称 | I119: IP地址 | J119: 备注
A120: 1 | B120: 11101堆垛机CPU | C120: 10.52.32.12 | G120: 1 | H120: 调试电脑1 | I120: 10.52.32.240
A121: 2 | B121: 11101堆垛机行走 | C121: 10.52.32.13 | G121: 2 | H121: 调试电脑2 | I121: 10.52.32.241
A122: 3 | B122: 11101堆垛机提升 | C122: 10.52.32.14 | G122: 3 | H122: 调试电脑3 | I122: 10.52.32.242
A123: 4 | B123: 11101堆垛机货叉 | C123: 10.52.32.15 | G123: 4 | H123: 调试电脑4 | I123: 10.52.32.243
A124: 5 | B124: 11101堆垛机货叉编码器 | C124: 10.52.32.16 | G124: 5 | H124: 调试电脑5 | I124: 10.52.32.244
A125: 6 | B125: 11101堆垛机触摸屏 | C125: 10.52.32.17 | G125: 6 | H125: 调试电脑6 | I125: 10.52.32.245
A126: 7 | B126: 11101远程分站1 | C126: 10.52.32.18 | G126: 7 | H126: 调试电脑7 | I126: 10.52.32.246
A127: 8 | B127: 11101远程分站2 | C127: 10.52.32.19 | G127: 8 | H127: 调试电脑8 | I127: 10.52.32.247
A128: 9 | B128: 11102堆垛机CPU | C128: 10.52.32.22 | G128: 9 | H128: 调试电脑9 | I128: 10.52.32.248
A129: 10 | B129: 11102堆垛机行走 | C129: 10.52.32.23 | G129: 10 | H129: 调试电脑10 | I129: 10.52.32.249
A130: 11 | B130: 11102堆垛机提升 | C130: 10.52.32.24
A131: 12 | B131: 11102堆垛机货叉 | C131: 10.52.32.25
A132: 13 | B132: 11102堆垛机货叉编码器 | C132: 10.52.32.26
A133: 14 | B133: 11102堆垛机触摸屏 | C133: 10.52.32.27
A134: 15 | B134: 11102远程分站1 | C134: 10.52.32.28
A135: 16 | B135: 11102远程分站2 | C135: 10.52.32.29
A136: 17 | B136: 11103堆垛机CPU | C136: 10.52.32.32
A137: 18 | B137: 11103堆垛机行走 | C137: 10.52.32.33
A138: 19 | B138: 11103堆垛机提升 | C138: 10.52.32.34
A139: 20 | B139: 11103堆垛机货叉 | C139: 10.52.32.35
A140: 21 | B140: 11103堆垛机货叉编码器 | C140: 10.52.32.36
A141: 22 | B141: 11103堆垛机触摸屏 | C141: 10.52.32.37
A142: 23 | B142: 11103远程分站1 | C142: 10.52.32.38
A143: 24 | B143: 11103远程分站2 | C143: 10.52.32.39
A144: 25 | B144: 11104堆垛机CPU | C144: 10.52.32.42
A145: 26 | B145: 11104堆垛机行走 | C145: 10.52.32.43
A146: 27 | B146: 11104堆垛机提升 | C146: 10.52.32.44
A147: 28 | B147: 11104堆垛机货叉 | C147: 10.52.32.45
A148: 29 | B148: 11104堆垛机货叉编码器 | C148: 10.52.32.46
A149: 30 | B149: 11104堆垛机触摸屏 | C149: 10.52.32.47
A150: 31 | B150: 11104远程分站1 | C150: 10.52.32.48
A151: 32 | B151: 11104远程分站2 | C151: 10.52.32.49
A152: 33 | B152: 11105堆垛机CPU | C152: 10.52.32.52
A153: 34 | B153: 11105堆垛机行走 | C153: 10.52.32.53
A154: 35 | B154: 11105堆垛机提升 | C154: 10.52.32.54
A155: 36 | B155: 11105堆垛机货叉 | C155: 10.52.32.55
A156: 37 | B156: 11105堆垛机货叉编码器 | C156: 10.52.32.56
A157: 38 | B157: 11105堆垛机触摸屏 | C157: 10.52.32.57
A158: 39 | B158: 11105远程分站1 | C158: 10.52.32.58
A159: 40 | B159: 11105远程分站2 | C159: 10.52.32.59
A160: 41 | B160: 11106堆垛机CPU | C160: 10.52.32.62
A161: 42 | B161: 11106堆垛机行走 | C161: 10.52.32.63
A162: 43 | B162: 11106堆垛机提升 | C162: 10.52.32.64
A163: 44 | B163: 11106堆垛机货叉 | C163: 10.52.32.65
A164: 45 | B164: 11106堆垛机货叉编码器 | C164: 10.52.32.66
A165: 46 | B165: 11106堆垛机触摸屏 | C165: 10.52.32.67
A166: 47 | B166: 11106远程分站1 | C166: 10.52.32.68
A167: 48 | B167: 11106远程分站2 | C167: 10.52.32.69
A168: 49 | B168: 11107堆垛机CPU | C168: 10.52.32.72
A169: 50 | B169: 11107堆垛机行走 | C169: 10.52.32.73
A170: 51 | B170: 11107堆垛机提升 | C170: 10.52.32.74
A171: 52 | B171: 11107堆垛机货叉 | C171: 10.52.32.75
A172: 53 | B172: 11107堆垛机货叉编码器 | C172: 10.52.32.76
A173: 54 | B173: 11107堆垛机触摸屏 | C173: 10.52.32.77
A174: 55 | B174: 11107远程分站1 | C174: 10.52.32.78
A175: 56 | B175: 11107远程分站2 | C175: 10.52.32.79
A176: 57 | B176: 11108堆垛机CPU | C176: 10.52.32.82
A177: 58 | B177: 11108堆垛机行走 | C177: 10.52.32.83
A178: 59 | B178: 11108堆垛机提升 | C178: 10.52.32.84
A179: 60 | B179: 11108堆垛机货叉 | C179: 10.52.32.85
A180: 61 | B180: 11108堆垛机货叉编码器 | C180: 10.52.32.86
A181: 62 | B181: 11108堆垛机触摸屏 | C181: 10.52.32.87
A182: 63 | B182: 11108远程分站1 | C182: 10.52.32.88
A183: 64 | B183: 11108远程分站2 | C183: 10.52.32.89
A184: 65 | B184: 11109堆垛机CPU | C184: 10.52.32.92
A185: 66 | B185: 11109堆垛机行走 | C185: 10.52.32.93
A186: 67 | B186: 11109堆垛机提升 | C186: 10.52.32.94
A187: 68 | B187: 11109堆垛机货叉 | C187: 10.52.32.95
A188: 69 | B188: 11109堆垛机货叉编码器 | C188: 10.52.32.96
A189: 70 | B189: 11109堆垛机触摸屏 | C189: 10.52.32.97
A190: 71 | B190: 11109远程分站1 | C190: 10.52.32.98
A191: 72 | B191: 11109远程分站2 | C191: 10.52.32.99
A192: 73 | B192: 11110堆垛机CPU | C192: 10.52.32.102
A193: 74 | B193: 11110堆垛机行走 | C193: 10.52.32.103
A194: 75 | B194: 11110堆垛机提升 | C194: 10.52.32.104
A195: 76 | B195: 11110堆垛机货叉 | C195: 10.52.32.105
A196: 77 | B196: 11110堆垛机货叉编码器 | C196: 10.52.32.106
A197: 78 | B197: 11110堆垛机触摸屏 | C197: 10.52.32.107
A198: 79 | B198: 11110远程分站1 | C198: 10.52.32.108
A199: 80 | B199: 11110远程分站2 | C199: 10.52.32.109
A200: 81 | B200: 11111堆垛机CPU | C200: 10.52.32.112
A201: 82 | B201: 11111堆垛机行走 | C201: 10.52.32.113
A202: 83 | B202: 11111堆垛机提升 | C202: 10.52.32.114
A203: 84 | B203: 11111堆垛机货叉 | C203: 10.52.32.115
... 84 more rows
